{"text_format":"1","workbook":"xlsx","n_sheets":3,"sheets":["CONTRATACION MARZO ","PIC  MARZO 2020","CONTRATOS COVIC 19"],"not_rendered":{"charts":0,"images":0,"macros":1,"external_links":1,"defined_names":1,"comments":2,"pivot_tables":0},"unopened":[],"bounds":{"document_bytes":16777216,"sheet_cells":100000,"rows_first":2000,"rows_last":500,"rows_between":2000,"halvings":0,"cell_chars":16384,"cell_head_chars":4096},"cells_cut":0,"cells_raw":0,"read":"whole","date_system":"1900"}

{"sheet":"CONTRATACION MARZO ","index":0,"n_rows":431,"n_cols":16,"rows_kept":431,"cut":false,"hidden":false,"merged":[]}
[" ","CEDULA","NOMBRES APELLIDOS CONTRATISTA","# OPS","# OPS  CON AÑO ","OBJETO DEL CONTRATO","FECHA INICIO","FECHA TERMINACION ","VALOR MENSUAL","VALOR TOTAL ","SUPERVISOR ","CARGO","CDP","RP","FECHA SECOP "]
[1,7455342,"ADOLFO MARIO DE LA HOZ BERNAL","0882","0882-2020","MEDICO DE URGENCIA"," 02 de marzo de 2020  ","  31 de marzo de 2020",2560000,{"$f":"I2*1","v":2560000},"WILFRAN JIMENEZ DE LA PEÑA","COORD CENTRO DE SALUD",1109,1990,"2020-03-16",{"$f":"VLOOKUP(B2:B431,'[1]CONTRATACION MARZO '!$B$2:$AB$431,27,0)","v":"https://www.contratos.gov.co/consultas/detalleProceso.do?numConstancia=20-4-10584788"}]
[{"$f":"+A2+1","v":2},55309225,"ADRIANA BALLESTAS MARTINEZ","0883","0883-2020","MEDICO DE URGENCIA"," 02 de marzo de 2020  "," 31 de marzo de 2020",2560000,2560000,"SERGIO BOVEA MARIN","COORD CENTRO DE SALUD",1110,1991,"2020-03-16",{"$f":"VLOOKUP(B3:B431,'[1]CONTRATACION MARZO '!$B$2:$AB$431,27,0)","v":"https://www.contratos.gov.co/consultas/detalleProceso.do?numConstancia=20-4-10584800"}]
[3,1103109488,"ADRIANA MARCELA CASTAÑO RODELO","0884","0884-2020","MEDICO CARDIOVASCULAR"," 02 de marzo de 2020  "," 31 de marzo de 2020",2300000,2300000,"DIANA MARTINEZ PACHECO","COORD CENTRO DE SALUD",1111,1992,"2020-03-16",{"$f":"VLOOKUP(B4:B431,'[1]CONTRATACION MARZO '!$B$2:$AB$431,27,0)","v":"https://www.contratos.gov.co/consultas/detalleProceso.do?numConstancia=20-4-10584818"}]
[4,22465848,"ADRIANA OROZCO CANTILLO","0885","0885-2020","AUXILIAR SERVICIOS GENERALES"," 02 de marzo de 2020  "," 31 de marzo de 2020",1215000,1215000,"LUIS CARLOS DE LEON BERNIER","COORD CENTRO DE SALUD",1112,1993,"2020-03-16",{"$f":"VLOOKUP(B5:B431,'[1]CONTRATACION MARZO '!$B$2:$AB$431,27,0)","v":"https://www.contratos.gov.co/consultas/detalleProceso.do?numConstancia=20-4-10584827"}]
[5,1140895535,"ADRIANA PAOLA GONZALEZ ROMERO ","0886","0886-2020","ENFERMERA JEFE"," 02 de marzo de 2020  "," 31 de marzo de 2020",2120000,2120000,"AIX PALACIO","COORD CENTRO DE SALUD",1113,1994,"2020-03-16",{"$f":"VLOOKUP(B6:B431,'[1]CONTRATACION MARZO '!$B$2:$AB$431,27,0)","v":"https://www.contratos.gov.co/consultas/detalleProceso.do?numConstancia=20-4-10584832"}]
[6,36555688,"ALBA SOLANO COCA","0887","0887-2020","ODONTOLOGO"," 02 de marzo de 2020  "," 31 de marzo de 2020",1900000,1900000,"CARLOS VISBAL JIMENEZ","COORD CENTRO DE SALUD",1114,1995,"2020-03-16",{"$f":"VLOOKUP(B7:B431,'[1]CONTRATACION MARZO '!$B$2:$AB$431,27,0)","v":"https://www.contratos.gov.co/consultas/detalleProceso.do?numConstancia=20-4-10584838"}]
[7,1140874429,"ALBERTO DE LA OSSA DE AVILA","0888","0888-2020","PROFESIONAL DE PRESUPUESTO "," 02 de marzo de 2020  "," 31 de marzo de 2020",3000000,3000000,"ALFONSO NICOLAS OQUENDO","DIRECTOR FINANCIERO",1115,1996,"2020-03-16",{"$f":"VLOOKUP(B8:B431,'[1]CONTRATACION MARZO '!$B$2:$AB$431,27,0)","v":"https://www.contratos.gov.co/consultas/detalleProceso.do?numConstancia=20-4-10584874"}]
[8,8505956,"ALBERTO NAVARRO MORALES","0889","0889-2020","AUXILIAR DE FACTURACION URGENCIA"," 02 de marzo de 2020  "," 31 de marzo de 2020",1400000,1400000,"SANDRA SANMARTIN","SUBGERENCIA ADMINISTRATIVA",1116,1997,"2020-03-16",{"$f":"VLOOKUP(B9:B431,'[1]CONTRATACION MARZO '!$B$2:$AB$431,27,0)","v":"https://www.contratos.gov.co/consultas/detalleProceso.do?numConstancia=20-4-10584882"}]
[9,37577926,"ALCIRA CAMPO ALCOZER","0890","0890-2020","AUXILIAR SERVICIOS GENERALES"," 02 de marzo de 2020  "," 31 de marzo de 2020",1215000,1215000,"SANDRA SANMARTIN","SUBGERENCIA ADMINISTRATIVA",1117,1998,"2020-03-16",{"$f":"VLOOKUP(B10:B431,'[1]CONTRATACION MARZO '!$B$2:$AB$431,27,0)","v":"https://www.contratos.gov.co/consultas/detalleProceso.do?numConstancia=20-4-10584914"}]
[10,64543985,"ALCIRA GOMEZ ARRIETA ","0891","0891-2020","ENFERMERA JEFE COORDINADORA PAI "," 02 de marzo de 2020  "," 31 de marzo de 2020",4000000,4000000,"NILSA ARIZA MARQUEZ","COORDINADOR PYP",1118,1999,"2020-03-16",{"$f":"VLOOKUP(B11:B431,'[1]CONTRATACION MARZO '!$B$2:$AB$431,27,0)","v":"https://www.contratos.gov.co/consultas/detalleProceso.do?numConstancia=20-4-10584922"}]
[11,1042428171,"ALEX ENRIQUE VILLARREAL IBAÑEZ","0892","0892-2020","ODONTOLOGO"," 02 de marzo de 2020  "," 31 de marzo de 2020",1900000,1900000,"SERGIO BOVEA MARIN","COORD CENTRO DE SALUD",1119,2000,"2020-03-16",{"$f":"VLOOKUP(B12:B431,'[1]CONTRATACION MARZO '!$B$2:$AB$431,27,0)","v":"https://www.contratos.gov.co/consultas/detalleProceso.do?numConstancia=20-4-10584940"}]
[12,8777621,"ALEXANDER MIGUEL SALAZAR CABALLERO","0893","0893-2020","AUXILIAR DE FACTURACION URGENCIA"," 02 de marzo de 2020  "," 31 de marzo de 2020",1400000,1400000,"SANDRA SANMARTIN","SUBGERENCIA ADMINISTRATIVA",1120,2001,"2020-03-16",{"$f":"VLOOKUP(B13:B431,'[1]CONTRATACION MARZO '!$B$2:$AB$431,27,0)","v":"https://www.contratos.gov.co/consultas/detalleProceso.do?numConstancia=20-4-10584951"}]
[13,22523223,"ALEXANDRA ESTHER MOLINA PEREZ","0894","0894-2020","AUXILIAR SERVICIOS GENERALES URGENCIA"," 02 de marzo de 2020  "," 31 de marzo de 2020",1378000,1378000,"SERGIO BOVEA MARIN","COORD CENTRO DE SALUD",1121,2002,"2020-03-16",{"$f":"VLOOKUP(B14:B431,'[1]CONTRATACION MARZO '!$B$2:$AB$431,27,0)","v":"https://www.contratos.gov.co/consultas/detalleProceso.do?numConstancia=20-4-10584968"}]
[14,1140881787,"ALEXANDRA GUZMAN QUINTERO","0895","0895-2020","ASISTENTE OFICINA JURIDICA "," 02 de marzo de 2020  "," 31 de marzo de 2020",3000000,3000000,"ORNELLA FIORENTINO ","JEFE DE JURIDICA",1122,2003,"2020-03-16",{"$f":"VLOOKUP(B15:B431,'[1]CONTRATACION MARZO '!$B$2:$AB$431,27,0)","v":"https://www.contratos.gov.co/consultas/detalleProceso.do?numConstancia=20-4-10584979"}]
[15,8714709,"ALFONSO DOMINGUEZ MARENCO","0896","0896-2020","AUXILIAR DE ARCHIVO "," 02 de marzo de 2020  "," 31 de marzo de 2020",1500000,1500000,"SANDRA SANMARTIN","SUBGERENCIA ADMINISTRATIVA",1123,2004,"2020-03-16",{"$f":"VLOOKUP(B16:B431,'[1]CONTRATACION MARZO '!$B$2:$AB$431,27,0)","v":"https://www.contratos.gov.co/consultas/detalleProceso.do?numConstancia=20-4-10585013"}]
[16,72000601,"ALEXIS JAVIER SUAREZ CABALLERO","0897","0897-2020","AUXILIAR DE FACTURACION URGENCIA"," 02 de marzo de 2020  "," 31 de marzo de 2020",1400000,1400000,"SANDRA SANMARTIN","SUBGERENCIA ADMINISTRATIVA",1124,2005,"2020-03-16",{"$f":"VLOOKUP(B17:B431,'[1]CONTRATACION MARZO '!$B$2:$AB$431,27,0)","v":"https://www.contratos.gov.co/consultas/detalleProceso.do?numConstancia=20-4-10585038"}]
[17,1045716759,"ALFREDO ANGULO JULIAO","0898","0898-2020","AUXILIAR DE FACTURACION URGENCIA"," 02 de marzo de 2020  "," 31 de marzo de 2020",1400000,1400000,"SANDRA SANMARTIN","SUBGERENCIA ADMINISTRATIVA",1125,2006,"2020-03-16",{"$f":"VLOOKUP(B18:B431,'[1]CONTRATACION MARZO '!$B$2:$AB$431,27,0)","v":"https://www.contratos.gov.co/consultas/detalleProceso.do?numConstancia=20-4-10585051"}]
[18,15666678,"ALFREDO ANTONIO RAMIREZ PEREIRA","0899","0899-2020","COORDINADOR DE ARCHIVO "," 02 de marzo de 2020  "," 31 de marzo de 2020",3000000,3000000,"SANDRA SANMARTIN","SUBGERENCIA ADMINISTRATIVA",1126,2007,"2020-03-16",{"$f":"VLOOKUP(B19:B431,'[1]CONTRATACION MARZO '!$B$2:$AB$431,27,0)","v":"https://www.contratos.gov.co/consultas/detalleProceso.do?numConstancia=20-4-10585061"}]
[19,8721508,"ALONSO JOSÉ RIQUETT DE LA HOZ","0900","0900-2020","MEDICO P Y P "," 02 de marzo de 2020  "," 31 de marzo de 2020",2120000,2120000,"CARLOS VISBAL JIMENEZ","COORD CENTRO DE SALUD",1127,2008,"2020-03-16",{"$f":"VLOOKUP(B20:B431,'[1]CONTRATACION MARZO '!$B$2:$AB$431,27,0)","v":"https://www.contratos.gov.co/consultas/detalleProceso.do?numConstancia=20-4-10585135"}]
[20,1139614174,"ALONSO MATEO LLANES ARIZA","0901","0901-2020","MEDICO CONSULTA EXTERNA "," 02 de marzo de 2020  "," 31 de marzo de 2020",2120000,2120000,"AIX PALACIO","COORD CENTRO DE SALUD",1128,2009,"2020-03-16",{"$f":"VLOOKUP(B21:B431,'[1]CONTRATACION MARZO '!$B$2:$AB$431,27,0)","v":"https://www.contratos.gov.co/consultas/detalleProceso.do?numConstancia=20-4-10585208"}]
[21,8697543,"ALVARO ARENAS GONZALEZ","0902","0902-2020","MEDICO DE MATERNIDAD "," 02 de marzo de 2020  "," 31 de marzo de 2020",4240000,4240000,"SERGIO BOVEA MARIN","COORD CENTRO DE SALUD",1129,2010,"2020-03-16",{"$f":"VLOOKUP(B22:B431,'[1]CONTRATACION MARZO '!$B$2:$AB$431,27,0)","v":"https://www.contratos.gov.co/consultas/detalleProceso.do?numConstancia=20-4-10585234"}]
[22,7407679,"AMEFI PACHECO CERA","0903","0903-2020","ORIENTADOR"," 02 de marzo de 2020  "," 31 de marzo de 2020",1270000,1270000,"AIX PALACIO","COORD CENTRO DE SALUD",1130,2011,"2020-03-16",{"$f":"VLOOKUP(B23:B431,'[1]CONTRATACION MARZO '!$B$2:$AB$431,27,0)","v":"https://www.contratos.gov.co/consultas/detalleProceso.do?numConstancia=20-4-10585289"}]
[23,1047338042,"AMINTA PARDO GUZMAN","0904","0904-2020","AUXILIAR DE ENFERMERIA CONSULTA EXTERNA "," 02 de marzo de 2020  "," 31 de marzo de 2020",1749000,1749000,"DIANA MARTINEZ PACHECO","COORD CENTRO DE SALUD",1131,2012,"2020-03-16",{"$f":"VLOOKUP(B24:B431,'[1]CONTRATACION MARZO '!$B$2:$AB$431,27,0)","v":"https://www.contratos.gov.co/consultas/detalleProceso.do?numConstancia=20-4-10585326"}]
[24,1045688469,"AMY MOVILLA COMAS","0905","0905-2020","ENFERMERA JEFE CONSULTA EXTERNA "," 02 de marzo de 2020  "," 31 de marzo de 2020",2300000,2300000,"DIANA MARTINEZ PACHECO","COORD CENTRO DE SALUD",1132,2013,"2020-03-16",{"$f":"VLOOKUP(B25:B431,'[1]CONTRATACION MARZO '!$B$2:$AB$431,27,0)","v":"https://www.contratos.gov.co/consultas/detalleProceso.do?numConstancia=20-4-10585343"}]
[25,32813366,"ANA GONZALEZ ZAMBRANO","0906","0906-2020","AUXILIAR DE ARCHIVO "," 02 de marzo de 2020  "," 31 de marzo de 2020",1500000,1500000,"SANDRA SANMARTIN","SUBGERENCIA ADMINISTRATIVA",1133,2014,"2020-03-16",{"$f":"VLOOKUP(B26:B431,'[1]CONTRATACION MARZO '!$B$2:$AB$431,27,0)","v":"https://www.contratos.gov.co/consultas/detalleProceso.do?numConstancia=20-4-10585391"}]
[26,1045704276,"ANA MILENA HERRERA ALVIS ","0907","0907-2020","ENFERMERA JEFE "," 02 de marzo de 2020  "," 31 de marzo de 2020",2300000,2300000,"NILSA ARIZA MARQUEZ","COORDINADOR PYP",1134,2015,"2020-03-16",{"$f":"VLOOKUP(B27:B431,'[1]CONTRATACION MARZO '!$B$2:$AB$431,27,0)","v":"https://www.contratos.gov.co/consultas/detalleProceso.do?numConstancia=20-4-10585429"}]
[27,22739459,"ANA MILENA L´HOESTE ROA","0908","0908-2020","COORDINADORA CONSULTA EXTERNA"," 02 de marzo de 2020  "," 31 de marzo de 2020",3700000,3700000,"BETTY PERTUZ ","SUBGERENCIA CIENTIFICA",1135,2016,"2020-03-16",{"$f":"VLOOKUP(B28:B431,'[1]CONTRATACION MARZO '!$B$2:$AB$431,27,0)","v":"https://www.contratos.gov.co/consultas/detalleProceso.do?numConstancia=20-4-10585444"}]
[28,32825462,"ANAIS DE JESUS RODRIGUEZ DE  LAS AGUAS","0909","0909-2020","AUXILIAR SERVICIOS GENERALES"," 02 de marzo de 2020  "," 31 de marzo de 2020",1215000,1215000,"SANDRA SANMARTIN","ADMON COSTA HERMOSA",1136,2017,"2020-03-16",{"$f":"VLOOKUP(B29:B431,'[1]CONTRATACION MARZO '!$B$2:$AB$431,27,0)","v":"https://www.contratos.gov.co/consultas/detalleProceso.do?numConstancia=20-4-10585472"}]
[29,1045706259,"ANDREA CAROLINA HERRERA ORTEGA","0910","0910-2020","MEDICO CONSULTA EXTERNA"," 02 de marzo de 2020  "," 31 de marzo de 2020",2120000,2120000,"LUIS GRANADOS GOMEZ","COORD CENTRO DE SALUD",1137,2018,"2020-03-16",{"$f":"VLOOKUP(B30:B431,'[1]CONTRATACION MARZO '!$B$2:$AB$431,27,0)","v":"https://www.contratos.gov.co/consultas/detalleProceso.do?numConstancia=20-4-10585512"}]
[30,1001821798,"ANGELA JUDITH BARRIOS MEJIA","0911","0911-2020","AUXILIAR DE ENFERMERIA URGENCIAS"," 02 de marzo de 2020  "," 31 de marzo de 2020",1378000,1378000,"WILFRAN JIMENEZ DE LA PEÑA","COORD CENTRO DE SALUD",1138,2019,"2020-03-16",{"$f":"VLOOKUP(B31:B431,'[1]CONTRATACION MARZO '!$B$2:$AB$431,27,0)","v":"https://www.contratos.gov.co/consultas/detalleProceso.do?numConstancia=20-4-10585543"}]
[31,22641629,"ANGELICA CARCAMO ANAYA","0912","0912-2020","AGENTE CALL CENTER"," 02 de marzo de 2020  "," 31 de marzo de 2020",1378000,1378000,"WILFRAN JIMENEZ DE LA PEÑA","COORD CENTRO DE SALUD",1139,2020,"2020-03-16",{"$f":"VLOOKUP(B32:B431,'[1]CONTRATACION MARZO '!$B$2:$AB$431,27,0)","v":"https://www.contratos.gov.co/consultas/detalleProceso.do?numConstancia=20-4-10585555"}]
[32,22736159,"ARACELLY HERNANDEZ GARCIA ","0913","0913-2020","DIGITADOR PAI WEB "," 02 de marzo de 2020  "," 31 de marzo de 2020",2500000,2500000,"NILSA ARIZA MARQUEZ","COORDINADOR PYP",1140,2021,"2020-03-16",{"$f":"VLOOKUP(B33:B431,'[1]CONTRATACION MARZO '!$B$2:$AB$431,27,0)","v":"https://www.contratos.gov.co/consultas/detalleProceso.do?numConstancia=20-4-10585600"}]
[33,32869290,"ARGENEDITH YEPEZ ESCALANTE ","0914","0914-2020","MEDICO P Y P"," 02 de marzo de 2020  "," 31 de marzo de 2020",2120000,2120000,"LUIS GRANADOS GOMEZ","COORD CENTRO DE SALUD",1141,2022,"2020-03-16",{"$f":"VLOOKUP(B34:B431,'[1]CONTRATACION MARZO '!$B$2:$AB$431,27,0)","v":"https://www.contratos.gov.co/consultas/detalleProceso.do?numConstancia=20-4-10585624"}]
[{"$f":"+A34+1","v":34},1140850083,"ARLINY YANNINY RAMIREZ FIGUEROA","0915","0915-2020","ASESOR DE PRESUPUESTO"," 02 de marzo de 2020  "," 31 de marzo de 2020",4000000,4000000,"ALFONSO NICOLAS OQUENDO","DIRECTOR FINANCIERO",1142,2023,"2020-03-16",{"$f":"VLOOKUP(B35:B431,'[1]CONTRATACION MARZO '!$B$2:$AB$431,27,0)","v":"https://www.contratos.gov.co/consultas/detalleProceso.do?numConstancia=20-4-10585641"}]
[35,1042444527,"ARNOLD RINCON MARTINEZ","0916","0916-2020","PROFESIONAL PLANEACION ESTRATEGICA"," 02 de marzo de 2020  "," 31 de marzo de 2020",4000000,4000000,"SANDRA SANMARTIN","SUBGERENCIA ADMINISTRATIVA",1143,2024,"2020-03-16",{"$f":"VLOOKUP(B36:B431,'[1]CONTRATACION MARZO '!$B$2:$AB$431,27,0)","v":"https://www.contratos.gov.co/consultas/detalleProceso.do?numConstancia=20-4-10585665"}]
[36,32767778,"BEATRIZ ELENA GUTIERREZ AHUMADA","0917","0917-2020","DIGITADOR PAI WEB "," 02 de marzo de 2020  "," 31 de marzo de 2020",1378000,1378000,"NILSA ARIZA MARQUEZ","COORDINADOR PYP",1144,2025,"2020-03-16",{"$f":"VLOOKUP(B37:B431,'[1]CONTRATACION MARZO '!$B$2:$AB$431,27,0)","v":"https://www.contratos.gov.co/consultas/detalleProceso.do?numConstancia=20-4-10585682"}]
[37,45496113,"BEATRIZ HELENA JIMENO CARDENAS","0918","0918-2020","AUXILIAR DE ARCHIVO "," 02 de marzo de 2020  "," 31 de marzo de 2020",1500000,1500000,"SANDRA SANMARTIN","SUBGERENCIA ADMINISTRATIVA",1145,2026,"2020-03-16",{"$f":"VLOOKUP(B38:B431,'[1]CONTRATACION MARZO '!$B$2:$AB$431,27,0)","v":"https://www.contratos.gov.co/consultas/detalleProceso.do?numConstancia=20-4-10585705"}]
[38,32780077,"BELKIS  BOSSIO ESCORCIA","0919","0919-2020","MEDICO DE URGENCIA"," 02 de marzo de 2020  "," 31 de marzo de 2020",2560000,2560000,"WILFRAN JIMENEZ DE LA PEÑA","COORD CENTRO DE SALUD",1146,2027,"2020-03-16",{"$f":"VLOOKUP(B39:B431,'[1]CONTRATACION MARZO '!$B$2:$AB$431,27,0)","v":"https://www.contratos.gov.co/consultas/detalleProceso.do?numConstancia=20-4-10585721"}]
[39,32736237,"BETTY ROMERO RODRIGUEZ ","0920","0920-2020","AUXILIAR SERVICIOS GENERALES URGENCIA"," 02 de marzo de 2020  "," 31 de marzo de 2020",1378000,1378000,"WILFRAN JIMENEZ DE LA PEÑA","COORD CENTRO DE SALUD",1147,2028,"2020-03-16",{"$f":"VLOOKUP(B40:B431,'[1]CONTRATACION MARZO '!$B$2:$AB$431,27,0)","v":"https://www.contratos.gov.co/consultas/detalleProceso.do?numConstancia=20-4-10585742"}]
[40,72153271,"BORIS ARROYO ESCOBAR","0921","0921-2020","ORIENTADOR"," 02 de marzo de 2020  "," 31 de marzo de 2020",1270000,1270000,"LUIS GRANADOS GOMEZ","COORD CENTRO DE SALUD",1148,2029,"2020-03-16",{"$f":"VLOOKUP(B41:B431,'[1]CONTRATACION MARZO '!$B$2:$AB$431,27,0)","v":"https://www.contratos.gov.co/consultas/detalleProceso.do?numConstancia=20-4-10585821"}]
[41,7938572,"BRAYNERD ALVAREZ JIMENEZ ","0922","0922-2020","MEDICO CONSULTA EXTERNA  Y CARDIOVASCULAR"," 02 de marzo de 2020  "," 31 de marzo de 2020",4600000,4600000,"YARELIS GUERRA CORREA","COORD CENTRO DE SALUD",1149,2030,"2020-03-16",{"$f":"VLOOKUP(B42:B431,'[1]CONTRATACION MARZO '!$B$2:$AB$431,27,0)","v":"https://www.contratos.gov.co/consultas/detalleProceso.do?numConstancia=20-4-10585844"}]
[42,1001875457,"BRIGGITH CHARRIS ALGARIN ","0923","0923-2020","AUXILIAR DE ODONTOLOGIA"," 02 de marzo de 2020  "," 31 de marzo de 2020",1166000,1166000,"WILFRAN JIMENEZ DE LA PEÑA","COORD CENTRO DE SALUD",1150,2031,"2020-03-16",{"$f":"VLOOKUP(B43:B431,'[1]CONTRATACION MARZO '!$B$2:$AB$431,27,0)","v":"https://www.contratos.gov.co/consultas/detalleProceso.do?numConstancia=20-4-10585944"}]
[43,1042446319,"BRUNYS DEL CARMEN RAMIREZ MUÑOZ","0924","0924-2020","AUXILIAR DE ENFERMERIA PROMOTORA EN SALUD"," 02 de marzo de 2020  "," 31 de marzo de 2020",1215000,1215000,"WILFRAN JIMENEZ DE LA PEÑA","COORD CENTRO DE SALUD",1151,2032,"2020-03-16",{"$f":"VLOOKUP(B44:B431,'[1]CONTRATACION MARZO '!$B$2:$AB$431,27,0)","v":"https://www.contratos.gov.co/consultas/detalleProceso.do?numConstancia=20-4-10585962"}]
[44,5055447,"CARLOS ALBERTO CARBONELL ALVAREZ","0925","0925-2020","AUDITOR MEDICO"," 02 de marzo de 2020  "," 31 de marzo de 2020",{"$f":"4500000","v":4500000},4500000,"BETTY PERTUZ ","SUBGERENCIA CIENTIFICA",1152,2033,"2020-03-16",{"$f":"VLOOKUP(B45:B431,'[1]CONTRATACION MARZO '!$B$2:$AB$431,27,0)","v":"https://www.contratos.gov.co/consultas/detalleProceso.do?numConstancia=20-4-10585995"}]
[45,33109830,"CARMEN ELISA LEONES CASTRO","0926","0926-2020","AUXILIAR DE ARCHIVO "," 02 de marzo de 2020  "," 31 de marzo de 2020",1500000,1500000,"SANDRA SANMARTIN","SUBGERENCIA ADMINISTRATIVA",1153,2034,"2020-03-16",{"$f":"VLOOKUP(B46:B431,'[1]CONTRATACION MARZO '!$B$2:$AB$431,27,0)","v":"https://www.contratos.gov.co/consultas/detalleProceso.do?numConstancia=20-4-10586009"}]
[46,44158949,"CARMEN PACHECO VARELA","0927","0927-2020","AUXILIAR SERVICIOS GENERALES URGENCIA"," 02 de marzo de 2020  "," 31 de marzo de 2020",1378000,1378000,"SERGIO BOVEA MARIN","COORD CENTRO DE SALUD",1154,2035,"2020-03-16",{"$f":"VLOOKUP(B47:B431,'[1]CONTRATACION MARZO '!$B$2:$AB$431,27,0)","v":"https://www.contratos.gov.co/consultas/detalleProceso.do?numConstancia=20-4-10586088"}]
[47,32618430,"CARMEN ROBLES DE LASCARRO","0928","0928-2020","AUXILIAR SERVICIOS GENERALES URGENCIA"," 02 de marzo de 2020  "," 31 de marzo de 2020",1378000,1378000,"WILFRAN JIMENEZ DE LA PEÑA","COORD CENTRO DE SALUD",1155,2036,"2020-03-16",{"$f":"VLOOKUP(B48:B431,'[1]CONTRATACION MARZO '!$B$2:$AB$431,27,0)","v":"https://www.contratos.gov.co/consultas/detalleProceso.do?numConstancia=20-4-10586105"}]
[48,32712485,"CASILDA LARA SOLANO ","0929","0929-2020","MEDICO MATERNIDAD SEGURA"," 02 de marzo de 2020  "," 31 de marzo de 2020",2120000,2120000,"SERGIO BOVEA MARIN","COORD CENTRO DE SALUD",1156,2037,"2020-03-16",{"$f":"VLOOKUP(B49:B431,'[1]CONTRATACION MARZO '!$B$2:$AB$431,27,0)","v":"https://www.contratos.gov.co/consultas/detalleProceso.do?numConstancia=20-4-10587090"}]
[49,1143138226,"CATTERINNE ESTEFANY ESTRADA CARDENAS","0930","0930-2020","AUXILIAR DE FACTURACION URGENCIA"," 02 de marzo de 2020  "," 31 de marzo de 2020",1400000,1400000,"SANDRA SANMARTIN","SUBGERENCIA ADMINISTRATIVA",1157,2038,"2020-03-16",{"$f":"VLOOKUP(B50:B431,'[1]CONTRATACION MARZO '!$B$2:$AB$431,27,0)","v":"https://www.contratos.gov.co/consultas/detalleProceso.do?numConstancia=20-4-10587110"}]
[50,8762035,"CESAR AUGUSTO MERIÑO ESCORCIA ","0931","0931-2020","ORIENTADOR"," 02 de marzo de 2020  "," 31 de marzo de 2020",1270000,1270000,"SANDRA SANMARTIN","SUBGERENCIA ADMINISTRATIVA",1158,2039,"2020-03-16",{"$f":"VLOOKUP(B51:B431,'[1]CONTRATACION MARZO '!$B$2:$AB$431,27,0)","v":"https://www.contratos.gov.co/consultas/detalleProceso.do?numConstancia=20-4-10587121"}]
[51,1001798325,"CINDY MILENA SARMIENTO MERIÑO","0932","0932-2020","PROFESIONA RELACIONES INETRNACIONALES"," 02 de marzo de 2020  "," 31 de marzo de 2020",4000000,4000000,"FABIAN COLPAS","JEFE  TALENTO  HUMANO",1159,2040,"2020-03-16",{"$f":"VLOOKUP(B52:B431,'[1]CONTRATACION MARZO '!$B$2:$AB$431,27,0)","v":"https://www.contratos.gov.co/consultas/detalleProceso.do?numConstancia=20-4-10587223"}]
[52,1001875491,"CINDY MILENA VARELA ARIAS ","0933","0933-2020","AUXILIAR SERVICIOS GENERALES"," 02 de marzo de 2020  "," 31 de marzo de 2020",1215000,1215000,"LUIS GRANADOS GOMEZ","COORD CENTRO DE SALUD",1160,2041,"2020-03-16",{"$f":"VLOOKUP(B53:B431,'[1]CONTRATACION MARZO '!$B$2:$AB$431,27,0)","v":"https://www.contratos.gov.co/consultas/detalleProceso.do?numConstancia=20-4-10587295"}]
[53,32769708,"CLAUDIA ARENAS ALVAREZ","0934","0934-2020","APOYO GESTION CONTROL INTERNO"," 02 de marzo de 2020  "," 31 de marzo de 2020",3500000,3500000,"SANDRA SANMARTIN","SUBGERENCIA ADMINISTRATIVA",1161,2042,"2020-03-16",{"$f":"VLOOKUP(B54:B431,'[1]CONTRATACION MARZO '!$B$2:$AB$431,27,0)","v":"https://www.contratos.gov.co/consultas/detalleProceso.do?numConstancia=20-4-10587310"}]
[54,1042418998,"CLAUDIA AREVALO CERVANTES","0935","0935-2020","ENFERMERA JEFE P Y P"," 02 de marzo de 2020  "," 31 de marzo de 2020",2300000,2300000,"NILSA ARIZA MARQUEZ","COORDINADOR PYP",1162,2043,"2020-03-16",{"$f":"VLOOKUP(B55:B431,'[1]CONTRATACION MARZO '!$B$2:$AB$431,27,0)","v":"https://www.contratos.gov.co/consultas/detalleProceso.do?numConstancia=20-4-10587324"}]
[55,32866058,"CLAUDIA CABARCAS ARROYO","0936","0936-2020","TRABAJADORA SOCIAL"," 02 de marzo de 2020  "," 31 de marzo de 2020",2200000,2200000,"DIANA MARTINEZ PACHECO","COORD CENTRO DE SALUD",1163,2044,"2020-03-16",{"$f":"VLOOKUP(B56:B431,'[1]CONTRATACION MARZO '!$B$2:$AB$431,27,0)","v":"https://www.contratos.gov.co/consultas/detalleProceso.do?numConstancia=20-4-10587357"}]
[56,32749353,"CLAUDIA VALENCIA AGUDELO ","0937","0937-2020","AUXILIAR DE ENFERMERIA MATERNIDAD SEGURA "," 02 de marzo de 2020  "," 31 de marzo de 2020",1166000,1166000,"WILFRAN JIMENEZ DE LA PEÑA","COORD CENTRO DE SALUD",1164,2045,"2020-03-16",{"$f":"VLOOKUP(B57:B431,'[1]CONTRATACION MARZO '!$B$2:$AB$431,27,0)","v":"https://www.contratos.gov.co/consultas/detalleProceso.do?numConstancia=20-4-10587394"}]
[57,32818534,"CONSUELO MENDOZA CASTRO ","0938","0938-2020","AUXILIAR DE ENFERMERIA MATERNIDAD SEGURA "," 02 de marzo de 2020  "," 31 de marzo de 2020",1826773,1826773,"WILFRAN JIMENEZ DE LA PEÑA","COORD CENTRO DE SALUD",1165,2046,"2020-03-16",{"$f":"VLOOKUP(B58:B431,'[1]CONTRATACION MARZO '!$B$2:$AB$431,27,0)","v":"https://www.contratos.gov.co/consultas/detalleProceso.do?numConstancia=20-4-10587421"}]
[58,72193875,"CRISTIAN DE JESUS BARRAZA VILLALBA","0939","0939-2020","CONDUCTOR DE AMBULANCIA"," 02 de marzo de 2020  "," 31 de marzo de 2020",1800000,1800000,"BETTY PERTUZ ","SUBGERENCIA CIENTIFICA",1166,2047,"2020-03-16",{"$f":"VLOOKUP(B59:B431,'[1]CONTRATACION MARZO '!$B$2:$AB$431,27,0)","v":"https://www.contratos.gov.co/consultas/detalleProceso.do?numConstancia=20-4-10587468"}]
[59,1043611198,"CRISTIAN JESUS RODRIGUEZ QUIROZ","0940","0940-2020","AUXILIAR PRESUPUESTO"," 02 de marzo de 2020  "," 31 de marzo de 2020",1900000,1900000,"ALFONSO NICOLAS OQUENDO","DIRECTOR FINANCIERO",1167,2048,"2020-03-16",{"$f":"VLOOKUP(B60:B431,'[1]CONTRATACION MARZO '!$B$2:$AB$431,27,0)","v":"https://www.contratos.gov.co/consultas/detalleProceso.do?numConstancia=20-4-10587502"}]
[60,72436677,"DANILO ENRIQUE GRAVINI DE LA HOZ","0941","0941-2020","AUXILIAR DE ENFERMERIA URGENCIAS"," 02 de marzo de 2020  "," 31 de marzo de 2020",1378000,1378000,"WILFRAN JIMENEZ DE LA PEÑA","COORD CENTRO DE SALUD",1168,2049,"2020-03-16",{"$f":"VLOOKUP(B61:B431,'[1]CONTRATACION MARZO '!$B$2:$AB$431,27,0)","v":"https://www.contratos.gov.co/consultas/detalleProceso.do?numConstancia=20-4-10587540"}]
[61,1042442558,"DANISA PAOLA BARRIOS DE ALBA","0942","0942-2020","NUTRICIONISTA"," 02 de marzo de 2020  "," 31 de marzo de 2020",2300000,2300000,"SERGIO BOVEA MARIN","COORD CENTRO DE SALUD",1169,2050,"2020-03-16",{"$f":"VLOOKUP(B62:B431,'[1]CONTRATACION MARZO '!$B$2:$AB$431,27,0)","v":"https://www.contratos.gov.co/consultas/detalleProceso.do?numConstancia=20-4-10587554"}]
[62,1045234352,"DARIANA MARCELA ROMERO CASTELLANOS","0943","0943-2020","MEDICO MATERNIDAD SEGURA"," 02 de marzo de 2020  "," 31 de marzo de 2020",2120000,2120000,"WILFRAN JIMENEZ DE LA PEÑA","COORD CENTRO DE SALUD",1170,2051,"2020-03-16",{"$f":"VLOOKUP(B63:B431,'[1]CONTRATACION MARZO '!$B$2:$AB$431,27,0)","v":"https://www.contratos.gov.co/consultas/detalleProceso.do?numConstancia=20-4-10587611"}]
[63,1000149163,"DAVID RICARDO BOTERO ALONSO","0944","0944-2020","APOYO GESTION DOCUMENTAL JURIDICA"," 02 de marzo de 2020  "," 31 de marzo de 2020",4000000,4000000,"ORNELLA FIORENTINO ","JEFE DE JURIDICA",1171,2052,"2020-03-16",{"$f":"VLOOKUP(B64:B431,'[1]CONTRATACION MARZO '!$B$2:$AB$431,27,0)","v":"https://www.contratos.gov.co/consultas/detalleProceso.do?numConstancia=20-4-10587622"}]
[64,44157462,"DAYAN MARTINEZ PACHECO","0945","0945-2020","ABOGADO EXTERNO"," 02 de marzo de 2020  "," 31 de marzo de 2020",5000000,5000000,"ORNELLA FIORENTINO ","JEFE DE JURIDICA",1172,2053,"2020-03-16",{"$f":"VLOOKUP(B65:B431,'[1]CONTRATACION MARZO '!$B$2:$AB$431,27,0)","v":"https://www.contratos.gov.co/consultas/detalleProceso.do?numConstancia=20-4-10587672"}]
[65,1143439595,"DAYANA PAOLA OTALORA AMAYA","0946","0946-2020","DIGITADOR PAI WEB "," 02 de marzo de 2020  "," 31 de marzo de 2020",1400000,{"$f":"I66*1","v":1400000},"NILSA ARIZA MARQUEZ","COORDINADOR PYP",1173,2054,"2020-03-16",{"$f":"VLOOKUP(B66:B431,'[1]CONTRATACION MARZO '!$B$2:$AB$431,27,0)","v":"https://www.contratos.gov.co/consultas/detalleProceso.do?numConstancia=20-4-10587684"}]
[{"$f":"+A66+1","v":66},1042436934,"DAYANA PAOLA TORRES SOLANO","0947","0947-2020","MEDICO DE URGENCIA"," 02 de marzo de 2020  "," 31 de marzo de 2020",2560000,2560000,"WILFRAN JIMENEZ DE LA PEÑA","COORD CENTRO DE SALUD",1174,2055,"2020-03-16",{"$f":"VLOOKUP(B67:B431,'[1]CONTRATACION MARZO '!$B$2:$AB$431,27,0)","v":"https://www.contratos.gov.co/consultas/detalleProceso.do?numConstancia=20-4-10587696"}]
[67,1042436213,"DESIRET PAOLA PINTO NARVAEZ","0948","0948-2020","ENFERMERA JEFE URGENCIAS "," 02 de marzo de 2020  "," 31 de marzo de 2020",1900000,1900000,"WILFRAN JIMENEZ DE LA PEÑA","COORD CENTRO DE SALUD",1175,2056,"2020-03-16",{"$f":"VLOOKUP(B68:B431,'[1]CONTRATACION MARZO '!$B$2:$AB$431,27,0)","v":"https://www.contratos.gov.co/consultas/detalleProceso.do?numConstancia=20-4-10587709"}]
[68,1082405551,"DESIRETH ESTRADA FERNANDEZ","0949","0949-2020","ENFERMERA JEFE P Y P "," 02 de marzo de 2020  "," 31 de marzo de 2020",2300000,2300000,"NILSA ARIZA MARQUEZ","COORDINADOR PYP",1176,2057,"2020-03-16",{"$f":"VLOOKUP(B69:B431,'[1]CONTRATACION MARZO '!$B$2:$AB$431,27,0)","v":"https://www.contratos.gov.co/consultas/detalleProceso.do?numConstancia=20-4-10587720"}]
[69,22585192,"DIANA LUZ ACOSTA DEMARES","0950","0950-2020","AUXILIAR ADMINISTRATIVO-COORDINACION MEDICA"," 02 de marzo de 2020  "," 31 de marzo de 2020",1900000,1900000,"LUIS GRANADOS GOMEZ","COORD CENTRO DE SALUD",1177,2058,"2020-03-16",{"$f":"VLOOKUP(B70:B431,'[1]CONTRATACION MARZO '!$B$2:$AB$431,27,0)","v":"https://www.contratos.gov.co/consultas/detalleProceso.do?numConstancia=20-4-10587756"}]
[70,22524112,"DIANA SANDOVAL MANGA","0951","0951-2020","ENFERMERA JEFE PROGRAMAS ESPECIALES"," 02 de marzo de 2020  "," 31 de marzo de 2020",1900000,1900000,"LUIS CARLOS DE LEON BERNIER","COORD CENTRO DE SALUD",1178,2059,"2020-03-16",{"$f":"VLOOKUP(B71:B431,'[1]CONTRATACION MARZO '!$B$2:$AB$431,27,0)","v":"https://www.contratos.gov.co/consultas/detalleProceso.do?numConstancia=20-4-10587784"}]
[71,1052949649,"DILIANA GARCIA JIMENEZ","0952","0952-2020","ENFERMERA JEFE URGENCIAS "," 02 de marzo de 2020  "," 31 de marzo de 2020",1900000,1900000,"WILFRAN JIMENEZ DE LA PEÑA","COORD CENTRO DE SALUD",1179,2060,"2020-03-16",{"$f":"VLOOKUP(B72:B431,'[1]CONTRATACION MARZO '!$B$2:$AB$431,27,0)","v":"https://www.contratos.gov.co/consultas/detalleProceso.do?numConstancia=20-4-10587813"}]
[72,1042420928,"DINA DEL CARMEN  CUELLO DONADO","0953","0953-2020","AUXILIAR DE FACTURACION URGENCIA"," 02 de marzo de 2020  "," 31 de marzo de 2020",1400000,1400000,"WILFRAN JIMENEZ DE LA PEÑA","COORD CENTRO DE SALUD",1180,2061,"2020-03-16",{"$f":"VLOOKUP(B73:B431,'[1]CONTRATACION MARZO '!$B$2:$AB$431,27,0)","v":"https://www.contratos.gov.co/consultas/detalleProceso.do?numConstancia=20-4-10587822"}]
[73,32818082,"DIVINA LUZ NIETO ZAMBRANO","0954","0954-2020","AUXILIAR SERVICIOS GENERALES URGENCIA"," 02 de marzo de 2020  "," 31 de marzo de 2020",1378000,1378000,"SERGIO BOVEA MARIN","COORD CENTRO DE SALUD",1181,2062,"2020-03-16",{"$f":"VLOOKUP(B74:B431,'[1]CONTRATACION MARZO '!$B$2:$AB$431,27,0)","v":"https://www.contratos.gov.co/consultas/detalleProceso.do?numConstancia=20-4-10587925"}]
[74,32819600,"DOLIS PEDROZO TORRES","0955","0955-2020","AUXILIAR SERVICIOS GENERALES"," 02 de marzo de 2020  "," 31 de marzo de 2020",1215000,1215000,"LUIS GRANADOS GOMEZ","COORD CENTRO DE SALUD",1182,2063,"2020-03-16",{"$f":"VLOOKUP(B75:B431,'[1]CONTRATACION MARZO '!$B$2:$AB$431,27,0)","v":"https://www.contratos.gov.co/consultas/detalleProceso.do?numConstancia=20-4-10587939"}]
[75,32741368,"DOLLYS YERAYS GOMEZ RODRIGUEZ ","0956","0956-2020","ASISTENTE ADMINISTRATIVO- COORD MEDICA"," 02 de marzo de 2020  "," 31 de marzo de 2020",1900000,1900000,"SERGIO BOVEA MARIN","COORD CENTRO DE SALUD",1183,2064,"2020-03-16",{"$f":"VLOOKUP(B76:B431,'[1]CONTRATACION MARZO '!$B$2:$AB$431,27,0)","v":"https://www.contratos.gov.co/consultas/detalleProceso.do?numConstancia=20-4-10587978"}]
[76,1043142073,"DORALIZ ECHEVERRI PEREZ","0957","0957-2020","GESTION DOCUMENTAL"," 02 de marzo de 2020  "," 31 de marzo de 2020",1500000,1500000,"FABIAN COLPAS","JEFE  TALENTO  HUMANO",1184,2065,"2020-03-16",{"$f":"VLOOKUP(B77:B431,'[1]CONTRATACION MARZO '!$B$2:$AB$431,27,0)","v":"https://www.contratos.gov.co/consultas/detalleProceso.do?numConstancia=20-4-10587988"}]
[77,32769312,"DORIS PADILLA MOLINA ","0958","0958-2020","AUXILIAR DE ODONTOLOGIA"," 02 de marzo de 2020  "," 31 de marzo de 2020",1166000,1166000,"BETTY PERTUZ ","SUBGERENCIA CIENTIFICA",1185,2066,"2020-03-16",{"$f":"VLOOKUP(B78:B431,'[1]CONTRATACION MARZO '!$B$2:$AB$431,27,0)","v":"https://www.contratos.gov.co/consultas/detalleProceso.do?numConstancia=20-4-10588024"}]
[78,22647051,"EDELMIRA DUQUE LAMADRID","0959","0959-2020","FISIOTERAPEUTA "," 02 de marzo de 2020  "," 31 de marzo de 2020",1900000,1900000,"CARLOS VISBAL JIMENEZ","COORD CENTRO DE SALUD",1186,2067,"2020-03-16",{"$f":"VLOOKUP(B79:B431,'[1]CONTRATACION MARZO '!$B$2:$AB$431,27,0)","v":"https://www.contratos.gov.co/consultas/detalleProceso.do?numConstancia=20-4-10588043"}]
[79,8735248,"EDGAR CERVANTES MELGAREJO","0960","0960-2020","MEDICO P Y P "," 02 de marzo de 2020  "," 31 de marzo de 2020",2120000,2120000,"WILFRAN JIMENEZ DE LA PEÑA","COORD CENTRO DE SALUD",1187,2068,"2020-03-16",{"$f":"VLOOKUP(B80:B431,'[1]CONTRATACION MARZO '!$B$2:$AB$431,27,0)","v":"https://www.contratos.gov.co/consultas/detalleProceso.do?numConstancia=20-4-10588058"}]
[80,72181563,"EDGARDO THORNE GLENN","0961","0961-2020","ODONTOLOGO"," 02 de marzo de 2020  "," 31 de marzo de 2020",1900000,1900000,"WILFRAN JIMENEZ DE LA PEÑA","COORD CENTRO DE SALUD",1188,2069,"2020-03-16",{"$f":"VLOOKUP(B81:B431,'[1]CONTRATACION MARZO '!$B$2:$AB$431,27,0)","v":"https://www.contratos.gov.co/consultas/detalleProceso.do?numConstancia=20-4-10588080"}]
[81,78302933,"EDIE JAIR GIL","0962","0962-2020","TECNOLOGO EN RADIOLOGIA"," 02 de marzo de 2020  "," 31 de marzo de 2020",1500000,1500000,"WILFRAN JIMENEZ DE LA PEÑA","COORD CENTRO DE SALUD",1189,2070,"2020-03-16",{"$f":"VLOOKUP(B82:B431,'[1]CONTRATACION MARZO '!$B$2:$AB$431,27,0)","v":"https://www.contratos.gov.co/consultas/detalleProceso.do?numConstancia=20-4-10588096"}]
[82,1045700355,"EDUARDO LUIS PAUTH HERNANDEZ","0963","0963-2020","MEDICO CONSULTA EXTERNA "," 02 de marzo de 2020  "," 31 de marzo de 2020",3180000,3180000,"BETTY PERTUZ ","SUBGERENCIA CIENTIFICA",1190,2071,"2020-03-16",{"$f":"VLOOKUP(B83:B431,'[1]CONTRATACION MARZO '!$B$2:$AB$431,27,0)","v":"https://www.contratos.gov.co/consultas/detalleProceso.do?numConstancia=20-4-10588119"}]
[83,8734956,"EFRAIN CANTILLO GUERRERO","0964","0964-2020","CONDUCTOR DE AMBULANCIA"," 02 de marzo de 2020  "," 31 de marzo de 2020",1800000,1800000,"BETTY PERTUZ ","SUBGERENCIA CIENTIFICA",1191,2072,"2020-03-16",{"$f":"VLOOKUP(B84:B431,'[1]CONTRATACION MARZO '!$B$2:$AB$431,27,0)","v":"https://www.contratos.gov.co/consultas/detalleProceso.do?numConstancia=20-4-10588167"}]
[84,8750161,"EFRAIN DE LA HOZ ROCHEL","0965","0965-2020","MEDICO DE URGENCIA"," 02 de marzo de 2020  "," 31 de marzo de 2020",2560000,2560000,"WILFRAN JIMENEZ DE LA PEÑA","COORD CENTRO DE SALUD",1192,2073,"2020-03-16",{"$f":"VLOOKUP(B85:B431,'[1]CONTRATACION MARZO '!$B$2:$AB$431,27,0)","v":"https://www.contratos.gov.co/consultas/detalleProceso.do?numConstancia=20-4-10588234"}]
[85,22704983,"EGUIS ODILA ROLONG LAGUNA","0966","0966-2020","ABOGADO EXTERNO"," 02 de marzo de 2020  "," 31 de marzo de 2020",4000000,4000000,"FABIAN COLPAS","JEFE  TALENTO  HUMANO",1193,2074,"2020-03-16",{"$f":"VLOOKUP(B86:B431,'[1]CONTRATACION MARZO '!$B$2:$AB$431,27,0)","v":"https://www.contratos.gov.co/consultas/detalleProceso.do?numConstancia=20-4-10588245"}]
[86,1045675420,"EIBANIA MOLINA VENERA","0967","0967-2020","AUXILIAR DE ENFERMERIA URGENCIAS"," 02 de marzo de 2020  "," 31 de marzo de 2020",1378000,1378000,"WILFRAN JIMENEZ DE LA PEÑA","COORD CENTRO DE SALUD",1194,2075,"2020-03-16",{"$f":"VLOOKUP(B87:B431,'[1]CONTRATACION MARZO '!$B$2:$AB$431,27,0)","v":"https://www.contratos.gov.co/consultas/detalleProceso.do?numConstancia=20-4-10588258"}]
[87,22570149,"ELENA BAENA PEÑA","0968","0968-2020","AUXILIAR DE FACTURACION URGENCIA"," 02 de marzo de 2020  "," 31 de marzo de 2020",1400000,1400000,"SANDRA SANMARTIN","SUBGERENCIA ADMINISTRATIVA",1195,2076,"2020-03-16",{"$f":"VLOOKUP(B88:B431,'[1]CONTRATACION MARZO '!$B$2:$AB$431,27,0)","v":"https://www.contratos.gov.co/consultas/detalleProceso.do?numConstancia=20-4-10588280"}]
[88,32772038,"ELIANA BEATRIZ ABRIL DE LA ROSA ","0969","0969-2020","AUXILIAR ADMINISTRATIVO - RECURSOS HUMANOS  "," 02 de marzo de 2020  "," 31 de marzo de 2020",1900000,1900000,"FABIAN COLPAS","JEFE  TALENTO  HUMANO",1196,2077,"2020-03-16",{"$f":"VLOOKUP(B89:B431,'[1]CONTRATACION MARZO '!$B$2:$AB$431,27,0)","v":"https://www.contratos.gov.co/consultas/detalleProceso.do?numConstancia=20-4-10588355"}]
[89,32787164,"ELIANA CONSTANZA ARTETA HOYOS","0970","0970-2020","CONTADOR"," 02 de marzo de 2020  "," 31 de marzo de 2020",4000000,4000000,"SANDRA SANMARTIN","SUBGERENCIA ADMINISTRATIVA",1197,2078,"2020-03-16",{"$f":"VLOOKUP(B90:B431,'[1]CONTRATACION MARZO '!$B$2:$AB$431,27,0)","v":"https://www.contratos.gov.co/consultas/detalleProceso.do?numConstancia=20-4-10588393"}]
[90,8762665,"ELIECER DE JESUS CALLE QUINTERO","0971","0971-2020","TECNICO ALMACEN "," 02 de marzo de 2020  "," 31 de marzo de 2020",1900000,1900000,"MARIA SANCHEZ AYALA","JEFE DE ALMACEN",1198,2079,"2020-03-16",{"$f":"VLOOKUP(B91:B431,'[1]CONTRATACION MARZO '!$B$2:$AB$431,27,0)","v":"https://www.contratos.gov.co/consultas/detalleProceso.do?numConstancia=20-4-10590292"}]
[91,8633055,"ELIECER POLO CASTRO ","0972","0972-2020","ABOGADO EXTERNO"," 02 de marzo de 2020  "," 31 de marzo de 2020",5800000,5800000,"ORNELLA FIORENTINO ","JEFE DE JURIDICA",1199,2080,"2020-03-16",{"$f":"VLOOKUP(B92:B431,'[1]CONTRATACION MARZO '!$B$2:$AB$431,27,0)","v":"https://www.contratos.gov.co/consultas/detalleProceso.do?numConstancia=20-4-10590298"}]
[92,1007045398,"ELIEZER VEGA ARAGON","0973","0973-2020","AUXILIAR DE ARCHIVO "," 02 de marzo de 2020  "," 31 de marzo de 2020",1500000,1500000,"SANDRA SANMARTIN","SUBGERENCIA ADMINISTRATIVA",1200,2081,"2020-03-16",{"$f":"VLOOKUP(B93:B431,'[1]CONTRATACION MARZO '!$B$2:$AB$431,27,0)","v":"https://www.contratos.gov.co/consultas/detalleProceso.do?numConstancia=20-4-10590298"}]
[93,32871139,"ELLA VIZCAINO SENIOR","0974","0974-2020","ENFERMERA JEFE "," 02 de marzo de 2020  "," 31 de marzo de 2020",2300000,2300000,"NILSA ARIZA MARQUEZ","COORDINADOR PYP",1201,2082,"2020-03-16",{"$f":"VLOOKUP(B94:B431,'[1]CONTRATACION MARZO '!$B$2:$AB$431,27,0)","v":"https://www.contratos.gov.co/consultas/detalleProceso.do?numConstancia=20-4-10590305"}]
[94,32583401,"ELSY LIZETH CHARRIS CONTRERAS","0975","0975-2020","MEDICO CONSULTA EXTERNA"," 02 de marzo de 2020  "," 31 de marzo de 2020",2120000,2120000,"VICTOR MIRANDA","COORD CENTRO DE SALUD",1202,2083,"2020-03-16",{"$f":"VLOOKUP(B95:B431,'[1]CONTRATACION MARZO '!$B$2:$AB$431,27,0)","v":"https://www.contratos.gov.co/consultas/detalleProceso.do?numConstancia=20-4-10590324"}]
[95,1042436156,"EMELY ESCORCIA MARTINEZ","0976","0976-2020","ENFERMERA JEFE URGENCIAS "," 02 de marzo de 2020  "," 31 de marzo de 2020",1900000,1900000,"SERGIO BOVEA MARIN","COORD CENTRO DE SALUD",1203,2084,"2020-03-16",{"$f":"VLOOKUP(B96:B431,'[1]CONTRATACION MARZO '!$B$2:$AB$431,27,0)","v":"https://www.contratos.gov.co/consultas/detalleProceso.do?numConstancia=20-4-10590338"}]
[96,22693401,"EMILIA ANTONIA BARCELO DE PARRA","0977","0977-2020","AUXILIAR SERVICIOS GENERALES URGENCIA"," 02 de marzo de 2020  "," 31 de marzo de 2020",1378000,1378000,"SERGIO BOVEA MARIN","COORD CENTRO DE SALUD",1204,2085,"2020-03-16",{"$f":"VLOOKUP(B97:B431,'[1]CONTRATACION MARZO '!$B$2:$AB$431,27,0)","v":"https://www.contratos.gov.co/consultas/detalleProceso.do?numConstancia=20-4-10590345"}]
[97,1140831753,"ENNY CAROLINA ROCHA HERNANDEZ","0978","0978-2020","ABOGADO EXTERNO"," 02 de marzo de 2020  "," 31 de marzo de 2020",5000000,5000000,"ORNELLA FIORENTINO ","JEFE DE JURIDICA",1205,2086,"2020-03-16",{"$f":"VLOOKUP(B98:B431,'[1]CONTRATACION MARZO '!$B$2:$AB$431,27,0)","v":"https://www.contratos.gov.co/consultas/detalleProceso.do?numConstancia=20-4-10590355"}]
[{"$f":"+A98+1","v":98},8718276,"ENRIQUE PACHECO PACHECO ","0979","0979-2020","MEDICO DE URGENCIA"," 02 de marzo de 2020  "," 31 de marzo de 2020",2560000,2560000,"WILFRAN JIMENEZ DE LA PEÑA","COORD CENTRO DE SALUD",1206,2087,"2020-03-16",{"$f":"VLOOKUP(B99:B431,'[1]CONTRATACION MARZO '!$B$2:$AB$431,27,0)","v":"https://www.contratos.gov.co/consultas/detalleProceso.do?numConstancia=20-4-10590376"}]
[99,32866006,"ERIKA ASCENCIO MARQUEZ","0980","0980-2020","AUXILIAR ADMINISTRATIVO "," 02 de marzo de 2020  "," 31 de marzo de 2020",3500000,3500000,"ORNELLA FIORENTINO ","JEFE DE JURIDICA",1207,2088,"2020-03-16",{"$f":"VLOOKUP(B100:B431,'[1]CONTRATACION MARZO '!$B$2:$AB$431,27,0)","v":"https://www.contratos.gov.co/consultas/detalleProceso.do?numConstancia=20-4-10590388"}]
[100,1143147791,"ERNESTO JUNIOR ROJANO MEZA","0981","0981-2020","TECNOLOGO EN RADIOLOGIA"," 02 de marzo de 2020  "," 31 de marzo de 2020",1500000,1500000,"WILFRAN JIMENEZ DE LA PEÑA","COORD CENTRO DE SALUD",1208,2089,"2020-03-16",{"$f":"VLOOKUP(B101:B431,'[1]CONTRATACION MARZO '!$B$2:$AB$431,27,0)","v":"https://www.contratos.gov.co/consultas/detalleProceso.do?numConstancia=20-4-10590401"}]
[101,22732766,"ESMIRIS MARIA JIMENEZ GOMEZ","0982","0982-2020","AUXILIAR SERVICIOS GENERALES"," 02 de marzo de 2020  "," 31 de marzo de 2020",1215000,1215000,"YARELIS GUERRA CORREA","COORD CENTRO DE SALUD",1209,2090,"2020-03-16",{"$f":"VLOOKUP(B102:B431,'[1]CONTRATACION MARZO '!$B$2:$AB$431,27,0)","v":"https://www.contratos.gov.co/consultas/detalleProceso.do?numConstancia=20-4-10590413"}]
[102,32821813,"ESPERANZA OROZCO MORENO","0983","0983-2020","AUXILIAR DE ENFERMERIA URGENCIAS"," 02 de marzo de 2020  "," 31 de marzo de 2020",1378000,1378000,"SERGIO BOVEA MARIN","COORD CENTRO DE SALUD",1210,2091,"2020-03-16",{"$f":"VLOOKUP(B103:B431,'[1]CONTRATACION MARZO '!$B$2:$AB$431,27,0)","v":"https://www.contratos.gov.co/consultas/detalleProceso.do?numConstancia=20-4-10590419"}]
[103,44157204,"ESTHER CECILIA SOLANO BARROS","0984","0984-2020","MEDICO DE URGENCIA"," 02 de marzo de 2020  "," 31 de marzo de 2020",2560000,2560000,"WILFRAN JIMENEZ DE LA PEÑA","COORD CENTRO DE SALUD",1211,2092,"2020-03-16",{"$f":"VLOOKUP(B104:B431,'[1]CONTRATACION MARZO '!$B$2:$AB$431,27,0)","v":"https://www.contratos.gov.co/consultas/detalleProceso.do?numConstancia=20-4-10590433"}]
[104,33107141,"ESTELA MARÍA SOLANO YEPEZ","0985","0985-2020","VACUNADORA"," 02 de marzo de 2020  "," 21 de  marzo de 2020",933333,933333,"NILSA ARIZA MARQUEZ","COORDINADOR PYP",1212,2093,"2020-03-16",{"$f":"VLOOKUP(B105:B431,'[1]CONTRATACION MARZO '!$B$2:$AB$431,27,0)","v":"https://www.contratos.gov.co/consultas/detalleProceso.do?numConstancia=20-4-10590453"}]
[105,44150678,"EUCARIS DEL CARMEN RAMBAO NIEBLES","0986","0986-2020","MEDICO CONSULTA EXTERNA "," 02 de marzo de 2020  "," 31 de marzo de 2020",2120000,2120000,"VICTOR MIRANDA","COORD CENTRO DE SALUD",1213,2094,"2020-03-16",{"$f":"VLOOKUP(B106:B431,'[1]CONTRATACION MARZO '!$B$2:$AB$431,27,0)","v":"https://www.contratos.gov.co/consultas/detalleProceso.do?numConstancia=20-4-10590477"}]
[106,60311278,"EVA FLOREZ PARRA ","0987","0987-2020","MÉDICO CONSULTA EXTERNA Y APOYO A LA COORDINACIÓN MÉDICA"," 02 de marzo de 2020  "," 31 de marzo de 2020",2500000,2500000,"AIX PALACIO","COORD CENTRO DE SALUD",1214,2095,"2020-03-16",{"$f":"VLOOKUP(B107:B431,'[1]CONTRATACION MARZO '!$B$2:$AB$431,27,0)","v":"https://www.contratos.gov.co/consultas/detalleProceso.do?numConstancia=20-4-10590499"}]
[107,32583911,"EVA ISABEL ROSALES NAVARRO","0988","0988-2020","ASESOR GERENCIA"," 02 de marzo de 2020  "," 31 de marzo de 2020",5000000,5000000,"ROSA MADERA","GERENTE",1215,2096,"2020-03-16",{"$f":"VLOOKUP(B108:B431,'[1]CONTRATACION MARZO '!$B$2:$AB$431,27,0)","v":"https://www.contratos.gov.co/consultas/detalleProceso.do?numConstancia=20-4-10590721"}]
[108,1074712390,"EVELIN CRISTINA ZULETA SANCHEZ ","0989","0989-2020","ENFERMERA JEFE P Y P"," 02 de marzo de 2020  "," 31 de marzo de 2020",2300000,2300000,"NILSA ARIZA MARQUEZ","COORDINADOR PYP",1216,2097,"2020-03-16",{"$f":"VLOOKUP(B109:B431,'[1]CONTRATACION MARZO '!$B$2:$AB$431,27,0)","v":"https://www.contratos.gov.co/consultas/detalleProceso.do?numConstancia=20-4-10590734"}]
[109,72170268,"FABIAN FERNANDO MERCADO","0990","0990-2020","DIGITADOR PAI WEB "," 02 de marzo de 2020  "," 31 de marzo de 2020",1905000,1905000,"NILSA ARIZA MARQUEZ","COORDINADOR PYP",1217,2098,"2020-03-16",{"$f":"VLOOKUP(B110:B431,'[1]CONTRATACION MARZO '!$B$2:$AB$431,27,0)","v":"https://www.contratos.gov.co/consultas/detalleProceso.do?numConstancia=20-4-10590752"}]
[110,8705578,"FERMIN NAVARRO STEFANELL","0991","0991-2020","GINECOLOGO"," 02 de marzo de 2020  "," 31 de marzo de 2020",8000000,8000000,"NILSA ARIZA MARQUEZ","COORDINADOR PYP",1218,2099,"2020-03-16",{"$f":"VLOOKUP(B111:B431,'[1]CONTRATACION MARZO '!$B$2:$AB$431,27,0)","v":"https://www.contratos.gov.co/consultas/detalleProceso.do?numConstancia=20-4-10590787"}]
[111,1129520650,"FERNANDO LUIS CERA DIAZ","0992","0992-2020","MEDICO DE URGENCIA"," 02 de marzo de 2020  "," 31 de marzo de 2020",2560000,2560000,"WILFRAN JIMENEZ DE LA PEÑA","COORD CENTRO DE SALUD",1219,2100,"2020-03-16",{"$f":"VLOOKUP(B112:B431,'[1]CONTRATACION MARZO '!$B$2:$AB$431,27,0)","v":"https://www.contratos.gov.co/consultas/detalleProceso.do?numConstancia=20-4-10590824"}]
[112,44159527,"FLORINDA DE LA HOZ PACHECO ","0993","0993-2020","ENFERMERA JEFE P Y P"," 02 de marzo de 2020  "," 31 de marzo de 2020",2300000,2300000,"NILSA ARIZA MARQUEZ","COORDINADOR PYP",1220,2101,"2020-03-16",{"$f":"VLOOKUP(B113:B431,'[1]CONTRATACION MARZO '!$B$2:$AB$431,27,0)","v":"https://www.contratos.gov.co/consultas/detalleProceso.do?numConstancia=20-4-10591035"}]
[113,72328953,"FRANCISCO ALCIDES CARRANZA MENDOZA","0994","0994-2020","AUXILIAR RECURSOS FISICOS "," 02 de marzo de 2020  "," 13 de marzo de 2020",760000,760000,"SANDRA SANMARTIN","SUBGERENCIA ADMINISTRATIVA",1221,2102,"2020-03-16",{"$f":"VLOOKUP(B114:B431,'[1]CONTRATACION MARZO '!$B$2:$AB$431,27,0)","v":"https://www.contratos.gov.co/consultas/detalleProceso.do?numConstancia=20-4-10591066"}]
[114,8507198,"FRANCISCO PEÑALOZA PEREZ","0995","0995-2020","MEDICO CONSULTA EXTERNA "," 02 de marzo de 2020  "," 31 de marzo de 2020",2120000,2120000,"LUIS GRANADOS GOMEZ","COORD CENTRO DE SALUD",1222,2103,"2020-03-16",{"$f":"VLOOKUP(B115:B431,'[1]CONTRATACION MARZO '!$B$2:$AB$431,27,0)","v":"https://www.contratos.gov.co/consultas/detalleProceso.do?numConstancia=20-4-10591107"}]
[115,8750355,"FREDDY BARCELO DONADO","0996","0996-2020","AUXILIAR DE ARCHIVO "," 02 de marzo de 2020  "," 31 de marzo de 2020",1500000,1500000,"SANDRA SANMARTIN","SUBGERENCIA ADMINISTRATIVA",1223,2104,"2020-03-16",{"$f":"VLOOKUP(B116:B431,'[1]CONTRATACION MARZO '!$B$2:$AB$431,27,0)","v":"https://www.contratos.gov.co/consultas/detalleProceso.do?numConstancia=20-4-10591126"}]
[116,9132998,"GABRIEL ARIAS RAMIREZ","0997","0997-2020","QUIMICO FARMACEUTICO"," 02 de marzo de 2020  "," 31 de marzo de 2020",3000000,3000000,"BETTY PERTUZ ","SUBGERENCIA CIENTIFICA",1224,2105,"2020-03-16",{"$f":"VLOOKUP(B117:B431,'[1]CONTRATACION MARZO '!$B$2:$AB$431,27,0)","v":"https://www.contratos.gov.co/consultas/detalleProceso.do?numConstancia=20-4-10591149"}]
[117,1042416953,"GABRIEL JOSE MONTIEL CERVANTES","0998","0998-2020","COORDINADOR DE HARDWARE"," 02 de marzo de 2020  "," 31 de marzo de 2020",3000000,3000000,"ZULI ROMERO","COORDINADORA  TIC",1225,2106,"2020-03-16",{"$f":"VLOOKUP(B118:B431,'[1]CONTRATACION MARZO '!$B$2:$AB$431,27,0)","v":"https://www.contratos.gov.co/consultas/detalleProceso.do?numConstancia=20-4-10591243"}]
[118,32756610,"GENNY GUZMAN NAVARRO","0999","0999-2020","MEDICO DE URGENCIA"," 02 de marzo de 2020  "," 31 de marzo de 2020",2560000,2560000,"WILFRAN JIMENEZ DE LA PEÑA","COORD CENTRO DE SALUD",1226,2107,"2020-03-16",{"$f":"VLOOKUP(B119:B431,'[1]CONTRATACION MARZO '!$B$2:$AB$431,27,0)","v":"https://www.contratos.gov.co/consultas/detalleProceso.do?numConstancia=20-4-10591279"}]
[119,"8.756.266","GEOVANNY ESCORCIA JIMENEZ","1000","1000-2020","AUXILIAR DE ARCHIVO "," 02 de marzo de 2020  "," 31 de marzo de 2020",1500000,1500000,"SANDRA SANMARTIN","SUBGERENCIA ADMINISTRATIVA",1227,2108,"2020-03-16",{"$f":"VLOOKUP(B120:B431,'[1]CONTRATACION MARZO '!$B$2:$AB$431,27,0)","v":"https://www.contratos.gov.co/consultas/detalleProceso.do?numConstancia=20-4-10591315"}]
[120,1042448309,"GERALDINE ALEXANDRA MEDRANO IGLESIAS","1001","1001-2020","AUXILIAR DE ARCHIVO "," 02 de marzo de 2020  "," 31 de marzo de 2020",1500000,1500000,"SANDRA SANMARTIN","SUBGERENCIA ADMINISTRATIVA",1228,2109,"2020-03-16",{"$f":"VLOOKUP(B121:B431,'[1]CONTRATACION MARZO '!$B$2:$AB$431,27,0)","v":"https://www.contratos.gov.co/consultas/detalleProceso.do?numConstancia=20-4-10591330"}]
[121,1042448518,"GIANINA ANDREA GRAVINI DE LA HOZ","1002","1002-2020","MEDICO DE URGENCIA"," 02 de marzo de 2020  "," 31 de marzo de 2020",2560000,2560000,"WILFRAN JIMENEZ DE LA PEÑA","COORD CENTRO DE SALUD",1229,2110,"2020-03-16",{"$f":"VLOOKUP(B122:B431,'[1]CONTRATACION MARZO '!$B$2:$AB$431,27,0)","v":"https://www.contratos.gov.co/consultas/detalleProceso.do?numConstancia=20-4-10591357"}]
[122,1042448135,"GISELLA CAMILA ACOSTA SEGURA","1003","1003-2020","AUXILIAR SERVICIOS AMIGABLES "," 02 de marzo de 2020  "," 31 de marzo de 2020",1500000,1500000,"LUIS GRANADOS GOMEZ","COORD CENTRO DE SALUD",1230,2111,"2020-03-16",{"$f":"VLOOKUP(B123:B431,'[1]CONTRATACION MARZO '!$B$2:$AB$431,27,0)","v":"https://www.contratos.gov.co/consultas/detalleProceso.do?numConstancia=20-4-10591373"}]
[123,44156926,"GLADYS CECILIA ESCALANTE FERRER","1004","1004-2020","ODONTOLOGO"," 02 de marzo de 2020  "," 31 de marzo de 2020",1900000,1900000,"DIANA MARTINEZ PACHECO","COORD CENTRO DE SALUD",1231,2112,"2020-03-16",{"$f":"VLOOKUP(B124:B431,'[1]CONTRATACION MARZO '!$B$2:$AB$431,27,0)","v":"https://www.contratos.gov.co/consultas/detalleProceso.do?numConstancia=20-4-10591393"}]
[124,49555306,"GLADYS DIAZ MARIN","1005","1005-2020","AUXILIAR DE FACTURACION URGENCIA"," 02 de marzo de 2020  "," 31 de marzo de 2020",1400000,1400000,"SANDRA SANMARTIN","SUBGERENCIA ADMINISTRATIVA",1232,2113,"2020-03-16",{"$f":"VLOOKUP(B125:B431,'[1]CONTRATACION MARZO '!$B$2:$AB$431,27,0)","v":"https://www.contratos.gov.co/consultas/detalleProceso.do?numConstancia=20-4-10591405"}]
[125,24341220,"GLADYS OTALVARO BOTERO","1006","1006-2020","AGENTE CALL CENTER"," 02 de marzo de 2020  "," 31 de marzo de 2020",1378000,1378000,"WILFRAN JIMENEZ DE LA PEÑA","COORD CENTRO DE SALUD",1233,2114,"2020-03-16",{"$f":"VLOOKUP(B126:B431,'[1]CONTRATACION MARZO '!$B$2:$AB$431,27,0)","v":"https://www.contratos.gov.co/consultas/detalleProceso.do?numConstancia=20-4-10591421"}]
[126,22644596,"GRACIELA BUSTOS RIVEROS","1007","1007-2020","AUXILIAR ADMINISTRATIVO DE FACTURACIÒN"," 02 de marzo de 2020  "," 31 de marzo de 2020",1600000,1600000,"SANDRA SANMARTIN","SUBGERENCIA ADMINISTRATIVA",1234,2115,"2020-03-16",{"$f":"VLOOKUP(B127:B431,'[1]CONTRATACION MARZO '!$B$2:$AB$431,27,0)","v":"https://www.contratos.gov.co/consultas/detalleProceso.do?numConstancia=20-4-10591476"}]
[127,30568187,"HAIDE MEJIA PRADO","1008","1008-2020","AUXILIAR SERVICIOS GENERALES URGENCIA"," 02 de marzo de 2020  "," 31 de marzo de 2020",1378000,1378000,"WILFRAN JIMENEZ DE LA PEÑA","COORD CENTRO DE SALUD",1235,2116,"2020-03-16",{"$f":"VLOOKUP(B128:B431,'[1]CONTRATACION MARZO '!$B$2:$AB$431,27,0)","v":"https://www.contratos.gov.co/consultas/detalleProceso.do?numConstancia=20-4-10591497"}]
[128,44154490,"HEIDY LUZ CARRILLO DIAZ","1009","1009-2020","AUXILIAR ADMINISTRATIVO DE FACTURACIÒN"," 02 de marzo de 2020  "," 31 de marzo de 2020",1900000,1900000,"LUIS GRANADOS GOMEZ","COORD CENTRO DE SALUD",1236,2117,"2020-03-16",{"$f":"VLOOKUP(B129:B431,'[1]CONTRATACION MARZO '!$B$2:$AB$431,27,0)","v":"https://www.contratos.gov.co/consultas/detalleProceso.do?numConstancia=20-4-10591517"}]
[129,1042440903,"HEIDY MARTINEZ GUTIERREZ","1010","1010-2020","AUXILIAR DE FACTURACION URGENCIA"," 02 de marzo de 2020  "," 31 de marzo de 2020",1400000,{"$f":"I130*1","v":1400000},"SANDRA SANMARTIN","SUBGERENCIA ADMINISTRATIVA",1237,2118,"2020-03-16",{"$f":"VLOOKUP(B130:B431,'[1]CONTRATACION MARZO '!$B$2:$AB$431,27,0)","v":"https://www.contratos.gov.co/consultas/detalleProceso.do?numConstancia=20-4-10591543"}]
[{"$f":"+A130+1","v":130},1045670289,"HOLMAN ALEXANDER AVILA FERNANDEZ","1011","1011-2020","FACTURACION CENTRAL"," 02 de marzo de 2020  "," 31 de marzo de 2020",2500000,2500000,"SANDRA SANMARTIN","SUBGERENCIA ADMINISTRATIVA",1238,2119,"2020-03-16",{"$f":"VLOOKUP(B131:B431,'[1]CONTRATACION MARZO '!$B$2:$AB$431,27,0)","v":"https://www.contratos.gov.co/consultas/detalleProceso.do?numConstancia=20-4-10591566"}]
[131,72227312,"HUGO CHARRIS PEREZ","1012","1012-2020","AUXILIAR DE ARCHIVO "," 02 de marzo de 2020  "," 31 de marzo de 2020",1500000,1500000,"SANDRA SANMARTIN","SUBGERENCIA ADMINISTRATIVA",1239,2120,"2020-03-16",{"$f":"VLOOKUP(B132:B431,'[1]CONTRATACION MARZO '!$B$2:$AB$431,27,0)","v":"https://www.contratos.gov.co/consultas/detalleProceso.do?numConstancia=20-4-10591579"}]
[132,72045976,"HUMBERTO ZACARIAS CADAVID ALDANA","1013","1013-2020","ASESOR GERENCIA"," 02 de marzo de 2020  "," 31 de marzo de 2020",4000000,4000000,"ROSA MADERA","GERENTE",1240,2121,"2020-03-16",{"$f":"VLOOKUP(B133:B431,'[1]CONTRATACION MARZO '!$B$2:$AB$431,27,0)","v":"https://www.contratos.gov.co/consultas/detalleProceso.do?numConstancia=20-4-10591596"}]
[133,33005079,"IDALMIS NAVARRO ARROYO","1014","1014-2020","AUXILIAR SERVICIOS GENERALES URGENCIA"," 02 de marzo de 2020  "," 31 de marzo de 2020",1378000,1378000,"WILFRAN JIMENEZ DE LA PEÑA","COORD CENTRO DE SALUD",1241,2122,"2020-03-16",{"$f":"VLOOKUP(B134:B431,'[1]CONTRATACION MARZO '!$B$2:$AB$431,27,0)","v":"https://www.contratos.gov.co/consultas/detalleProceso.do?numConstancia=20-4-10591621"}]
[134,1129571476,"ILIANA MATOS RAMOS","1015","1015-2020","ABOGADO EXTERNO"," 02 de marzo de 2020  "," 31 de marzo de 2020",4000000,4000000,"ORNELLA FIORENTINO ","JEFE DE JURIDICA",1242,2123,"2020-03-16",{"$f":"VLOOKUP(B135:B431,'[1]CONTRATACION MARZO '!$B$2:$AB$431,27,0)","v":"https://www.contratos.gov.co/consultas/detalleProceso.do?numConstancia=20-4-10591652"}]
[135,32861543,"INGRID NAVARRO CARRILLO","1016","1016-2020","FISIOTERAPEUTA "," 02 de marzo de 2020  "," 31 de marzo de 2020",5800000,5800000,"SERGIO BOVEA MARIN","COORD CENTRO DE SALUD",1243,2124,"2020-03-16",{"$f":"VLOOKUP(B136:B431,'[1]CONTRATACION MARZO '!$B$2:$AB$431,27,0)","v":"https://www.contratos.gov.co/consultas/detalleProceso.do?numConstancia=20-4-10591668"}]
[136,1003265428,"ISABEL CURIEL CORTINA","1017","1017-2020","GESTION DOCUMENTAL JURIDICA"," 02 de marzo de 2020  "," 31 de marzo de 2020",1270000,1270000,"ORNELLA FIORENTINO ","JEFE DE JURIDICA",1244,2125,"2020-03-16",{"$f":"VLOOKUP(B137:B431,'[1]CONTRATACION MARZO '!$B$2:$AB$431,27,0)","v":"ttps://www.contratos.gov.co/consultas/detalleProceso.do?numConstancia=20-4-10591698"}]
[137,72428579,"IVAN ANDRES DOMINGUEZ SAGBINI","1018","1018-2020","GINECOLOGO "," 02 de marzo de 2020  "," 31 de marzo de 2020",8000000,8000000,"NILSA ARIZA MARQUEZ","COORDINADOR PYP",1245,2126,"2020-03-16",{"$f":"VLOOKUP(B138:B431,'[1]CONTRATACION MARZO '!$B$2:$AB$431,27,0)","v":"https://www.contratos.gov.co/consultas/detalleProceso.do?numConstancia=20-4-10591719"}]
[138,1042447104,"IVOR ANDRES SANJUAN PEREZ","1019","1019-2020","AUXILIAR RECURSOS FISICOS "," 02 de marzo de 2020  "," 31 de marzo de 2020",1900000,1900000,"SANDRA SANMARTIN","SUBGERENCIA ADMINISTRATIVA",1246,2127,"2020-03-16",{"$f":"VLOOKUP(B139:B431,'[1]CONTRATACION MARZO '!$B$2:$AB$431,27,0)","v":"https://www.contratos.gov.co/consultas/detalleProceso.do?numConstancia=20-4-10591753"}]
[139,8495176,"JAIME ALBERTO ALVAREZ NORIEGA","1020","1020-2020","INGENIERO AMBIENTAL"," 02 de marzo de 2020  "," 31 de marzo de 2020",3000000,3000000,"SANDRA SANMARTIN","SUBGERENCIA ADMINISTRATIVA",1247,2128,"2020-03-16",{"$f":"VLOOKUP(B140:B431,'[1]CONTRATACION MARZO '!$B$2:$AB$431,27,0)","v":"https://www.contratos.gov.co/consultas/detalleProceso.do?numConstancia=20-4-10591806"}]
[140,72429926,"JAIRO ESCOBAR ROMERO","1021","1021-2020","MEDICO DE URGENCIA"," 02 de marzo de 2020  "," 31 de marzo de 2020",2560000,2560000,"WILFRAN JIMENEZ DE LA PEÑA","COORD CENTRO DE SALUD",1248,2129,"2020-03-16",{"$f":"VLOOKUP(B141:B431,'[1]CONTRATACION MARZO '!$B$2:$AB$431,27,0)","v":"https://www.contratos.gov.co/consultas/detalleProceso.do?numConstancia=20-4-10591869"}]
[141,32874188,"JALICSSA ARRIETA ORTEGA","1022","1022-2020","PSICOLOGA"," 02 de marzo de 2020  "," 31 de marzo de 2020",3000000,3000000,"BETTY PERTUZ ","SUBGERENCIA CIENTIFICA",1249,2130,"2020-03-16",{"$f":"VLOOKUP(B142:B431,'[1]CONTRATACION MARZO '!$B$2:$AB$431,27,0)","v":"https://www.contratos.gov.co/consultas/detalleProceso.do?numConstancia=20-4-10591880"}]
[142,32703101,"JANETH DEL CARMEN GUZMAN CANTILLO","1023","1023-2020","COORDINADOR DE FACTURACION"," 02 de marzo de 2020  "," 31 de marzo de 2020",1600000,1600000,"YARELIS GUERRA CORREA","COORD CENTRO DE SALUD",1250,2131,"2020-03-16",{"$f":"VLOOKUP(B143:B431,'[1]CONTRATACION MARZO '!$B$2:$AB$431,27,0)","v":"https://www.contratos.gov.co/consultas/detalleProceso.do?numConstancia=20-4-10591926"}]
[143,26900583,"JANETH JIMENEZ PEÑA","1024","1024-2020","TRABAJADORA SOCIAL "," 02 de marzo de 2020  "," 31 de marzo de 2020",2500000,2500000,"CARLOS VISBAL JIMENEZ","COORD CENTRO DE SALUD",1251,2132,"2020-03-16",{"$f":"VLOOKUP(B144:B431,'[1]CONTRATACION MARZO '!$B$2:$AB$431,27,0)","v":"https://www.contratos.gov.co/consultas/detalleProceso.do?numConstancia=20-4-10591960"}]
[144,72072808,"JARID BERDUGO COBO ","1025","1025-2020","REFERENCIA Y CONTRAREFERENCIA"," 02 de marzo de 2020  "," 31 de marzo de 2020",1480000,1480000,"WILFRAN JIMENEZ DE LA PEÑA","COORD CENTRO DE SALUD",1252,2133,"2020-03-16",{"$f":"VLOOKUP(B145:B431,'[1]CONTRATACION MARZO '!$B$2:$AB$431,27,0)","v":"https://www.contratos.gov.co/consultas/detalleProceso.do?numConstancia=20-4-10592032"}]
[145,8566485,"JAVIER VLADIMIR CASTRO POVEA","1026","1026-2020","ABOGADO - TALENTO HUMANO"," 02 de marzo de 2020  "," 31 de marzo de 2020",5000000,5000000,"FABIAN COLPAS","JEFE  TALENTO  HUMANO",1253,2134,"2020-03-16",{"$f":"VLOOKUP(B146:B431,'[1]CONTRATACION MARZO '!$B$2:$AB$431,27,0)","v":"https://www.contratos.gov.co/consultas/detalleProceso.do?numConstancia=20-4-10592071"}]
[146,1143453456,"JEAN DAVID MONTALVO ZULETA","1027","1027-2020","AGENTE CALL CENTER"," 02 de marzo de 2020  "," 31 de marzo de 2020",1378000,1378000,"WILFRAN JIMENEZ DE LA PEÑA","COORD CENTRO DE SALUD",1254,2135,"2020-03-16",{"$f":"VLOOKUP(B147:B431,'[1]CONTRATACION MARZO '!$B$2:$AB$431,27,0)","v":"https://www.contratos.gov.co/consultas/detalleProceso.do?numConstancia=20-4-10592098"}]
[147,32869709,"JENECIS BARRERA MIRANDA","1028","1028-2020","ENFERMERA MATERNIDAD SEGURA "," 02 de marzo de 2020  "," 31 de marzo de 2020",2300000,2300000,"NILSA ARIZA MARQUEZ","COORDINADOR PYP",1255,2136,"2020-03-16",{"$f":"VLOOKUP(B148:B431,'[1]CONTRATACION MARZO '!$B$2:$AB$431,27,0)","v":"https://www.contratos.gov.co/consultas/detalleProceso.do?numConstancia=20-4-10592120"}]
[148,55349541,"JESSICA MARIA ALMARALES RUIZ","1029","1029-2020","MEDICO DE URGENCIA"," 02 de marzo de 2020  "," 31 de marzo de 2020",2560000,2560000,"WILFRAN JIMENEZ DE LA PEÑA","COORD CENTRO DE SALUD",1256,2137,"2020-03-16",{"$f":"VLOOKUP(B149:B431,'[1]CONTRATACION MARZO '!$B$2:$AB$431,27,0)","v":"https://www.contratos.gov.co/consultas/detalleProceso.do?numConstancia=20-4-10592141"}]
[149,1042444925,"JESUS MORENO DE ALBA","1030","1030-2020","AUXILIAR DE FACTURACION URGENCIA"," 02 de marzo de 2020  "," 31 de marzo de 2020",1400000,1400000,"SANDRA SANMARTIN","SUBGERENCIA ADMINISTRATIVA",1257,2138,"2020-03-16",{"$f":"VLOOKUP(B150:B431,'[1]CONTRATACION MARZO '!$B$2:$AB$431,27,0)","v":"https://www.contratos.gov.co/consultas/detalleProceso.do?numConstancia=20-4-10592153"}]
[150,8740611,"JESUS RECUERO LAMADRID","1031","1031-2020","ORIENTADOR"," 02 de marzo de 2020  "," 31 de marzo de 2020",1270000,1270000,"WILFRAN JIMENEZ DE LA PEÑA","COORD CENTRO DE SALUD",1258,2139,"2020-03-16",{"$f":"VLOOKUP(B151:B431,'[1]CONTRATACION MARZO '!$B$2:$AB$431,27,0)","v":"https://www.contratos.gov.co/consultas/detalleProceso.do?numConstancia=20-4-10592157"}]
[151,44161544,"JHOANA CATALINA SANDOVAL ESCORCIA","1032","1032-2020","ENFERMERA JEFE URGENCIAS "," 02 de marzo de 2020  "," 31 de marzo de 2020",1900000,1900000,"SERGIO BOVEA MARIN","COORD CENTRO DE SALUD",1259,2140,"2020-03-16",{"$f":"VLOOKUP(B152:B431,'[1]CONTRATACION MARZO '!$B$2:$AB$431,27,0)","v":"https://www.contratos.gov.co/consultas/detalleProceso.do?numConstancia=20-4-10592159"}]
[152,1042444832,"JHONNATAN ALFONSO DE LA HOZ BARRIOS","1033","1033-2020","MEDICO CONSULTA EXTERNA "," 02 de marzo de 2020  "," 31 de marzo de 2020",{"$f":"2120000*2","v":4240000},4240000,"AIX PALACIO","COORD CENTRO DE SALUD",1260,2141,"2020-03-16",{"$f":"VLOOKUP(B153:B431,'[1]CONTRATACION MARZO '!$B$2:$AB$431,27,0)","v":"https://www.contratos.gov.co/consultas/detalleProceso.do?numConstancia=20-4-10592165"}]
[153,1043001061,"JOCELIN PAOLA GOMEZ AGUIRRE ","1034","1034-2020","AUXILIAR DE ENFERMERIA"," 02 de marzo de 2020  "," 31 de marzo de 2020",1166000,1166000,"BETTY PERTUZ ","SUBGERENCIA CIENTIFICA",1261,2142,"2020-03-16",{"$f":"VLOOKUP(B154:B431,'[1]CONTRATACION MARZO '!$B$2:$AB$431,27,0)","v":"https://www.contratos.gov.co/consultas/detalleProceso.do?numConstancia=20-4-10592170"}]
[154,1045706679,"JONATHAN ACOSTA MORENO","1035","1035-2020","MEDICO DE URGENCIA"," 02 de marzo de 2020  "," 31 de marzo de 2020",2560000,2560000,"WILFRAN JIMENEZ DE LA PEÑA","COORD CENTRO DE SALUD",1262,2143,"2020-03-16",{"$f":"VLOOKUP(B155:B431,'[1]CONTRATACION MARZO '!$B$2:$AB$431,27,0)","v":"https://www.contratos.gov.co/consultas/detalleProceso.do?numConstancia=20-4-10592175"}]
[155,8754502,"JORGE DE LA HOZ DE LA HOZ","1036","1036-2020","ORIENTADOR"," 02 de marzo de 2020  "," 31 de marzo de 2020",1270000,1270000,"DIANA MARTINEZ PACHECO","COORD CENTRO DE SALUD",1263,2144,"2020-03-16",{"$f":"VLOOKUP(B156:B431,'[1]CONTRATACION MARZO '!$B$2:$AB$431,27,0)","v":"https://www.contratos.gov.co/consultas/detalleProceso.do?numConstancia=20-4-10592181"}]
[156,8776312,"JORGE RIVERA MEZA","1037","1037-2020","AUXILIAR RECURSOS FISICOS "," 02 de marzo de 2020  "," 31 de marzo de 2020",1900000,1900000,"SANDRA SANMARTIN","SUBGERENCIA ADMINISTRATIVA",1264,2145,"2020-03-16",{"$f":"VLOOKUP(B157:B431,'[1]CONTRATACION MARZO '!$B$2:$AB$431,27,0)","v":"https://www.contratos.gov.co/consultas/detalleProceso.do?numConstancia=20-4-10592199"}]
[157,8704073,"JOSE ALFREDO JIMENEZ CASTRO","1038","1038-2020","ORIENTADOR"," 02 de marzo de 2020  "," 31 de marzo de 2020",1270000,1270000,"VICTOR MIRANDA","COORD CENTRO DE SALUD",1265,2146,"2020-03-16",{"$f":"VLOOKUP(B158:B431,'[1]CONTRATACION MARZO '!$B$2:$AB$431,27,0)","v":"https://www.contratos.gov.co/consultas/detalleProceso.do?numConstancia=20-4-10592203"}]
[158,1140855812,"JOSE DAVID NOGUERA SOTO","1039","1039-2020","GESTIÓN DOCUMENTAL CONTRATACIÓN"," 02 de marzo de 2020  "," 31 de marzo de 2020",2300000,2300000,"ORNELLA FIORENTINO","JEFE DE JURIDICA",1266,2147,"2020-03-16",{"$f":"VLOOKUP(B159:B431,'[1]CONTRATACION MARZO '!$B$2:$AB$431,27,0)","v":"https://www.contratos.gov.co/consultas/detalleProceso.do?numConstancia=20-4-10592212"}]
[159,1045698343,"JOSE FRANCISCO INFANZON CASTRO","1040","1040-2020","PROFESIONAL DE RECURSOS FISICOS"," 02 de marzo de 2020  "," 31 de marzo de 2020",5800000,5800000,"ROSA MADERA","GERENTE",1267,2148,"2020-03-16",{"$f":"VLOOKUP(B160:B431,'[1]CONTRATACION MARZO '!$B$2:$AB$431,27,0)","v":"https://www.contratos.gov.co/consultas/detalleProceso.do?numConstancia=20-4-10592394"}]
[160,8532785,"JOSE GUERRERO ORTIZ","1041","1041-2020","AGENTE CALL CENTER"," 02 de marzo de 2020  "," 31 de marzo de 2020",1378000,1378000,"WILFRAN JIMENEZ DE LA PEÑA","COORD CENTRO DE SALUD",1268,2149,"2020-03-16",{"$f":"VLOOKUP(B161:B431,'[1]CONTRATACION MARZO '!$B$2:$AB$431,27,0)","v":"https://www.contratos.gov.co/consultas/detalleProceso.do?numConstancia=20-4-10592414"}]
[161,72434909,"JOSE IGNACIO DE ALBA MARTINEZ","1042","1042-2020","AUXILIAR DE ARCHIVO TALENTO HUMANO"," 02 de marzo de 2020  "," 31 de marzo de 2020",1500000,1500000,"FABIAN COLPAS","JEFE  TALENTO  HUMANO",1269,2150,"2020-03-16",{"$f":"VLOOKUP(B162:B431,'[1]CONTRATACION MARZO '!$B$2:$AB$431,27,0)","v":"https://www.contratos.gov.co/consultas/detalleProceso.do?numConstancia=20-4-10592541"}]
[{"$f":"+A162+1","v":162},72271514,"JOSE LUIS FLOREZ DIAZ","1043","1043-2020","AUXILIAR ADMINISTRATIVO VENTANILLA"," 02 de marzo de 2020  "," 31 de marzo de 2020",1900000,1900000,"SANDRA SANMARTIN","SUBGERENCIA ADMINISTRATIVA",1270,2151,"2020-03-16",{"$f":"VLOOKUP(B163:B431,'[1]CONTRATACION MARZO '!$B$2:$AB$431,27,0)","v":"https://www.contratos.gov.co/consultas/detalleProceso.do?numConstancia=20-4-10592571"}]
[163,9143862,"JOSE LUIS LEAL CORREA","1044","1044-2020","AUXILIAR DE FARMACIA "," 02 de marzo de 2020  "," 31 de marzo de 2020",1270000,1270000,"BETTY PERTUZ ","SUBGERENCIA CIENTIFICA",1271,2152,"2020-03-16",{"$f":"VLOOKUP(B164:B431,'[1]CONTRATACION MARZO '!$B$2:$AB$431,27,0)","v":"https://www.contratos.gov.co/consultas/detalleProceso.do?numConstancia=20-4-10592599"}]
[164,72165796,"JOSE SALVADOR FERNANDEZ RODELO","1045","1045-2020","ORIENTADOR"," 02 de marzo de 2020  "," 31 de marzo de 2020",1270000,1270000,"WILFRAN JIMENEZ DE LA PEÑA","COORD CENTRO DE SALUD",1272,2153,"2020-03-16",{"$f":"VLOOKUP(B165:B431,'[1]CONTRATACION MARZO '!$B$2:$AB$431,27,0)","v":"https://www.contratos.gov.co/consultas/detalleProceso.do?numConstancia=20-4-10592620"}]
[165,32810582,"JOSEFINA CARO VITOLA","1046","1046-2020","AUXILIAR DE ENFERMERIA URGENCIAS"," 02 de marzo de 2020  "," 31 de marzo de 2020",1378000,1378000,"SERGIO BOVEA MARIN","COORD CENTRO DE SALUD",1273,2154,"2020-03-16",{"$f":"VLOOKUP(B166:B431,'[1]CONTRATACION MARZO '!$B$2:$AB$431,27,0)","v":"https://www.contratos.gov.co/consultas/detalleProceso.do?numConstancia=20-4-10592650"}]
[166,1042442139,"JOSHIKY ESTHER AHUMADA PACHECO","1047","1047-2020","ENFERMERA JEFE CONSULTA EXTERNA "," 02 de marzo de 2020  "," 31 de marzo de 2020",2300000,2300000,"NILSA ARIZA MARQUEZ","COORDINADOR PYP",1274,2155,"2020-03-16",{"$f":"VLOOKUP(B167:B431,'[1]CONTRATACION MARZO '!$B$2:$AB$431,27,0)","v":"https://www.contratos.gov.co/consultas/detalleProceso.do?numConstancia=20-4-10592672"}]
[167,72242552,"JUAN CAMILO CASTILLO ARIZA","1048","1048-2020","MEDICO CONSULTA EXTERNA "," 02 de marzo de 2020  "," 31 de marzo de 2020",3180000,3180000,"CARLOS VISBAL JIMENEZ","COORD CENTRO DE SALUD",1275,2156,"2020-03-16",{"$f":"VLOOKUP(B168:B431,'[1]CONTRATACION MARZO '!$B$2:$AB$431,27,0)","v":"https://www.contratos.gov.co/consultas/detalleProceso.do?numConstancia=20-4-10592736"}]
[168,72095954,"JUAN CARLOS BARROS CARO","1049","1049-2020","ASESOR GERENCIA"," 02 de marzo de 2020  "," 31 de marzo de 2020",4500000,4500000,"ROSA MADERA","GERENTE",1276,2157,"2020-03-16",{"$f":"VLOOKUP(B169:B431,'[1]CONTRATACION MARZO '!$B$2:$AB$431,27,0)","v":"https://www.contratos.gov.co/consultas/detalleProceso.do?numConstancia=20-4-10592747"}]
[169,72278234,"JUAN GABRIEL FRANCO PRENT","1050","1050-2020","COORDINADOR DE FACTURACION"," 02 de marzo de 2020  "," 31 de marzo de 2020",4375000,4375000,"SANDRA SANMARTIN","SUBGERENCIA ADMINISTRATIVA",1277,2158,"2020-03-16",{"$f":"VLOOKUP(B170:B431,'[1]CONTRATACION MARZO '!$B$2:$AB$431,27,0)","v":"https://www.contratos.gov.co/consultas/detalleProceso.do?numConstancia=20-4-10592783"}]
[170,32771594,"JUANA DIAZ CARABALLO","1051","1051-2020","AUXILIAR DE ENFERMERIA URGENCIAS"," 02 de marzo de 2020  "," 31 de marzo de 2020",1378000,1378000,"SERGIO BOVEA MARIN","COORD CENTRO DE SALUD",1278,2159,"2020-03-16",{"$f":"VLOOKUP(B171:B431,'[1]CONTRATACION MARZO '!$B$2:$AB$431,27,0)","v":"https://www.contratos.gov.co/consultas/detalleProceso.do?numConstancia=20-4-10592794"}]
[171,26853643,"JUDITH CHARRIS MACHADO ","1052","1052-2020","ENFERMERA JEFE URGENCIAS "," 02 de marzo de 2020  "," 31 de marzo de 2020",1900000,1900000,"WILFRAN JIMENEZ DE LA PEÑA","COORD CENTRO DE SALUD",1279,2160,"2020-03-16",{"$f":"VLOOKUP(B172:B431,'[1]CONTRATACION MARZO '!$B$2:$AB$431,27,0)","v":"https://www.contratos.gov.co/consultas/detalleProceso.do?numConstancia=20-4-10592805"}]
[172,32814077,"JUDITH TORRES CASTILLO","1053","1053-2020","COORDINADOR DE FACTURACION"," 02 de marzo de 2020  "," 31 de marzo de 2020",1600000,1600000,"VICTOR MIRANDA","COORD CENTRO DE SALUD",1280,2161,"2020-03-16",{"$f":"VLOOKUP(B173:B431,'[1]CONTRATACION MARZO '!$B$2:$AB$431,27,0)","v":"https://www.contratos.gov.co/consultas/detalleProceso.do?numConstancia=20-4-10592818"}]
[173,32712489,"JULIA ESTELLA RIVERA TREJOS","1054","1054-2020","MEDICO DE URGENCIA"," 02 de marzo de 2020  "," 31 de marzo de 2020",2560000,2560000,"WILFRAN JIMENEZ DE LA PEÑA","COORD CENTRO DE SALUD",1281,2162,"2020-03-16",{"$f":"VLOOKUP(B174:B431,'[1]CONTRATACION MARZO '!$B$2:$AB$431,27,0)","v":"https://www.contratos.gov.co/consultas/detalleProceso.do?numConstancia=20-4-10592866"}]
[174,1042443708,"JULIETH ANDREA CAMACHO CHACON","1055","1055-2020","ENFERMERA JEFE"," 02 de marzo de 2020  "," 31 de marzo de 2020",2300000,2300000,"NILSA ARIZA MARQUEZ","COORDINADOR PYP",1282,2163,"2020-03-16",{"$f":"VLOOKUP(B175:B431,'[1]CONTRATACION MARZO '!$B$2:$AB$431,27,0)","v":"https://www.contratos.gov.co/consultas/detalleProceso.do?numConstancia=20-4-10592886"}]
[175,73140179,"JULIO CESAR LOPEZ ROMERO","1056","1056-2020","DIGITADOR PAI WEB "," 02 de marzo de 2020  "," 31 de marzo de 2020",2000000,2000000,"NILSA ARIZA MARQUEZ","COORDINADOR PYP",1283,2164,"2020-03-16",{"$f":"VLOOKUP(B176:B431,'[1]CONTRATACION MARZO '!$B$2:$AB$431,27,0)","v":"https://www.contratos.gov.co/consultas/detalleProceso.do?numConstancia=20-4-10592905"}]
[176,22468261,"KANYA MALLERLY BERNAL BECERRA ","1057","1057-2020","DIGITADOR PAI WEB "," 02 de marzo de 2020  "," 31 de marzo de 2020",2200000,2200000,"NILSA ARIZA MARQUEZ","COORDINADOR PYP",1284,2165,"2020-03-16",{"$f":"VLOOKUP(B177:B431,'[1]CONTRATACION MARZO '!$B$2:$AB$431,27,0)","v":"https://www.contratos.gov.co/consultas/detalleProceso.do?numConstancia=20-4-10592947"}]
[null,32825276,"GIOVANNA ESTHER AFRICANO NAVARRO","1058","1058-2020","NUTRICIONISTA"," 02 de marzo de 2020  "," 31 de marzo de 2020",2300000,2300000,"WILFRAN JIMENEZ DE LA PEÑA",{"$f":"+L174","v":"COORD CENTRO DE SALUD"},1285,2166,"2020-03-16","https://www.contratos.gov.co/consultas/detalleProceso.do?numConstancia=20-4-10644276"]
[{"$f":"+#REF!+1","v":{"$error":"#REF!"}},1043841968,"KAREN DAYANA FONSECA MUÑOZ","1059","1059-2020","MEDICO DE URGENCIA"," 02 de marzo de 2020  "," 31 de marzo de 2020",2560000,2560000,"SERGIO BOVEA MARIN","COORD CENTRO DE SALUD",1286,2167,"2020-03-16",{"$f":"VLOOKUP(B179:B431,'[1]CONTRATACION MARZO '!$B$2:$AB$431,27,0)","v":"https://www.contratos.gov.co/consultas/detalleProceso.do?numConstancia=20-4-10592973"}]
[{"$f":"+A179+1","v":{"$error":"#REF!"}},55313269,"KAREN MARTINEZ BRANGO","1060","1060-2020","AUXILIAR DE ENFERMERIA URGENCIAS"," 02 de marzo de 2020  "," 31 de marzo de 2020",1378000,1378000,"SERGIO BOVEA MARIN","COORD CENTRO DE SALUD",1287,2168,"2020-03-16",{"$f":"VLOOKUP(B180:B431,'[1]CONTRATACION MARZO '!$B$2:$AB$431,27,0)","v":"https://www.contratos.gov.co/consultas/detalleProceso.do?numConstancia=20-4-10592991"}]
[{"$error":"#REF!"},1129513283,"KARINE MILENA LEONES MARQUEZ","1061","1061-2020","AUXILIAR DE FARMACIA "," 02 de marzo de 2020  "," 31 de marzo de 2020",1270000,1270000,"BETTY PERTUZ ","SUBGERENCIA CIENTIFICA",1288,2169,"2020-03-16",{"$f":"VLOOKUP(B181:B431,'[1]CONTRATACION MARZO '!$B$2:$AB$431,27,0)","v":"https://www.contratos.gov.co/consultas/detalleProceso.do?numConstancia=20-4-10593006"}]
[{"$error":"#REF!"},1083433669,"KARLA MARIA SUAREZ MUÑOZ","1062","1062-2020","AUXILIAR DE ENFERMERIA URGENCIAS"," 02 de marzo de 2020  "," 31 de marzo de 2020",1378000,1378000,"WILFRAN JIMENEZ DE LA PEÑA","COORD CENTRO DE SALUD",1289,2170,"2020-03-16",{"$f":"VLOOKUP(B182:B431,'[1]CONTRATACION MARZO '!$B$2:$AB$431,27,0)","v":"https://www.contratos.gov.co/consultas/detalleProceso.do?numConstancia=20-4-10593021"}]
[{"$error":"#REF!"},1010137665,"KAROLINE JUDITH MORENO VARELO","1063","1063-2020","AUXILIAR ADMINISTRATIVO - COORD PYP"," 02 de marzo de 2020  "," 31 de marzo de 2020",1500000,1500000,"NILSA ARIZA MARQUEZ","COORDINADOR PYP",1290,2171,"2020-03-16",{"$f":"VLOOKUP(B183:B431,'[1]CONTRATACION MARZO '!$B$2:$AB$431,27,0)","v":"https://www.contratos.gov.co/consultas/detalleProceso.do?numConstancia=20-4-10593069"}]
[{"$error":"#REF!"},22534402,"KATERINE RUA SUAREZ","1064","1064-2020","AUXILIAR DE FACTURACION URGENCIA"," 02 de marzo de 2020  "," 31 de marzo de 2020",1400000,1400000,"SANDRA SANMARTIN","SUBGERENCIA ADMINISTRATIVA",1291,2172,"2020-03-16",{"$f":"VLOOKUP(B184:B431,'[1]CONTRATACION MARZO '!$B$2:$AB$431,27,0)","v":"https://www.contratos.gov.co/consultas/detalleProceso.do?numConstancia=20-4-10593080"}]
[{"$error":"#REF!"},1042429330,"KATHERINE  BALZA SALAS","1065","1065-2020","AUXILIAR DE ARCHIVO "," 02 de marzo de 2020  "," 31 de marzo de 2020",1500000,1500000,"SANDRA SANMARTIN","SUBGERENCIA ADMINISTRATIVA",1292,2173,"2020-03-16",{"$f":"VLOOKUP(B185:B431,'[1]CONTRATACION MARZO '!$B$2:$AB$431,27,0)","v":"https://www.contratos.gov.co/consultas/detalleProceso.do?numConstancia=20-4-10593102"}]
[{"$error":"#REF!"},22804794,"KATHERINE GUERRERO SEPULVEDA","1066","1066-2020","ABOGADO EXTERNO - CONTRATACION"," 02 de marzo de 2020  "," 31 de marzo de 2020",5800000,5800000,"ORNELLA FIORENTINO ","JEFE DE JURIDICA",1293,2174,"2020-03-16",{"$f":"VLOOKUP(B186:B431,'[1]CONTRATACION MARZO '!$B$2:$AB$431,27,0)","v":"https://www.contratos.gov.co/consultas/detalleProceso.do?numConstancia=20-4-10593113"}]
[{"$error":"#REF!"},32894662,"KATTY MACIAS PONTON ","1067","1067-2020","MEDICO DE URGENCIA"," 02 de marzo de 2020  "," 31 de marzo de 2020",2560000,2560000,"WILFRAN JIMENEZ DE LA PEÑA","COORD CENTRO DE SALUD",1294,2175,"2020-03-16",{"$f":"VLOOKUP(B187:B431,'[1]CONTRATACION MARZO '!$B$2:$AB$431,27,0)","v":"https://www.contratos.gov.co/consultas/detalleProceso.do?numConstancia=20-4-10593152"}]
[{"$error":"#REF!"},55301340,"KATYA LILIANA NORIEGA BARRIOS","1068","1068-2020","AUXILIAR DE ENFERMERIA URGENCIAS"," 02 de marzo de 2020  "," 31 de marzo de 2020",1378000,1378000,"SERGIO BOVEA MARIN","COORD CENTRO DE SALUD",1295,2176,"2020-03-16",{"$f":"VLOOKUP(B188:B431,'[1]CONTRATACION MARZO '!$B$2:$AB$431,27,0)","v":"https://www.contratos.gov.co/consultas/detalleProceso.do?numConstancia=20-4-10593166"}]
[{"$error":"#REF!"},22642874,"KELLYS JOHANA URUETA SUAREZ","1069","1069-2020","AUXILIAR SERVICIOS GENERALES URGENCIA"," 02 de marzo de 2020  "," 31 de marzo de 2020",1378000,1378000,"WILFRAN JIMENEZ DE LA PEÑA","COORD CENTRO DE SALUD",1296,2177,"2020-03-16",{"$f":"VLOOKUP(B189:B431,'[1]CONTRATACION MARZO '!$B$2:$AB$431,27,0)","v":"https://www.contratos.gov.co/consultas/detalleProceso.do?numConstancia=20-4-10593206"}]
[{"$error":"#REF!"},1129581013,"KERLY JHOVELIS PITRE MORENO","1070","1070-2020","ENFERMERA JEFE P Y P"," 02 de marzo de 2020  "," 31 de marzo de 2020",2300000,2300000,"NILSA ARIZA MARQUEZ","COORDINADOR PYP",1297,2178,"2020-03-16",{"$f":"VLOOKUP(B190:B431,'[1]CONTRATACION MARZO '!$B$2:$AB$431,27,0)","v":"https://www.contratos.gov.co/consultas/detalleProceso.do?numConstancia=20-4-10593226"}]
[{"$error":"#REF!"},1045697885,"LAURA ALANDETE CASTRO","1071","1071-2020","MEDICO DE URGENCIA"," 02 de marzo de 2020  "," 31 de marzo de 2020",2560000,2560000,"SERGIO BOVEA MARIN","COORD CENTRO DE SALUD",1298,2179,"2020-03-16",{"$f":"VLOOKUP(B191:B431,'[1]CONTRATACION MARZO '!$B$2:$AB$431,27,0)","v":"https://www.contratos.gov.co/consultas/detalleProceso.do?numConstancia=20-4-10593249"}]
[{"$error":"#REF!"},"                     22.739.758 ","LAURA MELENDEZ SALAZAR","1072","1072-2020","ODONTOLOGO"," 02 de marzo de 2020  "," 31 de marzo de 2020",1900000,1900000,"YARELIS GUERRA CORREA","COORD CENTRO DE SALUD",1299,2180,"2020-03-16",{"$f":"VLOOKUP(B192:B431,'[1]CONTRATACION MARZO '!$B$2:$AB$431,27,0)","v":"https://www.contratos.gov.co/consultas/detalleProceso.do?numConstancia=20-4-10593274"}]
[{"$error":"#REF!"},1140847928,"LEIDY DANIELA WILSON PEZZOTI","1073","1073-2020","AUXILIAR ADMINISTRATIVO VENTANILLA"," 02 de marzo de 2020  "," 31 de marzo de 2020",1900000,1900000,"SANDRA SANMARTIN","SUBGERENCIA ADMINISTRATIVA",1300,2181,"2020-03-16",{"$f":"VLOOKUP(B193:B431,'[1]CONTRATACION MARZO '!$B$2:$AB$431,27,0)","v":"https://www.contratos.gov.co/consultas/detalleProceso.do?numConstancia=20-4-10593368"}]
[{"$error":"#REF!"},1045747916,"LEIDY DIANA PAEZ OROZCO","1074","1074-2020","ENFERMERA JEFE  CONSULTA EXTERNA "," 02 de marzo de 2020  "," 31 de marzo de 2020",1900000,1900000,"LUIS CARLOS DE LEON BERNIER","COORD CENTRO DE SALUD",1301,2182,"2020-03-16",{"$f":"VLOOKUP(B194:B431,'[1]CONTRATACION MARZO '!$B$2:$AB$431,27,0)","v":"https://www.contratos.gov.co/consultas/detalleProceso.do?numConstancia=20-4-10593482"}]
[{"$error":"#REF!"},72053529,"LEINER DARIO MEDINA HERRERA","1075","1075-2020","CONTROL INTERNO"," 02 de marzo de 2020  "," 31 de marzo de 2020",2500000,{"$f":"I195*1","v":2500000},"SANDRA SANMARTIN","SUBGERENCIA ADMINISTRATIVA",1302,2183,"2020-03-16",{"$f":"VLOOKUP(B195:B431,'[1]CONTRATACION MARZO '!$B$2:$AB$431,27,0)","v":"https://www.contratos.gov.co/consultas/detalleProceso.do?numConstancia=20-4-10593495"}]
[{"$error":"#REF!"},32879736,"LEISYS MARIA CASTRO OLARTE","1076","1076-2020","AUXILIAR DE FACTURACION URGENCIA"," 02 de marzo de 2020  "," 31 de marzo de 2020",1400000,1400000,"SANDRA SANMARTIN","SUBGERENCIA ADMINISTRATIVA",1303,2184,"2020-03-16",{"$f":"VLOOKUP(B196:B431,'[1]CONTRATACION MARZO '!$B$2:$AB$431,27,0)","v":"https://www.contratos.gov.co/consultas/detalleProceso.do?numConstancia=20-4-10593533"}]
[{"$error":"#REF!"},1140846298,"LENIN ALVAREZ PINEDA","1077","1077-2020","INGENIERO DE SOPORTE "," 02 de marzo de 2020  "," 31 de marzo de 2020",3000000,3000000,"NILSA ARIZA MARQUEZ","COORDINADOR PYP",1304,2185,"2020-03-16",{"$f":"VLOOKUP(B197:B431,'[1]CONTRATACION MARZO '!$B$2:$AB$431,27,0)","v":"https://www.contratos.gov.co/consultas/detalleProceso.do?numConstancia=20-4-10593550"}]
[{"$error":"#REF!"},1002157167,"LEODALIZ SALGADO GUERRERO","1078","1078-2020","AGENTE CALL CENTER"," 02 de marzo de 2020  "," 31 de marzo de 2020",1400000,1400000,"WILFRAN JIMENEZ DE LA PEÑA","COORD CENTRO DE SALUD",1305,2186,"2020-03-16",{"$f":"VLOOKUP(B198:B431,'[1]CONTRATACION MARZO '!$B$2:$AB$431,27,0)","v":"https://www.contratos.gov.co/consultas/detalleProceso.do?numConstancia=20-4-10596307"}]
[{"$error":"#REF!"},1090415871,"LEONARDO BELLO PUENTES","1079","1079-2020","ODONTOLOGO"," 02 de marzo de 2020  "," 31 de marzo de 2020",1900000,1900000,"WILFRAN JIMENEZ DE LA PEÑA","COORD CENTRO DE SALUD",1306,2187,"2020-03-16",{"$f":"VLOOKUP(B199:B431,'[1]CONTRATACION MARZO '!$B$2:$AB$431,27,0)","v":"https://www.contratos.gov.co/consultas/detalleProceso.do?numConstancia=20-4-10596318"}]
[{"$error":"#REF!"},72271914,"LEONARDO DE JESUS ARIZA NIEBLES          ","1080","1080-2020","AUXILIAR DE ARCHIVO "," 02 de marzo de 2020  "," 31 de marzo de 2020",1500000,1500000,"SANDRA SANMARTIN","SUBGERENCIA ADMINISTRATIVA",1307,2188,"2020-03-16",{"$f":"VLOOKUP(B200:B431,'[1]CONTRATACION MARZO '!$B$2:$AB$431,27,0)","v":"https://www.contratos.gov.co/consultas/detalleProceso.do?numConstancia=20-4-10596330"}]
[{"$error":"#REF!"},7469739,"LEOVALDO MENDOZA PAREJO","1081","1081-2020","ORIENTADOR"," 02 de marzo de 2020  "," 31 de marzo de 2020",1270000,1270000,"WILFRAN JIMENEZ DE LA PEÑA","COORD CENTRO DE SALUD",1308,2189,"2020-03-16",{"$f":"VLOOKUP(B201:B431,'[1]CONTRATACION MARZO '!$B$2:$AB$431,27,0)","v":"https://www.contratos.gov.co/consultas/detalleProceso.do?numConstancia=20-4-10596339"}]
[{"$error":"#REF!"},1045712889,"LEYDILLY ROJANO GOMEZ","1082","1082-2020","ENFERMERA JEFE URGENCIAS "," 02 de marzo de 2020  "," 31 de marzo de 2020",1900000,1900000,"SERGIO BOVEA MARIN","COORD CENTRO DE SALUD",1309,2190,"2020-03-16",{"$f":"VLOOKUP(B202:B431,'[1]CONTRATACION MARZO '!$B$2:$AB$431,27,0)","v":"https://www.contratos.gov.co/consultas/detalleProceso.do?numConstancia=20-4-10596352"}]
[{"$error":"#REF!"},42205053,"LIBIA ELENA BELEÑO MENDOZA","1083","1083-2020","TRABAJADORA SOCIAL"," 02 de marzo de 2020  "," 31 de marzo de 2020",2300000,2300000,"WILFRAN JIMENEZ DE LA PEÑA","COORD CENTRO DE SALUD",1310,2191,"2020-03-16",{"$f":"VLOOKUP(B203:B431,'[1]CONTRATACION MARZO '!$B$2:$AB$431,27,0)","v":"https://www.contratos.gov.co/consultas/detalleProceso.do?numConstancia=20-4-10596364"}]
[{"$error":"#REF!"},40981378,"LIDYS CASTILLO TOVAR","1084","1084-2020","PROFESIONAL OFICINA PAGADURIA  "," 02 de marzo de 2020  "," 31 de marzo de 2020",4000000,4000000,"LISGLENIS BUENO BRICEÑO","JEFE TESORERIA",1311,2192,"2020-03-16",{"$f":"VLOOKUP(B204:B431,'[1]CONTRATACION MARZO '!$B$2:$AB$431,27,0)","v":"https://www.contratos.gov.co/consultas/detalleProceso.do?numConstancia=20-4-10596383"}]
[{"$error":"#REF!"},32772357,"LIDYS ESTHER REALES CASTRO ","1085","1085-2020","AUXILIAR DE ENFERMERIA URGENCIAS"," 02 de marzo de 2020  "," 31 de marzo de 2020",1378000,1378000,"WILFRAN JIMENEZ DE LA PEÑA","COORD CENTRO DE SALUD",1312,2193,"2020-03-16",{"$f":"VLOOKUP(B205:B431,'[1]CONTRATACION MARZO '!$B$2:$AB$431,27,0)","v":"https://www.contratos.gov.co/consultas/detalleProceso.do?numConstancia=20-4-10596398"}]
[{"$error":"#REF!"},32646304,"LILIAN ESTHER ANTEQUERA MANTILLA","1086","1086-2020","AUXILIAR DE ENFERMERIA"," 02 de marzo de 2020  "," 31 de marzo de 2020",1166000,1166000,"LUIS GRANADOS GOMEZ","COORD CENTRO DE SALUD",1313,2194,"2020-03-16",{"$f":"VLOOKUP(B206:B431,'[1]CONTRATACION MARZO '!$B$2:$AB$431,27,0)","v":"https://www.contratos.gov.co/consultas/detalleProceso.do?numConstancia=20-4-10596408"}]
[{"$error":"#REF!"},1042453991,"LILIANA JUDITH MORENO GUTIERREZ","1087","1087-2020","AGENTE CALL CENTER"," 02 de marzo de 2020  "," 31 de marzo de 2020",1378000,1378000,"WILFRAN JIMENEZ DE LA PEÑA","COORD CENTRO DE SALUD",1314,2195,"2020-03-16",{"$f":"VLOOKUP(B207:B431,'[1]CONTRATACION MARZO '!$B$2:$AB$431,27,0)","v":"https://www.contratos.gov.co/consultas/detalleProceso.do?numConstancia=20-4-10596435"}]
[{"$error":"#REF!"},32796648,"LILIANA OROZCO ROJAS ","1088","1088-2020","ODONTOLOGO"," 02 de marzo de 2020  "," 31 de marzo de 2020",1900000,1900000,"DIANA MARTINEZ PACHECO","COORD CENTRO DE SALUD",1315,2196,"2020-03-16",{"$f":"VLOOKUP(B208:B431,'[1]CONTRATACION MARZO '!$B$2:$AB$431,27,0)","v":"https://www.contratos.gov.co/consultas/detalleProceso.do?numConstancia=20-4-10596448"}]
[{"$error":"#REF!"},22533893,"LILIANA VARGAS MONTERO","1089","1089-2020","ENFERMERA JEFE P Y P"," 02 de marzo de 2020  "," 31 de marzo de 2020",2300000,2300000,"NILSA ARIZA MARQUEZ","COORDINADOR PYP",1316,2197,"2020-03-16",{"$f":"VLOOKUP(B209:B431,'[1]CONTRATACION MARZO '!$B$2:$AB$431,27,0)","v":"https://www.contratos.gov.co/consultas/detalleProceso.do?numConstancia=20-4-10596553"}]
[{"$error":"#REF!"},22738424,"LINA MARGARITA TORO GARCIA","1090","1090-2020","MEDICO PROGRAMA CARDIOVASCULAR"," 02 de marzo de 2020  "," 31 de marzo de 2020",4600000,4600000,"DIANA MARTINEZ PACHECO","COORD CENTRO DE SALUD",1317,2198,"2020-03-16",{"$f":"VLOOKUP(B210:B431,'[1]CONTRATACION MARZO '!$B$2:$AB$431,27,0)","v":"https://www.contratos.gov.co/consultas/detalleProceso.do?numConstancia=20-4-10596562"}]
[{"$error":"#REF!"},1042426533,"LIZ CATERINE ARROYO ROMERO","1091","1091-2020","AUXILIAR DE FARMACIA "," 02 de marzo de 2020  "," 31 de marzo de 2020",1270000,1270000,"BETTY PERTUZ ","SUBGERENCIA CIENTIFICA",1318,2199,"2020-03-16",{"$f":"VLOOKUP(B211:B431,'[1]CONTRATACION MARZO '!$B$2:$AB$431,27,0)","v":"https://www.contratos.gov.co/consultas/detalleProceso.do?numConstancia=20-4-10596626"}]
[{"$error":"#REF!"},1042436897,"LIZETH PATRICIA BLANQUICETT FERRER","1092","1092-2020","AGENTE CALL CENTER"," 02 de marzo de 2020  "," 31 de marzo de 2020",1378000,1378000,"WILFRAN JIMENEZ DE LA PEÑA","COORD CENTRO DE SALUD",1319,2200,"2020-03-16",{"$f":"VLOOKUP(B212:B431,'[1]CONTRATACION MARZO '!$B$2:$AB$431,27,0)","v":"https://www.contratos.gov.co/consultas/detalleProceso.do?numConstancia=20-4-10596657"}]
[{"$error":"#REF!"},32716780,"LORAINE PASION ARDILA ","1093","1093-2020","TRABAJADORA SOCIAL"," 02 de marzo de 2020  "," 31 de marzo de 2020",2300000,2300000,"SERGIO BOVEA MARIN","COORD CENTRO DE SALUD",1320,2201,"2020-03-16",{"$f":"VLOOKUP(B213:B431,'[1]CONTRATACION MARZO '!$B$2:$AB$431,27,0)","v":"https://www.contratos.gov.co/consultas/detalleProceso.do?numConstancia=20-4-10596729"}]
[{"$error":"#REF!"},32761353,"LORENZA BARRIOS ESTRADA","1094","1094-2020","AUXILIAR DE ENFERMERIA URGENCIAS"," 02 de marzo de 2020  "," 31 de marzo de 2020",1378000,1378000,"WILFRAN JIMENEZ DE LA PEÑA","COORD CENTRO DE SALUD",1321,2202,"2020-03-16",{"$f":"VLOOKUP(B214:B431,'[1]CONTRATACION MARZO '!$B$2:$AB$431,27,0)","v":"https://www.contratos.gov.co/consultas/detalleProceso.do?numConstancia=20-4-10596907"}]
[{"$error":"#REF!"},32666054,"LUCY CHING ANAYA ","1095","1095-2020","MEDICO CONSULTA EXTERNA "," 02 de marzo de 2020  "," 31 de marzo de 2020",2120000,2120000,"DIANA MARTINEZ PACHECO","COORD CENTRO DE SALUD",1322,2203,"2020-03-16",{"$f":"VLOOKUP(B215:B431,'[1]CONTRATACION MARZO '!$B$2:$AB$431,27,0)","v":"https://www.contratos.gov.co/consultas/detalleProceso.do?numConstancia=20-4-10596923"}]
[{"$error":"#REF!"},72336152,"LUIS EDUARDO LLANOS NAVARRO ","1096","1096-2020","AUDITOR DE P Y P "," 02 de marzo de 2020  "," 31 de marzo de 2020",4000000,4000000,"BETTY PERTUZ ","SUBGERENCIA CIENTIFICA",1323,2204,"2020-03-16",{"$f":"VLOOKUP(B216:B431,'[1]CONTRATACION MARZO '!$B$2:$AB$431,27,0)","v":"https://www.contratos.gov.co/consultas/detalleProceso.do?numConstancia=20-4-10596944"}]
[{"$error":"#REF!"},1143133250,"LUIS EDUARDO NIEBLES SARMIENTO ","1097","1097-2020","AUXILIAR DE FACTURACION URGENCIA"," 02 de marzo de 2020  "," 31 de marzo de 2020",1400000,1400000,"SANDRA SANMARTIN","SUBGERENCIA ADMINISTRATIVA",1324,2205,"2020-03-16",{"$f":"VLOOKUP(B217:B431,'[1]CONTRATACION MARZO '!$B$2:$AB$431,27,0)","v":"https://www.contratos.gov.co/consultas/detalleProceso.do?numConstancia=20-4-10596962"}]
[{"$error":"#REF!"},8672260,"LUIS MIGUEL REYES LANCE","1098","1098-2020","ORIENTADOR"," 02 de marzo de 2020  "," 31 de marzo de 2020",1270000,1270000,"SERGIO BOVEA MARIN","COORD CENTRO DE SALUD",1325,2206,"2020-03-16",{"$f":"VLOOKUP(B218:B431,'[1]CONTRATACION MARZO '!$B$2:$AB$431,27,0)","v":"https://www.contratos.gov.co/consultas/detalleProceso.do?numConstancia=20-4-10597199"}]
[{"$error":"#REF!"},72346265,"LUIS VASQUEZ BALLESTAS","1099","1099-2020","COORDINADOR DE FACTURACION"," 02 de marzo de 2020  "," 31 de marzo de 2020",1800000,1800000,"WILFRAN JIMENEZ DE LA PEÑA","COORD CENTRO DE SALUD",1326,2207,"2020-03-16",{"$f":"VLOOKUP(B219:B431,'[1]CONTRATACION MARZO '!$B$2:$AB$431,27,0)","v":"https://www.contratos.gov.co/consultas/detalleProceso.do?numConstancia=20-4-10597323"}]
[{"$error":"#REF!"},51977895,"LUZ HELENA MORALES MARTINEZ","1100","1100-2020","AUXILIAR DE ARCHIVO "," 02 de marzo de 2020  "," 31 de marzo de 2020",1500000,1500000,"SANDRA SANMARTIN","SUBGERENCIA ADMINISTRATIVA",1327,2208,"2020-03-16",{"$f":"VLOOKUP(B220:B431,'[1]CONTRATACION MARZO '!$B$2:$AB$431,27,0)","v":"https://www.contratos.gov.co/consultas/detalleProceso.do?numConstancia=20-4-10597345"}]
[{"$error":"#REF!"},22444561,"LUZ MARINA DONADO BARRIOS ","1101","1101-2020","COORDINADOR DE FACTURACION"," 02 de marzo de 2020  "," 31 de marzo de 2020",2506667,2506667,"DIANA MARTINEZ PACHECO","COORD CENTRO DE SALUD",1328,2209,"2020-03-16",{"$f":"VLOOKUP(B221:B431,'[1]CONTRATACION MARZO '!$B$2:$AB$431,27,0)","v":"https://www.contratos.gov.co/consultas/detalleProceso.do?numConstancia=20-4-10597380"}]
[{"$error":"#REF!"},32825666,"LUZ STELLA RUIZ SUAREZ","1102","1102-2020","AUXILIAR DE ENFERMERIA MATERNIDAD SEGURA "," 02 de marzo de 2020  "," 31 de marzo de 2020",1166000,1166000,"SERGIO BOVEA MARIN","COORD CENTRO DE SALUD",1329,2210,"2020-03-16",{"$f":"VLOOKUP(B222:B431,'[1]CONTRATACION MARZO '!$B$2:$AB$431,27,0)","v":"https://www.contratos.gov.co/consultas/detalleProceso.do?numConstancia=20-4-10597401"}]
[{"$error":"#REF!"},32697306,"MAGALY POLO ARNEDO ","1103","1103-2020","ODONTOLOGO"," 02 de marzo de 2020  "," 31 de marzo de 2020",1900000,1900000,"SERGIO BOVEA MARIN","COORD CENTRO DE SALUD",1330,2211,"2020-03-16",{"$f":"VLOOKUP(B223:B431,'[1]CONTRATACION MARZO '!$B$2:$AB$431,27,0)","v":"https://www.contratos.gov.co/consultas/detalleProceso.do?numConstancia=20-4-10597441"}]
[{"$error":"#REF!"},32623541,"MAGALYS ESPITIA RAMOS","1104","1104-2020","AUXILIAR SERVICIOS GENERALES URGENCIA"," 02 de marzo de 2020  "," 31 de marzo de 2020",1378000,1378000,"WILFRAN JIMENEZ DE LA PEÑA","COORD CENTRO DE SALUD",1331,2212,"2020-03-16",{"$f":"VLOOKUP(B224:B431,'[1]CONTRATACION MARZO '!$B$2:$AB$431,27,0)","v":"https://www.contratos.gov.co/consultas/detalleProceso.do?numConstancia=20-4-10597469"}]
[{"$error":"#REF!"},1140849940,"MAICOL JOSE MOLINA SOTO","1105","1105-2020","MEDICO DE URGENCIA"," 02 de marzo de 2020  "," 31 de marzo de 2020",2560000,2560000,"SERGIO BOVEA MARIN","COORD CENTRO DE SALUD",1332,2213,"2020-03-16",{"$f":"VLOOKUP(B225:B431,'[1]CONTRATACION MARZO '!$B$2:$AB$431,27,0)","v":"https://www.contratos.gov.co/consultas/detalleProceso.do?numConstancia=20-4-10597486"}]
[{"$error":"#REF!"},22616462,"MAIDELIN CORCHO CAICEDO","1106","1106-2020","AUXILIAR DE ENFERMERIA"," 02 de marzo de 2020  "," 31 de marzo de 2020",1166000,1166000,"DIANA MARTINEZ PACHECO","COORD CENTRO DE SALUD",1333,2214,"2020-03-16",{"$f":"VLOOKUP(B226:B431,'[1]CONTRATACION MARZO '!$B$2:$AB$431,27,0)","v":"https://www.contratos.gov.co/consultas/detalleProceso.do?numConstancia=20-4-10597497"}]
[{"$error":"#REF!"},72142837,"MANUEL GUSTAVO PABA GUETE","1107","1107-2020","PSICOLOGO EN PROMOCION Y PREVENCION"," 02 de marzo de 2020  "," 31 de marzo de 2020",3000000,3000000,"NILSA ARIZA MARQUEZ","COORDINADOR PYP",1334,2215,"2020-03-16",{"$f":"VLOOKUP(B227:B431,'[1]CONTRATACION MARZO '!$B$2:$AB$431,27,0)","v":"https://www.contratos.gov.co/consultas/detalleProceso.do?numConstancia=20-4-10597572"}]
[{"$error":"#REF!"},1140889557,"MARA PAOLA DE LEON NIEBLES ","1108","1108-2020","AUXILIAR ADMINISTRATIVO-FINANCIERA"," 02 de marzo de 2020  "," 31 de marzo de 2020",1900000,1900000,"SANDRA SANMARTIN","SUBGERENCIA ADMINISTRATIVA",1335,2216,"2020-03-16",{"$f":"VLOOKUP(B228:B431,'[1]CONTRATACION MARZO '!$B$2:$AB$431,27,0)","v":"https://www.contratos.gov.co/consultas/detalleProceso.do?numConstancia=20-4-10597606"}]
[{"$error":"#REF!"},44160436,"MARCELA JOHANA DIAZ DE LA PUENTE","1109","1109-2020","ASESOR JURIDICO TALENTO HUMANO"," 02 de marzo de 2020  "," 31 de marzo de 2020",3000000,3000000,"FABIAN COLPAS","JEFE  TALENTO  HUMANO",1336,2217,"2020-03-16",{"$f":"VLOOKUP(B229:B431,'[1]CONTRATACION MARZO '!$B$2:$AB$431,27,0)","v":"https://www.contratos.gov.co/consultas/detalleProceso.do?numConstancia=20-4-10597643"}]
[{"$error":"#REF!"},22605801,"MARCELA PATRICIA TORRES CARROLL","1110","1110-2020","AUXILIAR DE FACTURACION URGENCIA"," 02 de marzo de 2020  "," 31 de marzo de 2020",1400000,1400000,"SANDRA SANMARTIN","SUBGERENCIA ADMINISTRATIVA",1337,2218,"2020-03-16",{"$f":"VLOOKUP(B230:B431,'[1]CONTRATACION MARZO '!$B$2:$AB$431,27,0)","v":"https://www.contratos.gov.co/consultas/detalleProceso.do?numConstancia=20-4-10597656"}]
[{"$error":"#REF!"},72132608,"MARCO AURELIO CASTRO CAICEDO","1111","1111-2020","AUXILIAR DE FACTURACION URGENCIA"," 02 de marzo de 2020  "," 31 de marzo de 2020",1400000,1400000,"SANDRA SANMARTIN","SUBGERENCIA ADMINISTRATIVA",1338,2219,"2020-03-16",{"$f":"VLOOKUP(B231:B431,'[1]CONTRATACION MARZO '!$B$2:$AB$431,27,0)","v":"https://www.contratos.gov.co/consultas/detalleProceso.do?numConstancia=20-4-10597672"}]
[{"$error":"#REF!"},22644933,"MARGARITA PACHECO GUTIERREZ","1112","1112-2020","HIGIENISTA ORAL"," 02 de marzo de 2020  "," 31 de marzo de 2020",2332000,2332000,"SERGIO BOVEA MARIN","COORD CENTRO DE SALUD",1339,2220,"2020-03-16",{"$f":"VLOOKUP(B232:B431,'[1]CONTRATACION MARZO '!$B$2:$AB$431,27,0)","v":"https://www.contratos.gov.co/consultas/detalleProceso.do?numConstancia=20-4-10597712"}]
[{"$error":"#REF!"},32703976,"MARI ENITH PUELLO BELTRAN","1113","1113-2020","AUXILIAR DE ENFERMERIA CONSULTA EXTERNA "," 02 de marzo de 2020  "," 31 de marzo de 2020",1166000,1166000,"BETTY PERTUZ ","SUBGERENCIA CIENTIFICA",1340,2221,"2020-03-16",{"$f":"VLOOKUP(B233:B431,'[1]CONTRATACION MARZO '!$B$2:$AB$431,27,0)","v":"https://www.contratos.gov.co/consultas/detalleProceso.do?numConstancia=20-4-10597888"}]
[{"$error":"#REF!"},1042450048,"MARIA ALEJANDRA DE LA HOZ TOSCANO","1114","1114-2020","MEDICO DE URGENCIA"," 02 de marzo de 2020  "," 31 de marzo de 2020",2560000,2560000,"SERGIO BOVEA MARIN","COORD CENTRO DE SALUD",1341,2222,"2020-03-16",{"$f":"VLOOKUP(B234:B431,'[1]CONTRATACION MARZO '!$B$2:$AB$431,27,0)","v":"https://www.contratos.gov.co/consultas/detalleProceso.do?numConstancia=20-4-10597910"}]
[{"$error":"#REF!"},1004093696,"MARIA ALTAMAR OROZCO","1115","1115-2020","AUXILIAR DE ENFERMERIA URGENCIAS"," 02 de marzo de 2020  "," 31 de marzo de 2020",1378000,1378000,"SERGIO BOVEA MARIN","COORD CENTRO DE SALUD",1342,2223,"2020-03-16",{"$f":"VLOOKUP(B235:B431,'[1]CONTRATACION MARZO '!$B$2:$AB$431,27,0)","v":"https://www.contratos.gov.co/consultas/detalleProceso.do?numConstancia=20-4-10597934"}]
[{"$error":"#REF!"},32608240,"MARIA DE JESUS VELASQUEZ CAPERA","1116","1116-2020","AUXILIAR SERVICIOS GENERALES"," 02 de marzo de 2020  "," 31 de marzo de 2020",1215000,1215000,"AIX PALACIO","SUBGERENCIA ADMINISTRATIVA",1343,2224,"2020-03-16",{"$f":"VLOOKUP(B236:B431,'[1]CONTRATACION MARZO '!$B$2:$AB$431,27,0)","v":"https://www.contratos.gov.co/consultas/detalleProceso.do?numConstancia=20-4-10597950"}]
[{"$error":"#REF!"},1042440221,"MARIA DE LA HOZ DE LA HOZ","1117","1117-2020","AUXILIAR DE ARCHIVO "," 02 de marzo de 2020  "," 31 de marzo de 2020",1900000,1900000,"SANDRA SANMARTIN","SUBGERENCIA ADMINISTRATIVA",1344,2225,"2020-03-16",{"$f":"VLOOKUP(B237:B431,'[1]CONTRATACION MARZO '!$B$2:$AB$431,27,0)","v":"https://www.contratos.gov.co/consultas/detalleProceso.do?numConstancia=20-4-10597984"}]
[{"$error":"#REF!"},32789239,"MARIA DEL CARMEN GUERRERO OJEDA","1118","1118-2020","ORIENTADOR"," 02 de marzo de 2020  "," 31 de marzo de 2020",1270000,1270000,"SERGIO BOVEA MARIN","COORD CENTRO DE SALUD",1345,2226,"2020-03-16",{"$f":"VLOOKUP(B238:B431,'[1]CONTRATACION MARZO '!$B$2:$AB$431,27,0)","v":"https://www.contratos.gov.co/consultas/detalleProceso.do?numConstancia=20-4-10598023"}]
[{"$error":"#REF!"},1045735275,"MARIA FERNANDA SOLANO QUITIAN","1119","1119-2020","REFERENCIA Y CONTRAREFERENCIA"," 02 de marzo de 2020  "," 31 de marzo de 2020",1270000,1270000,"SERGIO BOVEA MARIN","COORD CENTRO DE SALUD",1346,2227,"2020-03-16",{"$f":"VLOOKUP(B239:B431,'[1]CONTRATACION MARZO '!$B$2:$AB$431,27,0)","v":"https://www.contratos.gov.co/consultas/detalleProceso.do?numConstancia=20-4-10598055"}]
[{"$error":"#REF!"},32695840,"MARIA HERRERA CUADROS","1120","1120-2020","HIGIENISTA ORAL"," 02 de marzo de 2020  "," 31 de marzo de 2020",2332000,2332000,"LUIS GRANADOS GOMEZ","COORD CENTRO DE SALUD",1347,2228,"2020-03-16",{"$f":"VLOOKUP(B240:B431,'[1]CONTRATACION MARZO '!$B$2:$AB$431,27,0)","v":"https://www.contratos.gov.co/consultas/detalleProceso.do?numConstancia=20-4-10598066"}]
[{"$error":"#REF!"},32668810,"MARIA ISABEL ALVARADO LOBOS","1121","1121-2020","ASISTENTE COORDINADOR MEDICO"," 02 de marzo de 2020  "," 31 de marzo de 2020",2000000,2000000,"WILFRAN JIMENEZ DE LA PEÑA","COORD CENTRO DE SALUD",1348,2229,"2020-03-16",{"$f":"VLOOKUP(B241:B431,'[1]CONTRATACION MARZO '!$B$2:$AB$431,27,0)","v":"https://www.contratos.gov.co/consultas/detalleProceso.do?numConstancia=20-4-10598101"}]
[{"$error":"#REF!"},1140858071,"MARIA LUISA FERNANDA ARAGON NIGRINI","1122","1122-2020","ABOGADO EXTERNO"," 02 de marzo de 2020  "," 31 de marzo de 2020",5800000,5800000,"ORNELLA FIORENTINO","JEFE DE JURIDICA",1349,2230,"2020-03-16",{"$f":"VLOOKUP(B242:B431,'[1]CONTRATACION MARZO '!$B$2:$AB$431,27,0)","v":"https://www.contratos.gov.co/consultas/detalleProceso.do?numConstancia=20-4-10598177"}]
[{"$error":"#REF!"},32879250,"MARIA SEGURA MEJIA","1123","1123-2020","AUXILIAR FACTURACION URGENCIA"," 02 de marzo de 2020  "," 31 de marzo de 2020",1400000,1400000,"SANDRA SANMARTIN","SUBGERENCIA ADMINISTRATIVA",1350,2231,"2020-03-16",{"$f":"VLOOKUP(B243:B431,'[1]CONTRATACION MARZO '!$B$2:$AB$431,27,0)","v":"https://www.contratos.gov.co/consultas/detalleProceso.do?numConstancia=20-4-10598206"}]
[{"$f":"+A243+1","v":{"$error":"#REF!"}},1042421404,"MARIAM DEL CARMEN CANTILLO MONTERO","1124","1124-2020","AUDITOR DE ODONTOLOGIA"," 02 de marzo de 2020  "," 31 de marzo de 2020",3000000,3000000,"BETTY PERTUZ ","SUBGERENCIA CIENTIFICA",1351,2232,"2020-03-16",{"$f":"VLOOKUP(B244:B431,'[1]CONTRATACION MARZO '!$B$2:$AB$431,27,0)","v":"https://www.contratos.gov.co/consultas/detalleProceso.do?numConstancia=20-4-10598232"}]
[{"$error":"#REF!"},72043527,"MARIANO DE JESUS BARRIOS ELLES ","1125","1125-2020","COORDINADOR CALL CENTER"," 02 de marzo de 2020  "," 31 de marzo de 2020",3000000,3000000,"BETTY PERTUZ ","SUBGERENCIA CIENTIFICA",1352,2233,"2020-03-16",{"$f":"VLOOKUP(B245:B431,'[1]CONTRATACION MARZO '!$B$2:$AB$431,27,0)","v":"https://www.contratos.gov.co/consultas/detalleProceso.do?numConstancia=20-4-10598266"}]
[{"$error":"#REF!"},8774531,"MARIANO JOSE UCROS ROMERO","1126","1126-2020","AUXILIAR DE ARCHIVO "," 02 de marzo de 2020  "," 31 de marzo de 2020",1500000,1500000,"SANDRA SANMARTIN","SUBGERENCIA ADMINISTRATIVA",1353,2234,"2020-03-16",{"$f":"VLOOKUP(B246:B431,'[1]CONTRATACION MARZO '!$B$2:$AB$431,27,0)","v":"https://www.contratos.gov.co/consultas/detalleProceso.do?numConstancia=20-4-10598292"}]
[{"$error":"#REF!"},32819834,"MARIBEL NIEBLES ESCORCIA","1127","1127-2020","AUXILIAR DE ODONTOLOGIA"," 02 de marzo de 2020  "," 31 de marzo de 2020",1166000,1166000,"LUIS GRANADOS GOMEZ","COORD CENTRO DE SALUD",1354,2235,"2020-03-16",{"$f":"VLOOKUP(B247:B431,'[1]CONTRATACION MARZO '!$B$2:$AB$431,27,0)","v":"https://www.contratos.gov.co/consultas/detalleProceso.do?numConstancia=20-4-10598313"}]
[{"$error":"#REF!"},32817343,"MARIELA NIEBLES FREILE","1128","1128-2020","AUXILIAR DE ARCHIVO "," 02 de marzo de 2020  "," 31 de marzo de 2020",1500000,1500000,"SANDRA SANMARTIN","SUBGERENCIA ADMINISTRATIVA",1355,2236,"2020-03-16",{"$f":"VLOOKUP(B248:B431,'[1]CONTRATACION MARZO '!$B$2:$AB$431,27,0)","v":"https://www.contratos.gov.co/consultas/detalleProceso.do?numConstancia=20-4-10598338"}]
[{"$error":"#REF!"},32726703,"MARILYN ESTHER PEREZ LIÑAN","1129","1129-2020","AUXILIAR DE ENFERMERIA URGENCIAS"," 02 de marzo de 2020  "," 31 de marzo de 2020",1378000,1378000,"SERGIO BOVEA MARIN","COORD CENTRO DE SALUD",1356,2237,"2020-03-16",{"$f":"VLOOKUP(B249:B431,'[1]CONTRATACION MARZO '!$B$2:$AB$431,27,0)","v":"https://www.contratos.gov.co/consultas/detalleProceso.do?numConstancia=20-4-10598850"}]
[{"$error":"#REF!"},1140867598,"MARLA HERRERA MERIÑO","1130","1130-2020","AUXILIAR DE ENFERMERIA URGENCIAS"," 02 de marzo de 2020  "," 31 de marzo de 2020",1378000,1378000,"WILFRAN JIMENEZ DE LA PEÑA","COORD CENTRO DE SALUD",1357,2238,"2020-03-16",{"$f":"VLOOKUP(B250:B431,'[1]CONTRATACION MARZO '!$B$2:$AB$431,27,0)","v":"https://www.contratos.gov.co/consultas/detalleProceso.do?numConstancia=20-4-10598918"}]
[{"$error":"#REF!"},22694593,"MARLENE JUDITH GARIZABALO PERTUZ","1131","1131-2020","AUXILIAR SERVICIOS GENERALES"," 02 de marzo de 2020  "," 31 de marzo de 2020",1215000,1215000,"DIANA MARTINEZ PACHECO","COORD CENTRO DE SALUD",1358,2239,"2020-03-16",{"$f":"VLOOKUP(B251:B431,'[1]CONTRATACION MARZO '!$B$2:$AB$431,27,0)","v":"https://www.contratos.gov.co/consultas/detalleProceso.do?numConstancia=20-4-10598954"}]
[{"$error":"#REF!"},22732194,"MARLEY VASQUEZ VARGAS","1132","1132-2020","FACTURACION "," 02 de marzo de 2020  "," 31 de marzo de 2020",1700000,1700000,"SANDRA SANMARTIN","SUBGERENCIA ADMINISTRATIVA",1359,2240,"2020-03-16",{"$f":"VLOOKUP(B252:B431,'[1]CONTRATACION MARZO '!$B$2:$AB$431,27,0)","v":"https://www.contratos.gov.co/consultas/detalleProceso.do?numConstancia=20-4-10598993"}]
[{"$error":"#REF!"},72158729,"MARLON CAMILO JORDAN HERRERA","1133","1133-2020","REFERENCIA Y CONTRAREFERENCIA"," 02 de marzo de 2020  "," 31 de marzo de 2020",1480000,1480000,"SERGIO BOVEA MARIN","COORD CENTRO DE SALUD",1360,2241,"2020-03-16",{"$f":"VLOOKUP(B253:B431,'[1]CONTRATACION MARZO '!$B$2:$AB$431,27,0)","v":"https://www.contratos.gov.co/consultas/detalleProceso.do?numConstancia=20-4-10599032"}]
[{"$error":"#REF!"},22646602,"MARTHA CECILIA PICO OROZCO","1134","1134-2020","AUXILIAR DE AUTORIZACIONES "," 02 de marzo de 2020  "," 31 de marzo de 2020",1378000,1378000,"BETTY PERTUZ ","SUBGERENCIA CIENTIFICA",1361,2242,"2020-03-16",{"$f":"VLOOKUP(B254:B431,'[1]CONTRATACION MARZO '!$B$2:$AB$431,27,0)","v":"https://www.contratos.gov.co/consultas/detalleProceso.do?numConstancia=20-4-10599079"}]
[{"$error":"#REF!"},44205287,"MARTHA KATERINE MEJIA FRUTO","1135","1135-2020","AUXILIAR ADMINISTRATIVO - RECEPCION "," 02 de marzo de 2020  "," 31 de marzo de 2020",1900000,1900000,"SANDRA SANMARTIN","SUBGERENCIA ADMINISTRATIVA",1362,2243,"2020-03-16",{"$f":"VLOOKUP(B255:B431,'[1]CONTRATACION MARZO '!$B$2:$AB$431,27,0)","v":"https://www.contratos.gov.co/consultas/detalleProceso.do?numConstancia=20-4-10599097"}]
[{"$error":"#REF!"},1001798861,"MARTHA LAURA VIZCAINO PEREZ","1136","1136-2020","DIGITADOR PAI WEB "," 02 de marzo de 2020  "," 31 de marzo de 2020",1400000,1400000,"NILSA ARIZA MARQUEZ","COORDINADOR PYP",1363,2244,"2020-03-16",{"$f":"VLOOKUP(B256:B431,'[1]CONTRATACION MARZO '!$B$2:$AB$431,27,0)","v":"https://www.contratos.gov.co/consultas/detalleProceso.do?numConstancia=20-4-10599115"}]
[{"$error":"#REF!"},55227166,"MARYI PEREZ CASSIANI","1137","1137-2020","ENFERMERA JEFE URGENCIAS "," 02 de marzo de 2020  "," 31 de marzo de 2020",1900000,1900000,"WILFRAN JIMENEZ DE LA PEÑA","COORD CENTRO DE SALUD",1364,2245,"2020-03-16",{"$f":"VLOOKUP(B257:B431,'[1]CONTRATACION MARZO '!$B$2:$AB$431,27,0)","v":"https://www.contratos.gov.co/consultas/detalleProceso.do?numConstancia=20-4-10599142"}]
[{"$error":"#REF!"},32769980,"MARYORIS POLO HERRERA","1138","1138-2020","AUXILIAR DE ENFERMERIA URGENCIAS"," 02 de marzo de 2020  "," 31 de marzo de 2020",1378000,1378000,"WILFRAN JIMENEZ DE LA PEÑA","COORD CENTRO DE SALUD",1365,2246,"2020-03-16",{"$f":"VLOOKUP(B258:B431,'[1]CONTRATACION MARZO '!$B$2:$AB$431,27,0)","v":"https://www.contratos.gov.co/consultas/detalleProceso.do?numConstancia=20-4-10599183"}]
[{"$error":"#REF!"},32896837,"MARYULIS PATRICIA CRUZ JIMENEZ","1139","1139-2020","ENFERMERA JEFE P Y P"," 02 de marzo de 2020  "," 31 de marzo de 2020",2300000,{"$f":"I259*1","v":2300000},"NILSA ARIZA MARQUEZ","COORDINADOR PYP",1366,2247,"2020-03-16",{"$f":"VLOOKUP(B259:B431,'[1]CONTRATACION MARZO '!$B$2:$AB$431,27,0)","v":"https://www.contratos.gov.co/consultas/detalleProceso.do?numConstancia=20-4-10599202"}]
[{"$error":"#REF!"},26762874,"MARYURIS ALTAHONA  MORENO ","1140","1140-2020","MEDICO P Y P "," 02 de marzo de 2020  "," 31 de marzo de 2020",2120000,2120000,"YARELIS GUERRA CORREA","COORD CENTRO DE SALUD",1367,2248,"2020-03-16",{"$f":"VLOOKUP(B260:B431,'[1]CONTRATACION MARZO '!$B$2:$AB$431,27,0)","v":"https://www.contratos.gov.co/consultas/detalleProceso.do?numConstancia=20-4-10599222"}]
[{"$error":"#REF!"},1045721126,"MARYURIS JOANNA GALVAN NAVARRO","1141","1141-2020","COORDINADOR DE LABORATORIO"," 02 de marzo de 2020  "," 31 de marzo de 2020",5000000,5000000,"BETTY PERTUZ ","SUBGERENCIA CIENTIFICA",1368,2249,"2020-03-16",{"$f":"VLOOKUP(B261:B431,'[1]CONTRATACION MARZO '!$B$2:$AB$431,27,0)","v":"https://www.contratos.gov.co/consultas/detalleProceso.do?numConstancia=20-4-10599235"}]
[{"$error":"#REF!"},1042452765,"MAYERLINN SANDOVAL BARRIOS","1142","1142-2020","AGENTE CALL CENTER"," 02 de marzo de 2020  "," 31 de marzo de 2020",1166000,1166000,"WILFRAN JIMENEZ DE LA PEÑA","COORD CENTRO DE SALUD",1369,2250,"2020-03-16",{"$f":"VLOOKUP(B262:B431,'[1]CONTRATACION MARZO '!$B$2:$AB$431,27,0)","v":"https://www.contratos.gov.co/consultas/detalleProceso.do?numConstancia=20-4-10599277"}]
[{"$error":"#REF!"},1042422315,"MAYRA ALEJANDRA GARCIA CASTILLO","1143","1143-2020","FISIOTERAPEUTA "," 02 de marzo de 2020  "," 31 de marzo de 2020",1900000,1900000,"CARLOS VISBAL JIMENEZ","COORD CENTRO DE SALUD",1370,2251,"2020-03-16",{"$f":"VLOOKUP(B263:B431,'[1]CONTRATACION MARZO '!$B$2:$AB$431,27,0)","v":"https://www.contratos.gov.co/consultas/detalleProceso.do?numConstancia=20-4-10599305"}]
[{"$error":"#REF!"},1043876764,"MELANI ISABEL PERTUZ HERRERA","1144","1144-2020","AUXILIAR ADMINISTRATIVO -  SUBGERENCIA ADMINISTRATIVA"," 02 de marzo de 2020  "," 31 de marzo de 2020",1900000,1900000,"SANDRA SANMARTIN","SUBGERENCIA ADMINISTRATIVA",1371,2252,"2020-03-16",{"$f":"VLOOKUP(B264:B431,'[1]CONTRATACION MARZO '!$B$2:$AB$431,27,0)","v":"https://www.contratos.gov.co/consultas/detalleProceso.do?numConstancia=20-4-10599338"}]
[{"$error":"#REF!"},22457575,"MELBA MEZA PERDOMO","1145","1145-2020","TRABAJADORA SOCIAL "," 02 de marzo de 2020  "," 31 de marzo de 2020",2200000,2200000,"SERGIO BOVEA MARIN","COORD CENTRO DE SALUD",1372,2253,"2020-03-16",{"$f":"VLOOKUP(B265:B431,'[1]CONTRATACION MARZO '!$B$2:$AB$431,27,0)","v":"https://www.contratos.gov.co/consultas/detalleProceso.do?numConstancia=20-4-10599383"}]
[{"$error":"#REF!"},1042418352,"MERJORIE CABEZA CASTILLO","1146","1146-2020","AUXILIAR DE ENFERMERIA P Y P "," 02 de marzo de 2020  "," 31 de marzo de 2020",1166000,1166000,"LUIS GRANADOS GOMEZ","COORD CENTRO DE SALUD",1373,2254,"2020-03-16",{"$f":"VLOOKUP(B266:B431,'[1]CONTRATACION MARZO '!$B$2:$AB$431,27,0)","v":"https://www.contratos.gov.co/consultas/detalleProceso.do?numConstancia=20-4-10599426"}]
[{"$error":"#REF!"},32729889,"MERLY ISABEL BARRAZA TOLEDO","1147","1147-2020","AUXILIAR DE ENFERMERIA CONSULTA EXTERNA "," 02 de marzo de 2020  "," 31 de marzo de 2020",1166000,1166000,"YARELIS GUERRA CORREA","COORD CENTRO DE SALUD",1374,2255,"2020-03-16",{"$f":"VLOOKUP(B267:B431,'[1]CONTRATACION MARZO '!$B$2:$AB$431,27,0)","v":"https://www.contratos.gov.co/consultas/detalleProceso.do?numConstancia=20-4-10599446"}]
[{"$error":"#REF!"},1129532724,"MICHELLY SANDOVAL ACUÑA","1148","1148-2020","AUDITOR DE CALIDAD "," 02 de marzo de 2020  "," 31 de marzo de 2020",4500000,4500000,"BETTY PERTUZ ","SUBGERENCIA CIENTIFICA",1375,2256,"2020-03-16",{"$f":"VLOOKUP(B268:B431,'[1]CONTRATACION MARZO '!$B$2:$AB$431,27,0)","v":"https://www.contratos.gov.co/consultas/detalleProceso.do?numConstancia=20-4-10599464"}]
[{"$error":"#REF!"},8507626,"MIGUEL ALVAREZ SALCEDO","1149","1149-2020","CONDUCTOR DE AMBULANCIA"," 02 de marzo de 2020  "," 31 de marzo de 2020",1800000,1800000,"BETTY PERTUZ ","SUBGERENCIA CIENTIFICA",1376,2257,"2020-03-16",{"$f":"VLOOKUP(B269:B431,'[1]CONTRATACION MARZO '!$B$2:$AB$431,27,0)","v":"https://www.contratos.gov.co/consultas/detalleProceso.do?numConstancia=20-4-10599492"}]
[{"$error":"#REF!"},8795259,"MIGUEL ANGEL OLMOS DE ALBA","1150","1150-2020","CONDUCTOR DE AMBULANCIA"," 02 de marzo de 2020  "," 31 de marzo de 2020",1800000,1800000,"BETTY PERTUZ ","SUBGERENCIA CIENTIFICA",1377,2258,"2020-03-16",{"$f":"VLOOKUP(B270:B431,'[1]CONTRATACION MARZO '!$B$2:$AB$431,27,0)","v":"https://www.contratos.gov.co/consultas/detalleProceso.do?numConstancia=20-4-10599521"}]
[{"$error":"#REF!"},45757809,"MILADIS MARINA MARTINEZ MEDINA","1151","1151-2020","COORDINADORA SIAU"," 02 de marzo de 2020  "," 31 de marzo de 2020",3000000,3000000,"BETTY PERTUZ ","SUBGERENCIA CIENTIFICA",1378,2259,"2020-03-16",{"$f":"VLOOKUP(B271:B431,'[1]CONTRATACION MARZO '!$B$2:$AB$431,27,0)","v":"https://www.contratos.gov.co/consultas/detalleProceso.do?numConstancia=20-4-10599546"}]
[{"$error":"#REF!"},1129519216,"MILAGRO HERRERA MOJICA","1152","1152-2020","MEDICO DE URGENCIA"," 02 de marzo de 2020  "," 31 de marzo de 2020",2560000,2560000,"WILFRAN JIMENEZ DE LA PEÑA","COORD CENTRO DE SALUD",1379,2260,"2020-03-16",{"$f":"VLOOKUP(B272:B431,'[1]CONTRATACION MARZO '!$B$2:$AB$431,27,0)","v":"https://www.contratos.gov.co/consultas/detalleProceso.do?numConstancia=20-4-10599556"}]
[{"$error":"#REF!"},22468835,"MILAGROS GUZMAN FERNANDEZ ","1153","1153-2020","ODONTOLOGO"," 02 de marzo de 2020  "," 31 de marzo de 2020",1900000,1900000,"LUIS GRANADOS GOMEZ","COORD CENTRO DE SALUD",1380,2261,"2020-03-16",{"$f":"VLOOKUP(B273:B431,'[1]CONTRATACION MARZO '!$B$2:$AB$431,27,0)","v":"https://www.contratos.gov.co/consultas/detalleProceso.do?numConstancia=20-4-10599575"}]
[{"$error":"#REF!"},55238408,"MILAGROS YANETH SIMANCA RODRIGUEZ","1154","1154-2020","AUXILIAR AREA FINANCIERA"," 02 de marzo de 2020  "," 31 de marzo de 2020",3500000,3500000,"SANDRA SANMARTIN","SUBGERENCIA ADMINISTRATIVA",1381,2262,"2020-03-16",{"$f":"VLOOKUP(B274:B431,'[1]CONTRATACION MARZO '!$B$2:$AB$431,27,0)","v":"https://www.contratos.gov.co/consultas/detalleProceso.do?numConstancia=20-4-10599646"}]
[{"$error":"#REF!"},32787314,"MILENA HERRERA BENAVIDES","1155","1155-2020","AUXILIAR DE ENFERMERIA MATERNIDAD SEGURA "," 02 de marzo de 2020  "," 31 de marzo de 2020",1166000,1166000,"WILFRAN JIMENEZ DE LA PEÑA","COORD CENTRO DE SALUD",1382,2263,"2020-03-16",{"$f":"VLOOKUP(B275:B431,'[1]CONTRATACION MARZO '!$B$2:$AB$431,27,0)","v":"https://www.contratos.gov.co/consultas/detalleProceso.do?numConstancia=20-4-10599670"}]
[{"$error":"#REF!"},22532699,"MILENA SILVA BARRAZA","1156","1156-2020","AUXILIAR DE FACTURACION"," 02 de marzo de 2020  "," 31 de marzo de 2020",1300000,1300000,"SANDRA SANMARTIN","SUBGERENCIA ADMINISTRATIVA",1383,2264,"2020-03-16",{"$f":"VLOOKUP(B276:B431,'[1]CONTRATACION MARZO '!$B$2:$AB$431,27,0)","v":"https://www.contratos.gov.co/consultas/detalleProceso.do?numConstancia=20-4-10599703"}]
[{"$error":"#REF!"},1045689538,"MILLER TEDYS MEDRANO CASTRO","1157","1157-2020","TECNOLOGO EN RADIOLOGIA"," 02 de marzo de 2020  "," 31 de marzo de 2020",1500000,1500000,"BETTY PERTUZ ","SUBGERENCIA CIENTIFICA",1384,2265,"2020-03-16",{"$f":"VLOOKUP(B277:B431,'[1]CONTRATACION MARZO '!$B$2:$AB$431,27,0)","v":"https://www.contratos.gov.co/consultas/detalleProceso.do?numConstancia=20-4-10602817"}]
[{"$error":"#REF!"},72268005,"MILTON SOLARTE RODRIGUEZ","1158","1158-2020","TECNICO DE BASES DE DATOS"," 02 de marzo de 2020  "," 31 de marzo de 2020",3000000,3000000,"SANDRA SANMARTIN","SUBGERENCIA ADMINISTRATIVA",1385,2266,"2020-03-16",{"$f":"VLOOKUP(B278:B431,'[1]CONTRATACION MARZO '!$B$2:$AB$431,27,0)","v":"https://www.contratos.gov.co/consultas/detalleProceso.do?numConstancia=20-4-10602877"}]
[{"$error":"#REF!"},22693871,"MIRIAM VILLAREAL DE ALBA","1159","1159-2020","AUXILIAR SERVICIOS GENERALES "," 02 de marzo de 2020  "," 31 de marzo de 2020",1215000,1215000,"CARLOS VISBAL JIMENEZ","COORD CENTRO DE SALUD",1386,2267,"2020-03-16",{"$f":"VLOOKUP(B279:B431,'[1]CONTRATACION MARZO '!$B$2:$AB$431,27,0)","v":"https://www.contratos.gov.co/consultas/detalleProceso.do?numConstancia=20-4-10602912"}]
[{"$error":"#REF!"},32814938,"MOIRA SANDOVAL PEDRAZA","1160","1160-2020","AUXILIAR DE ENFERMERIA PROMOTORA EN SALUD"," 02 de marzo de 2020  "," 31 de marzo de 2020",1215000,1215000,"WILFRAN JIMENEZ DE LA PEÑA","COORD CENTRO DE SALUD",1387,2268,"2020-03-16",{"$f":"VLOOKUP(B280:B431,'[1]CONTRATACION MARZO '!$B$2:$AB$431,27,0)","v":"https://www.contratos.gov.co/consultas/detalleProceso.do?numConstancia=20-4-10603025"}]
[{"$error":"#REF!"},32872397,"MONICA PATRICIA DOVALE GALLEGO","1161","1161-2020","COORDINADOR SEGURIDAD Y SALUD TRABAJO"," 02 de marzo de 2020  "," 31 de marzo de 2020",5800000,5800000,"FABIAN COLPAS","JEFE  TALENTO  HUMANO",1388,2269,"2020-03-16",{"$f":"VLOOKUP(B281:B431,'[1]CONTRATACION MARZO '!$B$2:$AB$431,27,0)","v":"https://www.contratos.gov.co/consultas/detalleProceso.do?numConstancia=20-4-10603115"}]
[{"$error":"#REF!"},22443679,"MONICA PEREZ RODRIGUEZ ","1162","1162-2020","FISIOTERAPEUTA "," 02 de marzo de 2020  "," 31 de marzo de 2020",2100000,2100000,"WILFRAN JIMENEZ DE LA PEÑA","COORD CENTRO DE SALUD",1389,2270,"2020-03-16",{"$f":"VLOOKUP(B282:B431,'[1]CONTRATACION MARZO '!$B$2:$AB$431,27,0)","v":"https://www.contratos.gov.co/consultas/detalleProceso.do?numConstancia=20-4-10603126"}]
[{"$error":"#REF!"},32756032,"MONICA RAMIREZ CORREAL","1163","1163-2020","AUXILIAR DE ENFERMERIA URGENCIAS"," 02 de marzo de 2020  "," 31 de marzo de 2020",1378000,1378000,"WILFRAN JIMENEZ DE LA PEÑA","COORD CENTRO DE SALUD",1390,2271,"2020-03-16",{"$f":"VLOOKUP(B283:B431,'[1]CONTRATACION MARZO '!$B$2:$AB$431,27,0)","v":"https://www.contratos.gov.co/consultas/detalleProceso.do?numConstancia=20-4-10603155"}]
[{"$error":"#REF!"},32829349,"NADIA BOVEA NIETO","1164","1164-2020","AUXILIAR DE ENFERMERIA URGENCIAS"," 02 de marzo de 2020  "," 31 de marzo de 2020",1378000,1378000,"SERGIO BOVEA MARIN","COORD CENTRO DE SALUD",1391,2272,"2020-03-16",{"$f":"VLOOKUP(B284:B431,'[1]CONTRATACION MARZO '!$B$2:$AB$431,27,0)","v":"https://www.contratos.gov.co/consultas/detalleProceso.do?numConstancia=20-4-10603165"}]
[{"$error":"#REF!"},55239101,"NATALI ANDREA NIEBLES JURADO","1165","1165-2020","AUDITOR DE CALIDAD (JEFE DE UNIDAD)"," 02 de marzo de 2020  "," 31 de marzo de 2020",5800000,5800000,"BETTY PERTUZ ","SUBGERENCIA CIENTIFICA",1392,2273,"2020-03-16",{"$f":"VLOOKUP(B285:B431,'[1]CONTRATACION MARZO '!$B$2:$AB$431,27,0)","v":"https://www.contratos.gov.co/consultas/detalleProceso.do?numConstancia=20-4-10603192"}]
[{"$error":"#REF!"},52618443,"NATALIA ALONSO CARVAJAL","1166","1166-2020","ASESOR GERENCIA"," 02 de marzo de 2020  "," 31 de marzo de 2020",5800000,5800000,"ROSA MADERA","GERENTE",1393,2274,"2020-03-16",{"$f":"VLOOKUP(B286:B431,'[1]CONTRATACION MARZO '!$B$2:$AB$431,27,0)","v":"https://www.contratos.gov.co/consultas/detalleProceso.do?numConstancia=20-4-10603219"}]
[{"$error":"#REF!"},55307414,"NATALY DE LAS SALAS ORTEGA","1167","1167-2020","PSICOLOGA"," 02 de marzo de 2020  "," 31 de marzo de 2020",2500000,2500000,"BETTY PERTUZ ","SUBGERENCIA CIENTIFICA",1394,2275,"2020-03-16",{"$f":"VLOOKUP(B287:B431,'[1]CONTRATACION MARZO '!$B$2:$AB$431,27,0)","v":"https://www.contratos.gov.co/consultas/detalleProceso.do?numConstancia=20-4-10603240"}]
[{"$error":"#REF!"},1010179685,"NAYIVI OSPINA ARROYAVE","1168","1168-2020","SALUD OCUPACIONAL SEGURIDAD TRABAJO"," 02 de marzo de 2020  "," 31 de marzo de 2020",3180000,3180000,"FABIAN COLPAS","JEFE  TALENTO  HUMANO",1395,2276,"2020-03-16",{"$f":"VLOOKUP(B288:B431,'[1]CONTRATACION MARZO '!$B$2:$AB$431,27,0)","v":"https://www.contratos.gov.co/consultas/detalleProceso.do?numConstancia=20-4-10603263"}]
[{"$error":"#REF!"},32783935,"NELBY CORRALES HOYOS","1169","1169-2020","AUXILIAR DE ENFERMERIA URGENCIAS"," 02 de marzo de 2020  "," 31 de marzo de 2020",1378000,1378000,"SERGIO BOVEA MARIN","COORD CENTRO DE SALUD",1396,2277,"2020-03-16",{"$f":"VLOOKUP(B289:B431,'[1]CONTRATACION MARZO '!$B$2:$AB$431,27,0)","v":"https://www.contratos.gov.co/consultas/detalleProceso.do?numConstancia=20-4-10603289"}]
[{"$error":"#REF!"},26910232,"NELCY ALMARALES AYALA","1170","1170-2020","TRABAJADORA SOCIAL "," 02 de marzo de 2020  "," 31 de marzo de 2020",2200000,2200000,"YARELIS GUERRA CORREA","COORD CENTRO DE SALUD",1397,2278,"2020-03-16",{"$f":"VLOOKUP(B290:B431,'[1]CONTRATACION MARZO '!$B$2:$AB$431,27,0)","v":"https://www.contratos.gov.co/consultas/detalleProceso.do?numConstancia=20-4-10603305"}]
[{"$error":"#REF!"},32819548,"NELLY GALAN HEILBRON","1171","1171-2020","AUXILIAR DE ENFERMERIA PROMOTORA EN SALUD"," 02 de marzo de 2020  "," 31 de marzo de 2020",1215000,1215000,"SERGIO BOVEA MARIN","COORD CENTRO DE SALUD",1398,2279,"2020-03-16",{"$f":"VLOOKUP(B291:B431,'[1]CONTRATACION MARZO '!$B$2:$AB$431,27,0)","v":"https://www.contratos.gov.co/consultas/detalleProceso.do?numConstancia=20-4-10603325"}]
[{"$error":"#REF!"},8770580,"NELSON JULIO SANDOVAL GONZALEZ","1172","1172-2020","AUXILIAR ADMINISTRATIVO DE FINANCIERA"," 02 de marzo de 2020  "," 31 de marzo de 2020",3000000,3000000,"SANDRA SANMARTIN","SUBGERENCIA ADMINISTRATIVA",1399,2280,"2020-03-16",{"$f":"VLOOKUP(B292:B431,'[1]CONTRATACION MARZO '!$B$2:$AB$431,27,0)","v":"https://www.contratos.gov.co/consultas/detalleProceso.do?numConstancia=20-4-10603340"}]
[{"$error":"#REF!"},8498281,"NESTOR  HERRERA BOCANEGRA ","1173","1173-2020","ASESOR FINANCIERO"," 02 de marzo de 2020  "," 31 de marzo de 2020",4500000,4500000,"ALFONSO NICOLAS OQUENDO","DIRECTOR FINANCIERO",1400,2281,"2020-03-16",{"$f":"VLOOKUP(B293:B431,'[1]CONTRATACION MARZO '!$B$2:$AB$431,27,0)","v":"https://www.contratos.gov.co/consultas/detalleProceso.do?numConstancia=20-4-10603349"}]
[{"$error":"#REF!"},1140877960,"NICAULIS RODRIGUEZ GOMEZ","1174","1174-2020","AUXILIAR DE FACTURACION URGENCIA"," 02 de marzo de 2020  "," 31 de marzo de 2020",1400000,1400000,"SANDRA SANMARTIN","SUBGERENCIA ADMINISTRATIVA",1401,2282,"2020-03-16",{"$f":"VLOOKUP(B294:B431,'[1]CONTRATACION MARZO '!$B$2:$AB$431,27,0)","v":"https://www.contratos.gov.co/consultas/detalleProceso.do?numConstancia=20-4-10603625"}]
[{"$error":"#REF!"},32637709,"NIDIA ELENA ORTEGA CARO","1175","1175-2020","TRABAJADORA SOCIAL"," 02 de marzo de 2020  "," 31 de marzo de 2020",2200000,2200000,"WILFRAN JIMENEZ DE LA PEÑA","COORD CENTRO DE SALUD",1402,2283,"2020-03-16",{"$f":"VLOOKUP(B295:B431,'[1]CONTRATACION MARZO '!$B$2:$AB$431,27,0)","v":"https://www.contratos.gov.co/consultas/detalleProceso.do?numConstancia=20-4-10603673"}]
[{"$error":"#REF!"},32740234,"NIDIA VEGA CORREA","1176","1176-2020","AUXILIAR SERVICIOS GENERALES"," 02 de marzo de 2020  "," 31 de marzo de 2020",1215000,1215000,"CARLOS VISBAL JIMENEZ","COORD CENTRO DE SALUD",1403,2284,"2020-03-16",{"$f":"VLOOKUP(B296:B431,'[1]CONTRATACION MARZO '!$B$2:$AB$431,27,0)","v":"https://www.contratos.gov.co/consultas/detalleProceso.do?numConstancia=20-4-10603785"}]
[{"$error":"#REF!"},72222215,"NILSON ALMARALES GARIZABALO","1177","1177-2020","MEDICO DE URGENCIA"," 02 de marzo de 2020  "," 31 de marzo de 2020",5700000,5700000,"SERGIO BOVEA MARIN","COORD CENTRO DE SALUD",1404,2285,"2020-03-16",{"$f":"VLOOKUP(B297:B431,'[1]CONTRATACION MARZO '!$B$2:$AB$431,27,0)","v":"https://www.contratos.gov.co/consultas/detalleProceso.do?numConstancia=20-4-10603806"}]
[{"$error":"#REF!"},8603175,"NILSON ORTEGA JIMENEZ","1178","1178-2020","AUXILIAR CONTABLE"," 02 de marzo de 2020  "," 31 de marzo de 2020",1900000,1900000,"ALFONSO NICOLAS OQUENDO","DIRECTOR FINANCIERO",1405,2286,"2020-03-16",{"$f":"VLOOKUP(B298:B431,'[1]CONTRATACION MARZO '!$B$2:$AB$431,27,0)","v":"https://www.contratos.gov.co/consultas/detalleProceso.do?numConstancia=20-4-10603842"}]
[{"$error":"#REF!"},22646712,"NINI JOHANA SOLANO MORENO","1179","1179-2020","ENFERMERA JEFE URGENCIAS "," 02 de marzo de 2020  "," 31 de marzo de 2020",{"$f":"1900000+1900000/30*15","v":2850000},2850000,"SERGIO BOVEA MARIN","COORD CENTRO DE SALUD",1406,2287,"2020-03-16",{"$f":"VLOOKUP(B299:B431,'[1]CONTRATACION MARZO '!$B$2:$AB$431,27,0)","v":"https://www.contratos.gov.co/consultas/detalleProceso.do?numConstancia=20-4-10603869"}]
[{"$error":"#REF!"},22564359,"NINI JOHANNA QUIROZ SANTOS","1180","1180-2020","MEDICO DE URGENCIA"," 02 de marzo de 2020  "," 31 de marzo de 2020",2560000,2560000,"SERGIO BOVEA MARIN","COORD CENTRO DE SALUD",1407,2288,"2020-03-16",{"$f":"VLOOKUP(B300:B431,'[1]CONTRATACION MARZO '!$B$2:$AB$431,27,0)","v":"https://www.contratos.gov.co/consultas/detalleProceso.do?numConstancia=20-4-10603899"}]
[{"$error":"#REF!"},8737936,"NOE ANIBAL PELAEZ GONZALEZ","1181","1181-2020","REGENTE DE FARMACIA "," 02 de marzo de 2020  "," 31 de marzo de 2020",1900000,1900000,"BETTY PERTUZ ","SUBGERENCIA CIENTIFICA",1408,2289,"2020-03-16",{"$f":"VLOOKUP(B301:B431,'[1]CONTRATACION MARZO '!$B$2:$AB$431,27,0)","v":"https://www.contratos.gov.co/consultas/detalleProceso.do?numConstancia=20-4-10603915"}]
[{"$error":"#REF!"},32822947,"NOHORA ISABEL POLO ORTIZ","1182","1182-2020","TRABAJADORA SOCIAL "," 02 de marzo de 2020  "," 31 de marzo de 2020",2200000,2200000,"LUIS GRANADOS GOMEZ","COORD CENTRO DE SALUD",1409,2290,"2020-03-16",{"$f":"VLOOKUP(B302:B431,'[1]CONTRATACION MARZO '!$B$2:$AB$431,27,0)","v":"https://www.contratos.gov.co/consultas/detalleProceso.do?numConstancia=20-4-10603924"}]
[{"$error":"#REF!"},39282489,"NORIS SOFIA BERTEL PEREZ","1183","1183-2020","AUXILIAR SERVICIOS GENERALES URGENCIA"," 02 de marzo de 2020  "," 31 de marzo de 2020",1378000,1378000,"SERGIO BOVEA MARIN","COORD CENTRO DE SALUD",1410,2291,"2020-03-16",{"$f":"VLOOKUP(B303:B431,'[1]CONTRATACION MARZO '!$B$2:$AB$431,27,0)","v":"https://www.contratos.gov.co/consultas/detalleProceso.do?numConstancia=20-4-10603964"}]
[{"$error":"#REF!"},32862644,"NURYS GARCIA DELGADO","1184","1184-2020","AUXILIAR DE ARCHIVO "," 02 de marzo de 2020  "," 31 de marzo de 2020",1500000,1500000,"SANDRA SANMARTIN","SUBGERENCIA ADMINISTRATIVA",1411,2292,"2020-03-16",{"$f":"VLOOKUP(B304:B431,'[1]CONTRATACION MARZO '!$B$2:$AB$431,27,0)","v":"https://www.contratos.gov.co/consultas/detalleProceso.do?numConstancia=20-4-10603983"}]
[{"$error":"#REF!"},8772224,"OLAINER MONTERO CASTRO ","1185","1185-2020","COORDINADOR DE FACTURACION"," 02 de marzo de 2020  "," 31 de marzo de 2020",1800000,1800000,"SERGIO BOVEA MARIN","COORD CENTRO DE SALUD",1412,2293,"2020-03-16",{"$f":"VLOOKUP(B305:B431,'[1]CONTRATACION MARZO '!$B$2:$AB$431,27,0)","v":"https://www.contratos.gov.co/consultas/detalleProceso.do?numConstancia=20-4-10603994"}]
[{"$error":"#REF!"},1048267612,"OLGA DE AVILA ARRIETA","1186","1186-2020","MEDICO MATERNIDAD SEGURA"," 02 de marzo de 2020  "," 31 de marzo de 2020",4240000,4240000,"WILFRAN JIMENEZ DE LA PEÑA","COORD CENTRO DE SALUD",1413,2294,"2020-03-16",{"$f":"VLOOKUP(B306:B431,'[1]CONTRATACION MARZO '!$B$2:$AB$431,27,0)","v":"https://www.contratos.gov.co/consultas/detalleProceso.do?numConstancia=20-4-10604043"}]
[{"$error":"#REF!"},44152277,"OLGA GARIZABALO PERTUZ","1187","1187-2020","AUXILIAR DE ODONTOLOGIA"," 02 de marzo de 2020  "," 31 de marzo de 2020",1166000,1166000,"AIX PALACIO","COORD CENTRO DE SALUD",1414,2295,"2020-03-16",{"$f":"VLOOKUP(B307:B431,'[1]CONTRATACION MARZO '!$B$2:$AB$431,27,0)","v":"https://www.contratos.gov.co/consultas/detalleProceso.do?numConstancia=20-4-10604063"}]
[{"$f":"+A307+1","v":{"$error":"#REF!"}},22443037,"OLGA RODRIGUEZ FIGUEROA","1188","1188-2020","ENFERMERA JEFE CONSULTA EXTERNA "," 02 de marzo de 2020  "," 31 de marzo de 2020",1900000,1900000,"AIX PALACIO","COORD CENTRO DE SALUD",1415,2296,"2020-03-16",{"$f":"VLOOKUP(B308:B431,'[1]CONTRATACION MARZO '!$B$2:$AB$431,27,0)","v":"https://www.contratos.gov.co/consultas/detalleProceso.do?numConstancia=20-4-10604078"}]
[{"$error":"#REF!"},32693760,"OMAIRA PLATA VESGA ","1189","1189-2020","ODONTOLOGO"," 02 de marzo de 2020  "," 31 de marzo de 2020",1900000,1900000,"WILFRAN JIMENEZ DE LA PEÑA","COORD CENTRO DE SALUD",1416,2297,"2020-03-16",{"$f":"VLOOKUP(B309:B431,'[1]CONTRATACION MARZO '!$B$2:$AB$431,27,0)","v":"https://www.contratos.gov.co/consultas/detalleProceso.do?numConstancia=20-4-10604113"}]
[{"$error":"#REF!"},1047340446,"OSCAR MAURICIO MARENCO ROMERO","1190","1190-2020","MENSAJERO "," 02 de marzo de 2020  "," 31 de marzo de 2020",1800000,1800000,"BETTY PERTUZ ","SUBGERENCIA CIENTIFICA",1417,2298,"2020-03-16",{"$f":"VLOOKUP(B310:B431,'[1]CONTRATACION MARZO '!$B$2:$AB$431,27,0)","v":"https://www.contratos.gov.co/consultas/detalleProceso.do?numConstancia=20-4-10604129"}]
[{"$error":"#REF!"},32742523,"OSIRIS MARIA SAMUDIO ESCOBAR ","1191","1191-2020","ODONTOLOGO"," 02 de marzo de 2020  "," 31 de marzo de 2020",1900000,1900000,"VICTOR MIRANDA","COORD CENTRO DE SALUD",1418,2299,"2020-03-16",{"$f":"VLOOKUP(B311:B431,'[1]CONTRATACION MARZO '!$B$2:$AB$431,27,0)","v":"https://www.contratos.gov.co/consultas/detalleProceso.do?numConstancia=20-4-10604144"}]
[{"$error":"#REF!"},8749064,"OSVALDO CUENTAS  DE LAS  SALAS","1192","1192-2020","ODONTOLOGO"," 02 de marzo de 2020  "," 13 de  Marzo  de 2020",760000,760000,"CARLOS VISBAL JIMENEZ","COORD CENTRO DE SALUD",1419,2300,"2020-03-16",{"$f":"VLOOKUP(B312:B431,'[1]CONTRATACION MARZO '!$B$2:$AB$431,27,0)","v":"https://www.contratos.gov.co/consultas/detalleProceso.do?numConstancia=20-4-10604176"}]
[{"$error":"#REF!"},36594015,"PAOLA PEREZ SIERRA ","1193","1193-2020","AUXILIAR DE ARCHIVO "," 02 de marzo de 2020  "," 31 de marzo de 2020",1500000,1500000,"SANDRA SANMARTIN","SUBGERENCIA ADMINISTRATIVA",1420,2301,"2020-03-16",{"$f":"VLOOKUP(B313:B431,'[1]CONTRATACION MARZO '!$B$2:$AB$431,27,0)","v":"https://www.contratos.gov.co/consultas/detalleProceso.do?numConstancia=20-4-10604197"}]
[{"$error":"#REF!"},55307582,"PAOLA VALENCIA GUERRERO","1194","1194-2020","MEDICO PROGRAMA CARDIOVASCULAR"," 02 de marzo de 2020  "," 31 de marzo de 2020",3450000,3450000,"DIANA MARTINEZ PACHECO","COORD CENTRO DE SALUD",1421,2302,"2020-03-16",{"$f":"VLOOKUP(B314:B431,'[1]CONTRATACION MARZO '!$B$2:$AB$431,27,0)","v":"https://www.contratos.gov.co/consultas/detalleProceso.do?numConstancia=20-4-10604211"}]
[{"$error":"#REF!"},1001870758,"PATRICIA MERCEDES NAVARRO VALENCIA","1195","1195-2020","AGENTE CALL CENTER"," 02 de marzo de 2020  "," 31 de marzo de 2020",2400000,2400000,"WILFRAN JIMENEZ DE LA PEÑA","COORD CENTRO DE SALUD",1422,2303,"2020-03-16",{"$f":"VLOOKUP(B315:B431,'[1]CONTRATACION MARZO '!$B$2:$AB$431,27,0)","v":"https://www.contratos.gov.co/consultas/detalleProceso.do?numConstancia=20-4-10604224"}]
[{"$error":"#REF!"},1081799915,"PAULA ANDREA PIMIENTA ANDRADES","1196","1196-2020","AUXILIAR DE ENFERMERIA URGENCIAS"," 02 de marzo de 2020  "," 31 de marzo de 2020",1378000,1378000,"WILFRAN JIMENEZ DE LA PEÑA","COORD CENTRO DE SALUD",1423,2304,"2020-03-16",{"$f":"VLOOKUP(B316:B431,'[1]CONTRATACION MARZO '!$B$2:$AB$431,27,0)","v":"https://www.contratos.gov.co/consultas/detalleProceso.do?numConstancia=20-4-10604235"}]
[{"$error":"#REF!"},72015109,"PEDRO CARLOS CANTILLO BOLIVAR","1197","1197-2020","ASESOR DE PRESUPUESTO"," 02 de marzo de 2020  "," 31 de marzo de 2020",4000000,4000000,"ALFONSO NICOLAS OQUENDO","DIRECTOR FINANCIERO",1424,2305,"2020-03-16",{"$f":"VLOOKUP(B317:B431,'[1]CONTRATACION MARZO '!$B$2:$AB$431,27,0)","v":"https://www.contratos.gov.co/consultas/detalleProceso.do?numConstancia=20-4-10604249"}]
[{"$error":"#REF!"},72231273,"PEDRO RAFAEL PEREZ HERNANDEZ","1198","1198-2020","AGENTE CALL CENTER"," 02 de marzo de 2020  "," 31 de marzo de 2020",1378000,1378000,"WILFRAN JIMENEZ DE LA PEÑA","COORD CENTRO DE SALUD",1425,2306,"2020-03-16",{"$f":"VLOOKUP(B318:B431,'[1]CONTRATACION MARZO '!$B$2:$AB$431,27,0)","v":"https://www.contratos.gov.co/consultas/detalleProceso.do?numConstancia=20-4-10604257"}]
[{"$error":"#REF!"},32788911,"PEGGY ESTHER CARRILLO MUÑOZ","1199","1199-2020","DIGITADOR PAI WEB "," 02 de marzo de 2020  "," 31 de marzo de 2020",1500000,1500000,"NILSA ARIZA MARQUEZ","COORDINADOR PYP",1426,2307,"2020-03-16",{"$f":"VLOOKUP(B319:B431,'[1]CONTRATACION MARZO '!$B$2:$AB$431,27,0)","v":"https://www.contratos.gov.co/consultas/detalleProceso.do?numConstancia=20-4-10604277"}]
[{"$error":"#REF!"},15074329,"RAFAEL ANTONIO RICO","1200","1200-2020","ORIENTADOR"," 02 de marzo de 2020  "," 31 de marzo de 2020",1270000,1270000,"WILFRAN JIMENEZ DE LA PEÑA","COORD CENTRO DE SALUD",1427,2308,"2020-03-16",{"$f":"VLOOKUP(B320:B432,'[1]CONTRATACION MARZO '!$B$2:$AB$431,27,0)","v":"https://www.contratos.gov.co/consultas/detalleProceso.do?numConstancia=20-4-10604322"}]
[{"$error":"#REF!"},8770590,"RAFAEL MOVILLA FLOREZ ","1201","1201-2020","COORDINADOR DE FACTURACION"," 02 de marzo de 2020  "," 31 de marzo de 2020",1600000,1600000,"LUIS GRANADOS GOMEZ","COORD CENTRO DE SALUD",1428,2309,"2020-03-16",{"$f":"VLOOKUP(B321:B433,'[1]CONTRATACION MARZO '!$B$2:$AB$431,27,0)","v":"https://www.contratos.gov.co/consultas/detalleProceso.do?numConstancia=20-4-10604337"}]
[{"$error":"#REF!"},72147873,"RAMIRO ANTONIO SALAS LARA ","1202","1202-2020","REGENTE DE FARMACIA "," 02 de marzo de 2020  "," 31 de marzo de 2020",1900000,1900000,"BETTY PERTUZ ","SUBGERENCIA CIENTIFICA",1429,2310,"2020-03-16",{"$f":"VLOOKUP(B322:B434,'[1]CONTRATACION MARZO '!$B$2:$AB$431,27,0)","v":"https://www.contratos.gov.co/consultas/detalleProceso.do?numConstancia=20-4-10604348"}]
[{"$error":"#REF!"},72144602,"RICARDO ISAAC OROZCO BARROS","1203","1203-2020","CONDUCTOR DE AMBULANCIA "," 02 de marzo de 2020  "," 31 de marzo de 2020",1800000,{"$f":"I323*1","v":1800000},"SERGIO BOVEA MARIN","COORD CENTRO DE SALUD",1430,2311,"2020-03-16",{"$f":"VLOOKUP(B323:B435,'[1]CONTRATACION MARZO '!$B$2:$AB$431,27,0)","v":"https://www.contratos.gov.co/consultas/detalleProceso.do?numConstancia=20-4-10604366"}]
[{"$error":"#REF!"},32826802,"ROCIO ISABEL FRIAS COLPAS","1204","1204-2020","AUXILIAR SERVICIOS GENERALES"," 02 de marzo de 2020  "," 31 de marzo de 2020",1215000,1215000,"MARIA SANCHEZ AYALA","JEFE DE LAMACEN ",1431,2312,"2020-03-16",{"$f":"VLOOKUP(B324:B436,'[1]CONTRATACION MARZO '!$B$2:$AB$431,27,0)","v":"https://www.contratos.gov.co/consultas/detalleProceso.do?numConstancia=20-4-10604387"}]
[{"$error":"#REF!"},72293492,"RODOLFO ENRIQUE NARVAEZ  GUTIERREZ ","1205","1205-2020","ESTADISTICA"," 02 de marzo de 2020  "," 31 de marzo de 2020",3500000,3500000,"GENARO   GUTIERREZ DE PIÑERES","JEFE ESTADISTICA ",1432,2313,"2020-03-16",{"$f":"VLOOKUP(B325:B437,'[1]CONTRATACION MARZO '!$B$2:$AB$431,27,0)","v":"https://www.contratos.gov.co/consultas/detalleProceso.do?numConstancia=20-4-10604405"}]
[{"$error":"#REF!"},32613493,"ROSA ESCOBAR FANDIÑO","1206","1206-2020","AUXILIAR DE ENFERMERIA URGENCIAS"," 02 de marzo de 2020  "," 31 de marzo de 2020",1378000,1378000,"WILFRAN JIMENEZ DE LA PEÑA","COORD CENTRO DE SALUD",1433,2314,"2020-03-16",{"$f":"VLOOKUP(B326:B438,'[1]CONTRATACION MARZO '!$B$2:$AB$431,27,0)","v":"https://www.contratos.gov.co/consultas/detalleProceso.do?numConstancia=20-4-10604421"}]
[{"$error":"#REF!"},22446590,"ROSALBA CERPA MIRANDA ","1207","1207-2020","AUXILIAR ADMINISTRATIVO -  SUBGERENCIA CIENTIFICA"," 02 de marzo de 2020  "," 31 de marzo de 2020",1900000,1900000,"BETTY PERTUZ ","SUBGERENCIA CIENTIFICA",1434,2315,"2020-03-16",{"$f":"VLOOKUP(B327:B439,'[1]CONTRATACION MARZO '!$B$2:$AB$431,27,0)","v":"https://www.contratos.gov.co/consultas/detalleProceso.do?numConstancia=20-4-10604429"}]
[{"$error":"#REF!"},32664177,"ROSIRIS MONTES REDONDO","1208","1208-2020","AUXILIAR DE ODONTOLOGIA"," 02 de marzo de 2020  "," 31 de marzo de 2020",1166000,1166000,"YARELIS GUERRA CORREA","COORD CENTRO DE SALUD",1435,2316,"2020-03-16",{"$f":"VLOOKUP(B328:B440,'[1]CONTRATACION MARZO '!$B$2:$AB$431,27,0)","v":"https://www.contratos.gov.co/consultas/detalleProceso.do?numConstancia=20-4-10604464"}]
[{"$error":"#REF!"},72432594,"RUBEN  DARIO UCROS FABREGAS","1209","1209-2020","AUXILIAR DE FACTURACION "," 02 de marzo de 2020  "," 31 de marzo de 2020",2100000,2100000,"SANDRA SANMARTIN","SUBGERENCIA ADMINISTRATIVA",1436,2317,"2020-03-16",{"$f":"VLOOKUP(B329:B441,'[1]CONTRATACION MARZO '!$B$2:$AB$431,27,0)","v":"https://www.contratos.gov.co/consultas/detalleProceso.do?numConstancia=20-4-10604478"}]
[{"$error":"#REF!"},1140881027,"RUBEN DARIO GARZON GOMEZ","1210","1210-2020","ABOGADO EXTERNO"," 02 de marzo de 2020  "," 31 de marzo de 2020",5500000,5500000,"ORNELLA FIORENTINO ","JEFE DE JURIDICA",1437,2318,"2020-03-16",{"$f":"VLOOKUP(B330:B442,'[1]CONTRATACION MARZO '!$B$2:$AB$431,27,0)","v":"https://www.contratos.gov.co/consultas/detalleProceso.do?numConstancia=20-4-10604492"}]
[{"$error":"#REF!"},22527122,"RUBY DEL CARMEN BOSSIO HERRERA","1211","1211-2020","AUXILIAR DE ENFERMERIA URGENCIAS"," 02 de marzo de 2020  "," 31 de marzo de 2020",1378000,1378000,"SERGIO BOVEA MARIN","COORD CENTRO DE SALUD",1438,2319,"2020-03-16",{"$f":"VLOOKUP(B331:B443,'[1]CONTRATACION MARZO '!$B$2:$AB$431,27,0)","v":"https://www.contratos.gov.co/consultas/detalleProceso.do?numConstancia=20-4-10604519"}]
[{"$error":"#REF!"},1140818354,"SAEN DAVID TAJAN NIEBLES","1212","1212-2020","AUXILIAR ADMINISTRATIVO - DE  PROMOCION Y PREVENCION"," 02 de marzo de 2020  "," 31 de marzo de 2020",2000000,2000000,"NILSA ARIZA MARQUEZ","COORDINADOR PYP",1439,2320,"2020-03-16",{"$f":"VLOOKUP(B332:B444,'[1]CONTRATACION MARZO '!$B$2:$AB$431,27,0)","v":"https://www.contratos.gov.co/consultas/detalleProceso.do?numConstancia=20-4-10604523"}]
[{"$error":"#REF!"},1143456204,"SANDRA MARCELA OVIEDO ROCA","1213","1213-2020","ENFERMERA JEFE "," 02 de marzo de 2020  "," 31 de marzo de 2020",2300000,2300000,"YARELIS GUERRA CORREA","COORD CENTRO DE SALUD",1440,2321,"2020-03-16",{"$f":"VLOOKUP(B333:B445,'[1]CONTRATACION MARZO '!$B$2:$AB$431,27,0)","v":"https://www.contratos.gov.co/consultas/detalleProceso.do?numConstancia=20-4-10604539"}]
[{"$error":"#REF!"},1042426990,"SANDRA MARCELA PEREZ BERMEJO","1214","1214-2020","MEDICO DE URGENCIA"," 02 de marzo de 2020  "," 31 de marzo de 2020",2560000,2560000,"SERGIO BOVEA MARIN","COORD CENTRO DE SALUD",1441,2322,"2020-03-16",{"$f":"VLOOKUP(B334:B446,'[1]CONTRATACION MARZO '!$B$2:$AB$431,27,0)","v":"https://www.contratos.gov.co/consultas/detalleProceso.do?numConstancia=20-4-10604548"}]
[{"$error":"#REF!"},27895505,"SANDRA MILENA GARCIA PEÑA","1215","1215-2020","APOYO GESTION DOCUMENTAL JURIDICA"," 02 de marzo de 2020  "," 31 de marzo de 2020",1500000,1500000,"ORNELLA FIORENTINO ","JEFE DE JURIDICA",1442,2323,"2020-03-16",{"$f":"VLOOKUP(B335:B447,'[1]CONTRATACION MARZO '!$B$2:$AB$431,27,0)","v":"https://www.contratos.gov.co/consultas/detalleProceso.do?numConstancia=20-4-10604551"}]
[{"$error":"#REF!"},1042441044,"SASKIA STEFANIA SOTOMAYOR SOLANO","1216","1216-2020","ORIENTADOR"," 02 de marzo de 2020  "," 31 de marzo de 2020",1270000,1270000,"LUIS GRANADOS GOMEZ","COORD CENTRO DE SALUD",1443,2324,"2020-03-16",{"$f":"VLOOKUP(B336:B448,'[1]CONTRATACION MARZO '!$B$2:$AB$431,27,0)","v":"https://www.contratos.gov.co/consultas/detalleProceso.do?numConstancia=20-4-10604556"}]
[{"$error":"#REF!"},1045751778,"SERGIO ANDRES INFANZON CASTRO ","1217","1217-2020","ASESOR"," 02 de marzo de 2020  "," 31 de marzo de 2020",5800000,5800000,"ROSA MADERA","GERENTE",1444,2325,"2020-03-16",{"$f":"VLOOKUP(B337:B449,'[1]CONTRATACION MARZO '!$B$2:$AB$431,27,0)","v":"https://www.contratos.gov.co/consultas/detalleProceso.do?numConstancia=20-4-10604561"}]
[{"$error":"#REF!"},1045691613,"SERGIO ANDRES MANJARRES MAESTRE","1218","1218-2020","PLANEACION "," 02 de marzo de 2020  "," 31 de marzo de 2020",4000000,4000000,"SANDRA SANMARTIN","SUBGERENCIA ADMINISTRATIVA",1445,2326,"2020-03-16",{"$f":"VLOOKUP(B338:B450,'[1]CONTRATACION MARZO '!$B$2:$AB$431,27,0)","v":"https://www.contratos.gov.co/consultas/detalleProceso.do?numConstancia=20-4-10604572"}]
[{"$error":"#REF!"},1129572439,"SHIRLEY CONSUEGRA OLAYA","1219","1219-2020","REFERENCIA Y CONTRAREFERENCIA"," 02 de marzo de 2020  "," 31 de marzo de 2020",1270000,1270000,"SERGIO BOVEA MARIN","COORD CENTRO DE SALUD",1446,2327,"2020-03-16",{"$f":"VLOOKUP(B339:B451,'[1]CONTRATACION MARZO '!$B$2:$AB$431,27,0)","v":"https://www.contratos.gov.co/consultas/detalleProceso.do?numConstancia=20-4-10604589"}]
[{"$error":"#REF!"},32878246,"SHIRLY ISABEL RECIO COLLANTE","1220","1220-2020","AUXILIAR DE ENFERMERIA CONSULTA EXTERNA "," 02 de marzo de 2020  "," 31 de marzo de 2020",1166000,1166000,"AIX PALACIO","COORD CENTRO DE SALUD",1447,2328,"2020-03-16",{"$f":"VLOOKUP(B340:B452,'[1]CONTRATACION MARZO '!$B$2:$AB$431,27,0)","v":"https://www.contratos.gov.co/consultas/detalleProceso.do?numConstancia=20-4-10604592"}]
[{"$error":"#REF!"},1045674051,"SHIRLY PAOLA GUZMAN GUZMAN ","1221","1221-2020","ODONTOLOGO"," 02 de marzo de 2020  "," 31 de marzo de 2020",1900000,1900000,"VICTOR MIRANDA","COORD CENTRO DE SALUD",1448,2329,"2020-03-16",{"$f":"VLOOKUP(B341:B453,'[1]CONTRATACION MARZO '!$B$2:$AB$431,27,0)","v":"https://www.contratos.gov.co/consultas/detalleProceso.do?numConstancia=20-4-10604601"}]
[{"$error":"#REF!"},32870174,"SIRLEY PAOLA PEREZ CARMONA","1222","1222-2020","CALIDAD"," 02 de marzo de 2020  "," 31 de marzo de 2020",5800000,5800000,"BETTY PERTUZ ","SUBGERENCIA CIENTIFICA",1449,2330,"2020-03-16",{"$f":"VLOOKUP(B342:B454,'[1]CONTRATACION MARZO '!$B$2:$AB$431,27,0)","v":"https://www.contratos.gov.co/consultas/detalleProceso.do?numConstancia=20-4-10604604"}]
[{"$error":"#REF!"},8683158,"SMELING ORTIZ CHARRIS","1223","1223-2020","ORIENTADOR"," 02 de marzo de 2020  "," 31 de marzo de 2020",1270000,1270000,"CARLOS VISBAL JIMENEZ","COORD CENTRO DE SALUD",1450,2331,"2020-03-16",{"$f":"VLOOKUP(B343:B455,'[1]CONTRATACION MARZO '!$B$2:$AB$431,27,0)","v":"https://www.contratos.gov.co/consultas/detalleProceso.do?numConstancia=20-4-10604621"}]
[{"$error":"#REF!"},1129577912,"SOLANGI PAOLA FONTALVO JIMENEZ","1224","1224-2020","AGENTE CALL CENTER"," 02 de marzo de 2020  "," 31 de marzo de 2020",4000000,4000000,"WILFRAN JIMENEZ DE LA PEÑA","COORD CENTRO DE SALUD",1451,2332,"2020-03-16",{"$f":"VLOOKUP(B344:B456,'[1]CONTRATACION MARZO '!$B$2:$AB$431,27,0)","v":"https://www.contratos.gov.co/consultas/detalleProceso.do?numConstancia=20-4-10604629"}]
[{"$error":"#REF!"},22532041,"SORAYA  MARIA BACA RODRIGUEZ","1225","1225-2020","PSICOLOGA"," 02 de marzo de 2020  "," 31 de marzo de 2020",2800000,2800000,"SERGIO BOVEA MARIN","COORD CENTRO DE SALUD",1452,2333,"2020-03-16",{"$f":"VLOOKUP(B345:B457,'[1]CONTRATACION MARZO '!$B$2:$AB$431,27,0)","v":"https://www.contratos.gov.co/consultas/detalleProceso.do?numConstancia=20-4-10607542"}]
[{"$error":"#REF!"},1143447904,"STEFFANY BRIGGITTE ALVAREZ LLERENA","1226","1226-2020","DIGITADOR PAI WEB "," 02 de marzo de 2020  "," 31 de marzo de 2020",1500000,1500000,"NILSA ARIZA MARQUEZ","COORDINADOR PYP",1453,2334,"2020-03-16",{"$f":"VLOOKUP(B346:B458,'[1]CONTRATACION MARZO '!$B$2:$AB$431,27,0)","v":"https://www.contratos.gov.co/consultas/detalleProceso.do?numConstancia=20-4-10607548"}]
[{"$error":"#REF!"},1042430978,"TATIANA BARRIOSNUEVO CERA","1227","1227-2020","AUXILIAR DE ENFERMERIA URGENCIAS"," 02 de marzo de 2020  "," 31 de marzo de 2020",1378000,1378000,"SERGIO BOVEA MARIN","COORD CENTRO DE SALUD",1454,2335,"2020-03-16",{"$f":"VLOOKUP(B347:B459,'[1]CONTRATACION MARZO '!$B$2:$AB$431,27,0)","v":"https://www.contratos.gov.co/consultas/detalleProceso.do?numConstancia=20-4-10607553"}]
[{"$error":"#REF!"},32874863,"TATIANA PAEZ DE LA CRUZ","1228","1228-2020","AUXILIAR DE ENFERMERIA URGENCIAS"," 02 de marzo de 2020  "," 31 de marzo de 2020",1378000,1378000,"SERGIO BOVEA MARIN","COORD CENTRO DE SALUD",1455,2336,"2020-03-16",{"$f":"VLOOKUP(B348:B460,'[1]CONTRATACION MARZO '!$B$2:$AB$431,27,0)","v":"https://www.contratos.gov.co/consultas/detalleProceso.do?numConstancia=20-4-10607557"}]
[{"$error":"#REF!"},32884590,"TATIANA SUAREZ CABALLERO ","1229","1229-2020","AUXILIAR ENFERMERIA MATERNIDAD SEGURA"," 02 de marzo de 2020  "," 31 de marzo de 2020",1166000,1166000,"SERGIO BOVEA MARIN","COORD CENTRO DE SALUD",1456,2337,"2020-03-16",{"$f":"VLOOKUP(B349:B461,'[1]CONTRATACION MARZO '!$B$2:$AB$431,27,0)","v":"https://www.contratos.gov.co/consultas/detalleProceso.do?numConstancia=20-4-10607565"}]
[{"$error":"#REF!"},8771123,"TEDDY VARGAS MONTERO","1230","1230-2020","ODONTOLOGO"," 02 de marzo de 2020  "," 31 de marzo de 2020",1900000,1900000,"YARELIS GUERRA CORREA","COORD CENTRO DE SALUD",1457,2338,"2020-03-16",{"$f":"VLOOKUP(B350:B462,'[1]CONTRATACION MARZO '!$B$2:$AB$431,27,0)","v":"https://www.contratos.gov.co/consultas/detalleProceso.do?numConstancia=20-4-10607575"}]
[{"$error":"#REF!"},32607428,"TEMILDA MARIA PERTUZ PEREZ","1231","1231-2020","AUDITOR DE HABILITACIONES"," 02 de marzo de 2020  "," 31 de marzo de 2020",3180000,3180000,"BETTY PERTUZ ","SUBGERENCIA CIENTIFICA",1458,2339,"2020-03-16",{"$f":"VLOOKUP(B351:B463,'[1]CONTRATACION MARZO '!$B$2:$AB$431,27,0)","v":"https://www.contratos.gov.co/consultas/detalleProceso.do?numConstancia=20-4-10607579"}]
[{"$error":"#REF!"},1045692313,"VANESSA CASSIANI PEREZ","1232","1232-2020","DIGITADORA 4725"," 02 de marzo de 2020  "," 31 de marzo de 2020",1378000,1378000,"NILSA ARIZA MARQUEZ","COORDINADOR PYP",1459,2340,"2020-03-16",{"$f":"VLOOKUP(B352:B464,'[1]CONTRATACION MARZO '!$B$2:$AB$431,27,0)","v":"https://www.contratos.gov.co/consultas/detalleProceso.do?numConstancia=20-4-10607583"}]
[{"$error":"#REF!"},44151551,"VANESSA NUÑEZ JIMENEZ","1233","1233-2020","ASESOR GERENCIA"," 02 de marzo de 2020  "," 31 de marzo de 2020",5000000,5000000,"ROSA MADERA","GERENTE",1460,2341,"2020-03-16",{"$f":"VLOOKUP(B353:B465,'[1]CONTRATACION MARZO '!$B$2:$AB$431,27,0)","v":"https://www.contratos.gov.co/consultas/detalleProceso.do?numConstancia=20-4-10607589"}]
[{"$error":"#REF!"},1007908949,"VERONICA POLET TODARO PEDROZO","1234","1234-2020","MEDICO  CONSULTA EXTERNA"," 02 de marzo de 2020  "," 31 de marzo de 2020",2120000,2120000,"DIANA MARTINEZ PACHECO","COORD CENTRO DE SALUD",1461,2342,"2020-03-16",{"$f":"VLOOKUP(B354:B466,'[1]CONTRATACION MARZO '!$B$2:$AB$431,27,0)","v":"https://www.contratos.gov.co/consultas/detalleProceso.do?numConstancia=20-4-10607595"}]
[{"$error":"#REF!"},1140848431,"VICTORIA DEL SOCORRO CANTILLO PEREZ","1235","1235-2020","ENFERMERA CAPACITACION Y TALLER"," 02 de marzo de 2020  "," 31 de marzo de 2020",2500000,2500000,"LUIS GRANADOS GOMEZ","COORD CENTRO DE SALUD",1462,2343,"2020-03-16",{"$f":"VLOOKUP(B355:B467,'[1]CONTRATACION MARZO '!$B$2:$AB$431,27,0)","v":"https://www.contratos.gov.co/consultas/detalleProceso.do?numConstancia=20-4-10607600"}]
[{"$error":"#REF!"},32703436,"VILMA ZUÑIGA GONZALEZ","1236","1236-2020","AUXILIAR DE ODONTOLOGIA"," 02 de marzo de 2020  "," 31 de marzo de 2020",1166000,1166000,"CARLOS VISBAL JIMENEZ","COORD CENTRO DE SALUD",1463,2344,"2020-03-16",{"$f":"VLOOKUP(B356:B468,'[1]CONTRATACION MARZO '!$B$2:$AB$431,27,0)","v":"https://www.contratos.gov.co/consultas/detalleProceso.do?numConstancia=20-4-10607605"}]
[{"$error":"#REF!"},1048271951,"WENDY OFELIA BARRAZA PUA","1237","1237-2020","AUXILIAR DE ENFERMERIA URGENCIAS"," 02 de marzo de 2020  "," 31 de marzo de 2020",1378000,1378000,"SERGIO BOVEA MARIN","COORD CENTRO DE SALUD",1464,2345,"2020-03-16",{"$f":"VLOOKUP(B357:B469,'[1]CONTRATACION MARZO '!$B$2:$AB$431,27,0)","v":"https://www.contratos.gov.co/consultas/detalleProceso.do?numConstancia=20-4-10607613"}]
[{"$error":"#REF!"},72202548,"WILBER CASTRO RIOS","1238","1238-2020","MENSAJERO "," 02 de marzo de 2020  "," 31 de marzo de 2020",2000000,2000000,"SANDRA SANMARTIN","SUBGERENCIA ADMINISTRATIVA",1465,2346,"2020-03-16",{"$f":"VLOOKUP(B358:B470,'[1]CONTRATACION MARZO '!$B$2:$AB$431,27,0)","v":"https://www.contratos.gov.co/consultas/detalleProceso.do?numConstancia=20-4-10607617"}]
[{"$error":"#REF!"},1045680952,"WILLIAM RAFAEL DAVIDSON URIETA","1239","1239-2020","MEDICO CONSULTA EXTERNA "," 02 de marzo de 2020  "," 31 de marzo de 2020",2120000,2120000,"CARLOS VISBAL JIMENEZ","COORD CENTRO DE SALUD",1466,2347,"2020-03-16",{"$f":"VLOOKUP(B359:B471,'[1]CONTRATACION MARZO '!$B$2:$AB$431,27,0)","v":"https://www.contratos.gov.co/consultas/detalleProceso.do?numConstancia=20-4-10607624"}]
[{"$error":"#REF!"},72130373,"WILLYS CARLOS PEREZ TRONCOSO","1240","1240-2020","MEDICO CONSULTA EXTERNA "," 02 de marzo de 2020  "," 31 de marzo de 2020",2120000,2120000,"CARLOS VISBAL JIMENEZ","COORD CENTRO DE SALUD",1467,2348,"2020-03-16",{"$f":"VLOOKUP(B360:B472,'[1]CONTRATACION MARZO '!$B$2:$AB$431,27,0)","v":"https://www.contratos.gov.co/consultas/detalleProceso.do?numConstancia=20-4-10608193"}]
[{"$error":"#REF!"},1042456068,"XILENA PACHECO OSPINO ","1241","1241-2020","AUXILIAR DE ENFERMERIA URGENCIAS"," 02 de marzo de 2020  "," 31 de marzo de 2020",1378000,1378000,"SERGIO BOVEA MARIN","COORD CENTRO DE SALUD",1468,2349,"2020-03-16",{"$f":"VLOOKUP(B361:B473,'[1]CONTRATACION MARZO '!$B$2:$AB$431,27,0)","v":"https://www.contratos.gov.co/consultas/detalleProceso.do?numConstancia=20-4-10608199"}]
[{"$error":"#REF!"},44153255,"XIMENA ESCORCIA CASTRO","1242","1242-2020","MEDICO DE URGENCIA"," 02 de marzo de 2020  "," 31 de marzo de 2020",2560000,2560000,"SERGIO BOVEA MARIN","COORD CENTRO DE SALUD",1469,2350,"2020-03-16",{"$f":"VLOOKUP(B362:B474,'[1]CONTRATACION MARZO '!$B$2:$AB$431,27,0)","v":"https://www.contratos.gov.co/consultas/detalleProceso.do?numConstancia=20-4-10608211"}]
[{"$error":"#REF!"},52703063,"XIOMARA  BELLO ORTEGA","1243","1243-2020","AUXILIAR DE ENFERMERIA URGENCIAS"," 02 de marzo de 2020  "," 31 de marzo de 2020",1378000,1378000,"WILFRAN JIMENEZ DE LA PEÑA","COORD CENTRO DE SALUD",1470,2351,"2020-03-16",{"$f":"VLOOKUP(B363:B475,'[1]CONTRATACION MARZO '!$B$2:$AB$431,27,0)","v":"https://www.contratos.gov.co/consultas/detalleProceso.do?numConstancia=20-4-10608220"}]
[{"$error":"#REF!"},1042437499,"XIOMARA ALEJANDRA MAURY PACHECO ","1244","1244-2020","ENFERMERA JEFE URGENCIAS "," 02 de marzo de 2020  "," 31 de marzo de 2020",1900000,1900000,"SERGIO BOVEA MARIN","COORD CENTRO DE SALUD",1471,2352,"2020-03-16",{"$f":"VLOOKUP(B364:B476,'[1]CONTRATACION MARZO '!$B$2:$AB$431,27,0)","v":"https://www.contratos.gov.co/consultas/detalleProceso.do?numConstancia=20-4-10608224"}]
[{"$error":"#REF!"},72429429,"YAIR BARRAZA CERVANTES ","1245","1245-2020","MEDICO PROGRAMA CARDIOVASCULAR"," 02 de marzo de 2020  "," 31 de marzo de 2020",2300000,2300000,"YARELIS GUERRA CORREA","COORD CENTRO DE SALUD",1472,2353,"2020-03-16",{"$f":"VLOOKUP(B365:B477,'[1]CONTRATACION MARZO '!$B$2:$AB$431,27,0)","v":"https://www.contratos.gov.co/consultas/detalleProceso.do?numConstancia=20-4-10608228"}]
[{"$error":"#REF!"},1045717737,"YAIR YEZID MELO VALENCIA","1246","1246-2020","ASESOR DE PRESUPUESTO"," 02 de marzo de 2020  "," 31 de marzo de 2020",4000000,4000000,"ALFONSO NICOLAS OQUENDO","DIRECTOR FINANCIERO",1473,2354,"2020-03-16",{"$f":"VLOOKUP(B366:B478,'[1]CONTRATACION MARZO '!$B$2:$AB$431,27,0)","v":"https://www.contratos.gov.co/consultas/detalleProceso.do?numConstancia=20-4-10608234"}]
[{"$error":"#REF!"},56087561,"YAMILZA ESTHER MURGAS ORTIZ","1247","1247-2020","AUXILIAR DE ENFERMERIA"," 02 de marzo de 2020  "," 31 de marzo de 2020",1166000,1166000,"LUIS GRANADOS GOMEZ","COORD CENTRO DE SALUD",1474,2355,"2020-03-16",{"$f":"VLOOKUP(B367:B479,'[1]CONTRATACION MARZO '!$B$2:$AB$431,27,0)","v":"https://www.contratos.gov.co/consultas/detalleProceso.do?numConstancia=20-4-10608236"}]
[{"$error":"#REF!"},32816824,"YANETH CARO VITOLA","1248","1248-2020","AUXILIAR DE ENFERMERIA P Y P "," 02 de marzo de 2020  "," 31 de marzo de 2020",1166000,1166000,"WILFRAN JIMENEZ DE LA PEÑA","COORD CENTRO DE SALUD",1475,2356,"2020-03-16",{"$f":"VLOOKUP(B368:B480,'[1]CONTRATACION MARZO '!$B$2:$AB$431,27,0)","v":"https://www.contratos.gov.co/consultas/detalleProceso.do?numConstancia=20-4-10608243"}]
[{"$error":"#REF!"},44159754,"YANIRE CARLINA CASTRO ESCALANTE","1249","1249-2020","GINECOLOGO "," 02 de marzo de 2020  "," 31 de marzo de 2020",8000000,8000000,"NILSA ARIZA MARQUEZ","COORDINADOR PYP",1476,2357,"2020-03-16",{"$f":"VLOOKUP(B369:B481,'[1]CONTRATACION MARZO '!$B$2:$AB$431,27,0)","v":"https://www.contratos.gov.co/consultas/detalleProceso.do?numConstancia=20-4-10608249"}]
[{"$error":"#REF!"},77030162,"YECITH FELIPE MARTINEZ QUINTERO","1250","1250-2020","MENSAJERO "," 02 de marzo de 2020  "," 31 de marzo de 2020",1800000,1800000,"SANDRA SANMARTIN","SUBGERENCIA ADMINISTRATIVA",1477,2358,"2020-03-16",{"$f":"VLOOKUP(B370:B482,'[1]CONTRATACION MARZO '!$B$2:$AB$431,27,0)","v":"https://www.contratos.gov.co/consultas/detalleProceso.do?numConstancia=20-4-10608252"}]
[{"$error":"#REF!"},1143452684,"YEISON MISAEL DUARTE CALDERON","1251","1251-2020","CONDUCTOR DE AMBULANCIA "," 02 de marzo de 2020  "," 31 de marzo de 2020",1800000,1800000,"BETTY PERTUZ ","SUBGERENCIA CIENTIFICA",1478,2359,"2020-03-16",{"$f":"VLOOKUP(B371:B483,'[1]CONTRATACION MARZO '!$B$2:$AB$431,27,0)","v":"https://www.contratos.gov.co/consultas/detalleProceso.do?numConstancia=20-4-10608262"}]
[{"$f":"+A371+1","v":{"$error":"#REF!"}},1045733253,"YELICSE LORENA ALFONSO DE LOS SANTOS","1252","1252-2020","AUXILIAR ADMINISTRATIVO -CONTRATACION "," 02 de marzo de 2020  "," 31 de marzo de 2020",1500000,1500000,"ORNELLA FIORENTINO ","JEFE DE JURIDICA",1479,2360,"2020-03-16",{"$f":"VLOOKUP(B372:B484,'[1]CONTRATACION MARZO '!$B$2:$AB$431,27,0)","v":"https://www.contratos.gov.co/consultas/detalleProceso.do?numConstancia=20-4-10608267"}]
[{"$error":"#REF!"},1143450666,"YERLIS PAOLA FONTALVO LAMBRAÑO","1253","1253-2020","AUXILIAR FACTURACION URGENCIA"," 02 de marzo de 2020  "," 31 de marzo de 2020",1400000,1400000,"SANDRA SANMARTIN","SUBGERENCIA ADMINISTRATIVA",1480,2361,"2020-03-16",{"$f":"VLOOKUP(B373:B485,'[1]CONTRATACION MARZO '!$B$2:$AB$431,27,0)","v":"https://www.contratos.gov.co/consultas/detalleProceso.do?numConstancia=20-4-10608275"}]
[{"$error":"#REF!"},1143132965,"YERLIS PAOLA GAMARRA BORJA","1254","1254-2020","AUXILIAR ADMINITRATIVO - GERENCIA"," 02 de marzo de 2020  "," 31 de marzo de 2020",4000000,4000000,"ROSA MADERA","GERENTE",1481,2362,"2020-03-16",{"$f":"VLOOKUP(B374:B486,'[1]CONTRATACION MARZO '!$B$2:$AB$431,27,0)","v":"https://www.contratos.gov.co/consultas/detalleProceso.do?numConstancia=20-4-10608283"}]
[{"$error":"#REF!"},55246222,"YESIKA ANGULO MADRID","1255","1255-2020","FISIOTERAPEUTA "," 02 de marzo de 2020  "," 31 de marzo de 2020",1900000,1900000,"WILFRAN JIMENEZ DE LA PEÑA","COORD CENTRO DE SALUD",1482,2363,"2020-03-16",{"$f":"VLOOKUP(B375:B487,'[1]CONTRATACION MARZO '!$B$2:$AB$431,27,0)","v":"https://www.contratos.gov.co/consultas/detalleProceso.do?numConstancia=20-4-10608289"}]
[{"$error":"#REF!"},1042425681,"YESMITH ALEXI GARIZABALO RETAMOSO ","1256","1256-2020","MEDICO DE URGENCIA"," 02 de marzo de 2020  "," 31 de marzo de 2020",2560000,2560000,"SERGIO BOVEA MARIN","COORD CENTRO DE SALUD",1483,2364,"2020-03-16",{"$f":"VLOOKUP(B376:B488,'[1]CONTRATACION MARZO '!$B$2:$AB$431,27,0)","v":"https://www.contratos.gov.co/consultas/detalleProceso.do?numConstancia=20-4-10608329"}]
[{"$error":"#REF!"},32739126,"YIRA DEL CARMEN PEÑALOZA AREVALO","1257","1257-2020","AUXILIAR SERVICIOS GENERALES URGENCIA"," 02 de marzo de 2020  "," 31 de marzo de 2020",1378000,1378000,"SERGIO BOVEA MARIN","COORD CENTRO DE SALUD",1484,2365,"2020-03-16",{"$f":"VLOOKUP(B377:B489,'[1]CONTRATACION MARZO '!$B$2:$AB$431,27,0)","v":"https://www.contratos.gov.co/consultas/detalleProceso.do?numConstancia=20-4-10608339"}]
[{"$error":"#REF!"},32896400,"YISEL BEATRIZ ARROYO SUAREZ","1258","1258-2020","AUXILIAR DE FACTURACION URGENCIA"," 02 de marzo de 2020  "," 31 de marzo de 2020",1400000,1400000,"SERGIO BOVEA MARIN","COORD CENTRO DE SALUD",1485,2366,"2020-03-16",{"$f":"VLOOKUP(B378:B490,'[1]CONTRATACION MARZO '!$B$2:$AB$431,27,0)","v":"https://www.contratos.gov.co/consultas/detalleProceso.do?numConstancia=20-4-10608356"}]
[{"$error":"#REF!"},55230396,"YORLETH MALENA FLOREZ ABRIL","1259","1259-2020","MEDICO DE URGENCIA"," 02 de marzo de 2020  "," 31 de marzo de 2020",2560000,2560000,"SERGIO BOVEA MARIN","COORD CENTRO DE SALUD",1486,2367,"2020-03-16",{"$f":"VLOOKUP(B379:B491,'[1]CONTRATACION MARZO '!$B$2:$AB$431,27,0)","v":"https://www.contratos.gov.co/consultas/detalleProceso.do?numConstancia=20-4-10608366"}]
[{"$error":"#REF!"},55225095,"YURAIMA GUTIERREZ HERNANDEZ","1260","1260-2020","REGENTE DE FARMACIA "," 02 de marzo de 2020  "," 31 de marzo de 2020",1900000,1900000,"BETTY PERTUZ ","SUBGERENCIA CIENTIFICA",1487,2368,"2020-03-16",{"$f":"VLOOKUP(B380:B492,'[1]CONTRATACION MARZO '!$B$2:$AB$431,27,0)","v":"https://www.contratos.gov.co/consultas/detalleProceso.do?numConstancia=20-4-10608379"}]
[{"$error":"#REF!"},55250327,"YURANIS BONIFAS CAÑAS","1261","1261-2020","COORDINADOR DE PAI WEB"," 02 de marzo de 2020  "," 31 de marzo de 2020",3000000,3000000,"NILSA ARIZA MARQUEZ","COORDINADOR PYP",1488,2369,"2020-03-16",{"$f":"VLOOKUP(B381:B493,'[1]CONTRATACION MARZO '!$B$2:$AB$431,27,0)","v":"https://www.contratos.gov.co/consultas/detalleProceso.do?numConstancia=20-4-10608380"}]
[{"$error":"#REF!"},1042436116,"YURANIS SOTO OSORIO","1262","1262-2020","AUXILIAR DE ENFERMERIA URGENCIAS"," 02 de marzo de 2020  "," 31 de marzo de 2020",1378000,1378000,"WILFRAN JIMENEZ DE LA PEÑA","COORD CENTRO DE SALUD",1489,2370,"2020-03-16",{"$f":"VLOOKUP(B382:B494,'[1]CONTRATACION MARZO '!$B$2:$AB$431,27,0)","v":"https://www.contratos.gov.co/consultas/detalleProceso.do?numConstancia=20-4-10608384"}]
[{"$error":"#REF!"},1045226744,"YURISABEL CERVANTES VESGA ","1263","1263-2020","MEDICO DE URGENCIA"," 02 de marzo de 2020  "," 31 de marzo de 2020",2560000,2560000,"WILFRAN JIMENEZ DE LA PEÑA","COORD CENTRO DE SALUD",1490,2371,"2020-03-16",{"$f":"VLOOKUP(B383:B495,'[1]CONTRATACION MARZO '!$B$2:$AB$431,27,0)","v":"https://www.contratos.gov.co/consultas/detalleProceso.do?numConstancia=20-4-10608398"}]
[{"$error":"#REF!"},44155518,"YURLEY FONTALVO RIVALDO ","1264","1264-2020","MEDICO DE URGENCIA"," 02 de marzo de 2020  "," 31 de marzo de 2020",2560000,2560000,"SERGIO BOVEA MARIN","COORD CENTRO DE SALUD",1491,2372,"2020-03-16",{"$f":"VLOOKUP(B384:B496,'[1]CONTRATACION MARZO '!$B$2:$AB$431,27,0)","v":"https://www.contratos.gov.co/consultas/detalleProceso.do?numConstancia=20-4-10608404"}]
[{"$error":"#REF!"},32865503,"ZULAI DONADO PARODIS ","1265","1265-2020","AUXILIAR DE ENFERMERIA P Y P "," 02 de marzo de 2020  "," 31 de marzo de 2020",1166000,1166000,"SERGIO BOVEA MARIN","COORD CENTRO DE SALUD",1492,2373,"2020-03-16",{"$f":"VLOOKUP(B385:B497,'[1]CONTRATACION MARZO '!$B$2:$AB$431,27,0)","v":"https://www.contratos.gov.co/consultas/detalleProceso.do?numConstancia=20-4-10608410"}]
[{"$error":"#REF!"},8566775,"ALEJANDRO LIBARDO ALEMAN MARQUEZ","1266","1266-2020","AUXILIAR DE ARCHIVO "," 02 de marzo de 2020  "," 31 de marzo de 2020",1500000,1500000,"SANDRA SANMARTIN","SUBGERENCIA ADMINISTRATIVA",1493,2374,"2020-03-16",{"$f":"VLOOKUP(B386:B498,'[1]CONTRATACION MARZO '!$B$2:$AB$431,27,0)","v":"https://www.contratos.gov.co/consultas/detalleProceso.do?numConstancia=20-4-10608432"}]
[{"$error":"#REF!"},1048204901,"ALEXANDER RAFAEL OTERO PADILLA","1267","1267-2020","AUXILIAR DE PRSUPUESTO"," 02 de marzo de 2020  "," 31 de marzo de 2020",4000000,{"$f":"I387*1","v":4000000},"ALFONSO NICOLAS OQUENDO","DIRECTOR FINANCIERO",1494,2375,"2020-03-16",{"$f":"VLOOKUP(B387:B499,'[1]CONTRATACION MARZO '!$B$2:$AB$431,27,0)","v":"https://www.contratos.gov.co/consultas/detalleProceso.do?numConstancia=20-4-10608458"}]
[{"$error":"#REF!"},72303740,"ANDRES JOSE NAVARRO CARBONELL","1268","1268-2020","AUXILIAR  ADMINISTRATIVO  DE FARMACIA "," 02 de marzo de 2020  "," 31 de marzo de 2020",1900000,1900000,"BETTY PERTUZ ","SUBGERENCIA CIENTIFICA",1495,2376,"2020-03-16",{"$f":"VLOOKUP(B388:B500,'[1]CONTRATACION MARZO '!$B$2:$AB$431,27,0)","v":"https://www.contratos.gov.co/consultas/detalleProceso.do?numConstancia=20-4-10608472"}]
[{"$error":"#REF!"},8501206,"AUGUSTO RAFAEL VALENCIA OCAMPO","1269","1269-2020","AUXILIAR DE FACTURACIÓN "," 02 de marzo de 2020  "," 31 de marzo de 2020",1300000,1300000,"SERGIO BOVEA MARIN","COORD CENTRO DE SALUD",1496,2377,"2020-03-16",{"$f":"VLOOKUP(B389:B501,'[1]CONTRATACION MARZO '!$B$2:$AB$431,27,0)","v":"https://www.contratos.gov.co/consultas/detalleProceso.do?numConstancia=20-4-10608488"}]
[{"$error":"#REF!"},64580944,"BIBIANA MARIA DIAZ RUIZ ","1270","1270-2020","ASISTENTE SUBGERENCIA CIENTIFICA "," 02 de marzo de 2020  "," 31 de marzo de 2020",5800000,5800000,"BETTY PERTUZ ","SUBGERENCIA CIENTIFICA",1497,2378,"2020-03-16",{"$f":"VLOOKUP(B390:B502,'[1]CONTRATACION MARZO '!$B$2:$AB$431,27,0)","v":"https://www.contratos.gov.co/consultas/detalleProceso.do?numConstancia=20-4-10608496"}]
[{"$error":"#REF!"},1140872217,"BLEYDIS LORAINE PELAEZ LOBO","1271","1271-2020","MEDICO DE URGENCIA"," 02 de marzo de 2020  "," 31 de marzo de 2020",2560000,2560000,"SERGIO BOVEA MARIN","COORD CENTRO DE SALUD",1498,2379,"2020-03-16",{"$f":"VLOOKUP(B391:B503,'[1]CONTRATACION MARZO '!$B$2:$AB$431,27,0)","v":"https://www.contratos.gov.co/consultas/detalleProceso.do?numConstancia=20-4-10608507"}]
[{"$error":"#REF!"},1043873154,"CARLOS AUGUSTO ANGULO BANDERA","1272","1272-2020","ORIENTADOR"," 02 de marzo de 2020  "," 31 de marzo de 2020",1270000,1270000,"YARELIS GUERRA CORREA","COORD CENTRO DE SALUD",1499,2380,"2020-03-16",{"$f":"VLOOKUP(B392:B504,'[1]CONTRATACION MARZO '!$B$2:$AB$431,27,0)","v":"https://www.contratos.gov.co/consultas/detalleProceso.do?numConstancia=20-4-10608513"}]
[{"$error":"#REF!"},22549719,"CARMEN MELINA BOLAÑO COTES ","1273","1273-2020","AUXILIAR ADMINISTRATIVO- ESTADISTICA"," 02 de marzo de 2020  "," 31 de marzo de 2020",1900000,1900000,"SANDRA SANMARTIN","SUBGERENCIA ADMINISTRATIVA",1500,2381,"2020-03-16",{"$f":"VLOOKUP(B393:B505,'[1]CONTRATACION MARZO '!$B$2:$AB$431,27,0)","v":"https://www.contratos.gov.co/consultas/detalleProceso.do?numConstancia=20-4-10608530"}]
[{"$error":"#REF!"},32896374,"DAILY CAROLINA PEREZ GUETTE","1274","1274-2020","ODONTOLOGO"," 02 de marzo de 2020  "," 31 de marzo de 2020",1900000,1900000,"LUIS GRANADOS GOMEZ","COORD CENTRO DE SALUD",1501,2382,"2020-03-16",{"$f":"VLOOKUP(B394:B506,'[1]CONTRATACION MARZO '!$B$2:$AB$431,27,0)","v":"https://www.contratos.gov.co/consultas/detalleProceso.do?numConstancia=20-4-10608539"}]
[{"$error":"#REF!"},72432974,"EDER JOSE CASTRO PINTO","1275","1275-2020","ORIENTADOR"," 02 de marzo de 2020  "," 31 de marzo de 2020",1270000,1270000,"SANDRA SANMARTIN","SUBGERENCIA ADMINISTRATIVA",1502,2383,"2020-03-16",{"$f":"VLOOKUP(B395:B507,'[1]CONTRATACION MARZO '!$B$2:$AB$431,27,0)","v":"https://www.contratos.gov.co/consultas/detalleProceso.do?numConstancia=20-4-10608575"}]
[{"$error":"#REF!"},22504109,"FLOR MILENA GOICOECHEA OROZCO","1276","1276-2020","AUXILIAR DE FACTURACIÓN "," 02 de marzo de 2020  "," 31 de marzo de 2020",2500000,2500000,"SANDRA SANMARTIN","SUBGERENCIA ADMINISTRATIVA",1503,2384,"2020-03-16",{"$f":"VLOOKUP(B396:B508,'[1]CONTRATACION MARZO '!$B$2:$AB$431,27,0)","v":"https://www.contratos.gov.co/consultas/detalleProceso.do?numConstancia=20-4-10608585"}]
[{"$error":"#REF!"},1143166347,"GERALDINE DAYANA AMARIS MILLAN","1277","1277-2020","AGENTE CALL CENTER"," 02 de marzo de 2020  "," 31 de marzo de 2020",1378000,1378000,"WILFRAN JIMENEZ DE LA PEÑA","COORD CENTRO DE SALUD",1504,2385,"2020-03-16",{"$f":"VLOOKUP(B397:B509,'[1]CONTRATACION MARZO '!$B$2:$AB$431,27,0)","v":"https://www.contratos.gov.co/consultas/detalleProceso.do?numConstancia=20-4-10608602"}]
[{"$error":"#REF!"},22551160,"GISELL MILENA HERRERA ZUÑIGA","1278","1278-2020","MEDICO CONSULTA  EXTERNA"," 02 de marzo de 2020  "," 31 de marzo de 2020",2120000,2120000,"AIX PALACIO","COORD CENTRO DE SALUD",1505,2386,"2020-03-16",{"$f":"VLOOKUP(B398:B510,'[1]CONTRATACION MARZO '!$B$2:$AB$431,27,0)","v":"https://www.contratos.gov.co/consultas/detalleProceso.do?numConstancia=20-4-10608611"}]
[{"$error":"#REF!"},1143449271,"HELEN YIRE MALDONADO MIRANDA","1279","1279-2020","AUXILIAR DE ODONTOLOGIA"," 02 de marzo de 2020  "," 31 de marzo de 2020",1166000,1166000,"VICTOR MIRANDA","COORD CENTRO DE SALUD",1506,2387,"2020-03-16",{"$f":"VLOOKUP(B399:B511,'[1]CONTRATACION MARZO '!$B$2:$AB$431,27,0)","v":"https://www.contratos.gov.co/consultas/detalleProceso.do?numConstancia=20-4-10608626"}]
[{"$error":"#REF!"},32822389,"ISABEL AMÉRICA DE ALBA RODRIGUEZ","1280","1280-2020","AUXILIAR DE FACTURACION -CONSULTA EXTERNA "," 02 de marzo de 2020  "," 31 de marzo de 2020",1400000,1400000,"SANDRA SANMARTIN","SUBGERENCIA ADMINISTRATIVA",1507,2388,"2020-03-16",{"$f":"VLOOKUP(B400:B512,'[1]CONTRATACION MARZO '!$B$2:$AB$431,27,0)","v":"https://www.contratos.gov.co/consultas/detalleProceso.do?numConstancia=20-4-10608646"}]
[{"$error":"#REF!"},1010123461,"IVAN RAMIRO MORENO MENDOZA","1281","1281-2020","DIGITADOR PAI WEB "," 02 de marzo de 2020  "," 31 de marzo de 2020",1400000,1400000,"NILSA ARIZA MARQUEZ","COORDINADOR PYP",1508,2389,"2020-03-16",{"$f":"VLOOKUP(B401:B513,'[1]CONTRATACION MARZO '!$B$2:$AB$431,27,0)","v":"https://www.contratos.gov.co/consultas/detalleProceso.do?numConstancia=20-4-10608655"}]
[{"$error":"#REF!"},1047258567,"JENNIFER PAULA FRUTO MALDONADO ","1282","1282-2020","MEDICO CONSULTA  EXTERNA"," 02 de marzo de 2020  "," 31 de marzo de 2020",2120000,2120000,"DIANA MARTINEZ PACHECO","COORD CENTRO DE SALUD",1509,2390,"2020-03-16",{"$f":"VLOOKUP(B402:B514,'[1]CONTRATACION MARZO '!$B$2:$AB$431,27,0)","v":"https://www.contratos.gov.co/consultas/detalleProceso.do?numConstancia=20-4-10608668"}]
[{"$error":"#REF!"},1042439853,"KERVY DIYAN JINETTE BARRIOS","1283","1283-2020","AUXILIAR ADMINISTRATIVODE LA RESOLUCIÓN 2463"," 02 de marzo de 2020  "," 31 de marzo de 2020",2913333,2913333,"BETTY PERTUZ ","SUBGERENCIA CIENTIFICA",1510,2391,"2020-03-16",{"$f":"VLOOKUP(B403:B515,'[1]CONTRATACION MARZO '!$B$2:$AB$431,27,0)","v":"https://www.contratos.gov.co/consultas/detalleProceso.do?numConstancia=20-4-10608689"}]
[{"$error":"#REF!"},55220183,"KETTY PILAR INSIGNARES MATOS ","1284","1284-2020","PSICOLOGA "," 02 de marzo de 2020  "," 31 de marzo de 2020",2800000,2800000,"DIANA MARTINEZ PACHECO","COORD CENTRO DE SALUD",1511,2392,"2020-03-16",{"$f":"VLOOKUP(B404:B516,'[1]CONTRATACION MARZO '!$B$2:$AB$431,27,0)","v":"https://www.contratos.gov.co/consultas/detalleProceso.do?numConstancia=20-4-10608714"}]
[{"$error":"#REF!"},1042435701,"LAURA MARCELA PEÑA ESCALONA","1285","1285-2020","AUXILIAR DE ODONTOLOGIA"," 02 de marzo de 2020  "," 13 de  Marzo  de 2020",466400,466400,"SERGIO BOVEA MARIN","COORD CENTRO DE SALUD",1512,2393,"2020-03-16",{"$f":"VLOOKUP(B405:B517,'[1]CONTRATACION MARZO '!$B$2:$AB$431,27,0)","v":"https://www.contratos.gov.co/consultas/detalleProceso.do?numConstancia=20-4-10608721"}]
[{"$error":"#REF!"},22694020,"LEDIS DEL SOCORRO BACA ORTIZ","1286","1286-2020","AUXILIAR DE ENFERMERIA"," 02 de marzo de 2020  "," 31 de marzo de 2020",1166000,1166000,"BETTY PERTUZ ","SUBGERENCIA CIENTIFICA",1513,2394,"2020-03-16",{"$f":"VLOOKUP(B406:B518,'[1]CONTRATACION MARZO '!$B$2:$AB$431,27,0)","v":"https://www.contratos.gov.co/consultas/detalleProceso.do?numConstancia=20-4-10608747"}]
[{"$error":"#REF!"},1044432609,"LUPE MAURY SANTIAGO","1287","1287-2020","MEDICO CONSULTA EXTERNA"," 02 de marzo de 2020  "," 31 de marzo de 2020",2120000,2120000,"SERGIO BOVEA MARIN","COORD CENTRO DE SALUD",1514,2395,"2020-03-16",{"$f":"VLOOKUP(B407:B519,'[1]CONTRATACION MARZO '!$B$2:$AB$431,27,0)","v":"https://www.contratos.gov.co/consultas/detalleProceso.do?numConstancia=20-4-10608776"}]
[{"$error":"#REF!"},1042447096,"MARBELYS AHELL RANGEL MERCADO ","1288","1288-2020","AGENTE CALL CENTER"," 02 de marzo de 2020  "," 31 de marzo de 2020",1378000,1378000,"WILFRAN JIMENEZ DE LA PEÑA","COORD CENTRO DE SALUD",1515,2396,"2020-03-16",{"$f":"VLOOKUP(B408:B520,'[1]CONTRATACION MARZO '!$B$2:$AB$431,27,0)","v":"https://www.contratos.gov.co/consultas/detalleProceso.do?numConstancia=20-4-10608788"}]
[{"$error":"#REF!"},1047337864,"MARTHA MARÍA ARIZA FONTALVO","1289","1289-2020","AUXILIAR DE ARCHIVO "," 02 de marzo de 2020  "," 31 de marzo de 2020",1500000,1500000,"SANDRA SANMARTIN","SUBGERENCIA ADMINISTRATIVA",1516,2397,"2020-03-16",{"$f":"VLOOKUP(B409:B521,'[1]CONTRATACION MARZO '!$B$2:$AB$431,27,0)","v":"https://www.contratos.gov.co/consultas/detalleProceso.do?numConstancia=20-4-10608808"}]
[{"$error":"#REF!"},39013975,"MARTHA MARMOL ARIAS","1290","1290-2020","AUXILIAR  SERVICIOS GENERALES"," 02 de marzo de 2020  "," 31 de marzo de 2020",1215000,1215000,"VICTOR MIRANDA","COORD CENTRO DE SALUD",1517,2398,"2020-03-16",{"$f":"VLOOKUP(B410:B522,'[1]CONTRATACION MARZO '!$B$2:$AB$431,27,0)","v":"https://www.contratos.gov.co/consultas/detalleProceso.do?numConstancia=20-4-10608820"}]
[{"$error":"#REF!"},1001878251,"MAYRA ALEJANDRA ESCORCIA DE LA HOZ","1291","1291-2020","AUXILIAR DE ARCHIVO "," 02 de marzo de 2020  "," 31 de marzo de 2020",1500000,1500000,"SANDRA SANMARTIN","SUBGERENCIA ADMINISTRATIVA",1518,2399,"2020-03-16",{"$f":"VLOOKUP(B411:B523,'[1]CONTRATACION MARZO '!$B$2:$AB$431,27,0)","v":"https://www.contratos.gov.co/consultas/detalleProceso.do?numConstancia=20-4-10608830"}]
[{"$error":"#REF!"},32828506,"NINOSKA CELESTE BARCELÓ OVIEDO","1292","1292-2020","PSICOLOGA SIAU"," 02 de marzo de 2020  "," 31 de marzo de 2020",2200000,2200000,"AIX PALACIO","COORD CENTRO DE SALUD",1519,2400,"2020-03-16",{"$f":"VLOOKUP(B412:B524,'[1]CONTRATACION MARZO '!$B$2:$AB$431,27,0)","v":"https://www.contratos.gov.co/consultas/detalleProceso.do?numConstancia=20-4-10608854"}]
[{"$error":"#REF!"},22642515,"NOHEMI ESPERANZA CASTRO LOPEZ ","1293","1293-2020","AUDITORA DE SERVICIOS DE SALUD "," 02 de marzo de 2020  "," 31 de marzo de 2020",4000000,4000000,"BETTY PERTUZ ","SUBGERENCIA CIENTIFICA",1520,2401,"2020-03-16",{"$f":"VLOOKUP(B413:B525,'[1]CONTRATACION MARZO '!$B$2:$AB$431,27,0)","v":"https://www.contratos.gov.co/consultas/detalleProceso.do?numConstancia=20-4-10608862"}]
[{"$error":"#REF!"},1042439971,"ROGER RAFAEL RAMBAO NIEBLES","1294","1294-2020","DIGITADOR PAI WEB "," 02 de marzo de 2020  "," 31 de marzo de 2020",1400000,1400000,"NILSA ARIZA MARQUEZ","COORDINADOR PYP",1521,2402,"2020-03-16",{"$f":"VLOOKUP(B414:B526,'[1]CONTRATACION MARZO '!$B$2:$AB$431,27,0)","v":"https://www.contratos.gov.co/consultas/detalleProceso.do?numConstancia=20-4-10608874"}]
[{"$error":"#REF!"},32611735,"ROQUELINA SABIS BLANCO MOSCARELLA ","1295","1295-2020","ABOGADA CONTRATACIÓN"," 02 de marzo de 2020  "," 31 de marzo de 2020",4000000,4000000,"ORNELLA FIORENTINO","JEFE DE JURIDICA",1522,2403,"2020-03-16",{"$f":"VLOOKUP(B415:B527,'[1]CONTRATACION MARZO '!$B$2:$AB$431,27,0)","v":"https://www.contratos.gov.co/consultas/detalleProceso.do?numConstancia=20-4-10608878"}]
[{"$error":"#REF!"},1042435408,"SANDY PATRICIA BRUJES GUERRERO","1296","1296-2020","AGENTE CALL CENTER"," 02 de marzo de 2020  "," 31 de marzo de 2020",1378000,1378000,"WILFRAN JIMENEZ DE LA PEÑA","COORD CENTRO DE SALUD",1523,2404,"2020-03-16",{"$f":"VLOOKUP(B416:B528,'[1]CONTRATACION MARZO '!$B$2:$AB$431,27,0)","v":"https://www.contratos.gov.co/consultas/detalleProceso.do?numConstancia=20-4-10608888"}]
[{"$error":"#REF!"},1045724863,"SERGIO ANDRES SALAS SALAS  ","1297","1297-2020","MEDICO DE URGENCIA"," 02 de marzo de 2020  "," 31 de marzo de 2020",3328000,3328000,"WILFRAN JIMENEZ DE LA PEÑA","COORD CENTRO DE SALUD",1524,2405,"2020-03-16",{"$f":"VLOOKUP(B417:B529,'[1]CONTRATACION MARZO '!$B$2:$AB$431,27,0)","v":"https://www.contratos.gov.co/consultas/detalleProceso.do?numConstancia=20-4-10608900"}]
[{"$error":"#REF!"},1140855017,"STEPHANY LORRAINE NIEBLES ZULUAGA ","1298","1298-2020","ENFERMERA JEFE CONSULTA EXTERNA "," 02 de marzo de 2020  "," 31 de marzo de 2020",1900000,1900000,"LUIS GRANADOS GOMEZ","COORD CENTRO DE SALUD",1525,2406,"2020-03-16",{"$f":"VLOOKUP(B418:B530,'[1]CONTRATACION MARZO '!$B$2:$AB$431,27,0)","v":"https://www.contratos.gov.co/consultas/detalleProceso.do?numConstancia=20-4-10608909"}]
[{"$error":"#REF!"},22692801,"SUNILDA ESTHER SAURIT ESCORCIA","1299","1299-2020","AUXILIAR DE ENFERMERIA"," 02 de marzo de 2020  "," 31 de marzo de 2020",1166000,1166000,"DIANA MARTINEZ PACHECO","COORD CENTRO DE SALUD",1526,2407,"2020-03-16",{"$f":"VLOOKUP(B419:B531,'[1]CONTRATACION MARZO '!$B$2:$AB$431,27,0)","v":"https://www.contratos.gov.co/consultas/detalleProceso.do?numConstancia=20-4-10608926"}]
[{"$error":"#REF!"},1129516318,"YEIMIS PATRICIA GONZALEZ ARAGON ","1300","1300-2020","AGENTE CALL CENTER"," 02 de marzo de 2020  "," 31 de marzo de 2020",1378000,1378000,"WILFRAN JIMENEZ DE LA PEÑA","COORD CENTRO DE SALUD",1527,2408,"2020-03-16",{"$f":"VLOOKUP(B420:B532,'[1]CONTRATACION MARZO '!$B$2:$AB$431,27,0)","v":"https://www.contratos.gov.co/consultas/detalleProceso.do?numConstancia=20-4-10608941"}]
[{"$error":"#REF!"},22515180,"YEIMY JHOANA SALTARIN ACUÑA","1301","1301-2020","AUXILIAR  ADMINISTRATIVO  DE FARMACIA "," 02 de marzo de 2020  "," 31 de marzo de 2020",1900000,1900000,"BETTY PERTUZ ","SUBGERENCIA CIENTIFICA",1528,2409,"2020-03-16",{"$f":"VLOOKUP(B421:B533,'[1]CONTRATACION MARZO '!$B$2:$AB$431,27,0)","v":"https://www.contratos.gov.co/consultas/detalleProceso.do?numConstancia=20-4-10608966"}]
[{"$error":"#REF!"},1143266403,"YUNERIZ PEREZ DE LA HOZ","1302","1302-2020","AUXILIAR DE ENFERMERIA"," 02 de marzo de 2020  "," 31 de marzo de 2020",1166000,1166000,"LUIS CARLOS DE LEON BERNIER","COORD CENTRO DE SALUD",1529,2410,"2020-03-16",{"$f":"VLOOKUP(B422:B534,'[1]CONTRATACION MARZO '!$B$2:$AB$431,27,0)","v":"https://www.contratos.gov.co/consultas/detalleProceso.do?numConstancia=20-4-10608988"}]
[{"$error":"#REF!"},57105527,"ZOILA PATRICIA PABON HERNANDEZ","1303","1303-2020","ASISTENTE COORDINACIÓN MÉDICA"," 02 de marzo de 2020  "," 31 de marzo de 2020",3500000,3500000,"BETTY PERTUZ ","SUBGERENCIA CIENTIFICA",1530,2411,"2020-03-16",{"$f":"VLOOKUP(B423:B535,'[1]CONTRATACION MARZO '!$B$2:$AB$431,27,0)","v":"https://www.contratos.gov.co/consultas/detalleProceso.do?numConstancia=20-4-10609011"}]
[{"$error":"#REF!"},32866918,"ZULMA LEONOR MARTINEZ IGLESIAS","1304","1304-2020","ODONTOLOGO"," 02 de marzo de 2020  "," 31 de marzo de 2020",1900000,1900000,"AIX PALACIO","COORD CENTRO DE SALUD",1531,2412,"2020-03-16",{"$f":"VLOOKUP(B424:B536,'[1]CONTRATACION MARZO '!$B$2:$AB$431,27,0)","v":"https://www.contratos.gov.co/consultas/detalleProceso.do?numConstancia=20-4-10609024"}]
[{"$error":"#REF!"},32876060,"YAKELIN BOLAÑO MIRANDA","1305","1305-2020","AUXILIAR DE ODONTOLOGIA"," 02 de marzo de 2020  "," 31 de marzo de 2020",1166000,1166000,"DIANA MARTINEZ PACHECO","COORD CENTRO DE SALUD",1532,2413,"2020-03-16",{"$f":"VLOOKUP(B425:B537,'[1]CONTRATACION MARZO '!$B$2:$AB$431,27,0)","v":"https://www.contratos.gov.co/consultas/detalleProceso.do?numConstancia=20-4-10609036"}]
[{"$f":"+A425+1","v":{"$error":"#REF!"}},1043121395,"SHEYLA DEL CARMEN ESTRADA ARIZA","1306","1306-2020","TECNICO DE SISTEMAS "," 04 de marzo de 2020"," 31 de marzo de 2020",1185333,1185333,"ZULI ROMERO ","COORDINADORA  TIC",null,null,"2020-03-16","https://www.contratos.gov.co/consultas/detalleProceso.do?numConstancia=20-4-10629726"]
[{"$error":"#REF!"},55305321,"GELMIS SARAY MARTINEZ DIPPE","1307","1307-2020","AGENTE CALL CENTER"," 05 de marzo de 2020"," 31 de marzo de 2020",1240200,1240200,"WILFRAN JIMENEZ DE LA PEÑA","COORD CENTRO DE SALUD",null,null,"2020-03-16","https://www.contratos.gov.co/consultas/detalleProceso.do?numConstancia=20-4-10629728"]
[{"$error":"#REF!"},1143143512,"TAIDETH ALEXANDRA BRACHO DAVILA","1308","1308-2020","AUXILIAR DE ENFERMERIA URGENCIAS"," 06 de marzo de 2020"," 31 de marzo de 2020",1187333,1187333,"WILFRAN JIMENEZ DE LA PEÑA","COORD CENTRO DE SALUD",null,null,"2020-03-16","https://www.contratos.gov.co/consultas/detalleProceso.do?numConstancia=20-4-10629730"]
[{"$error":"#REF!"},1042447004,"TATIANA MARGARITA NIEBLES PADILLA","1309","1309-2020","MEDICO DE URGENCIA"," 06 de marzo de 2020"," 31 de marzo de 2020",2218667,2218667,"WILFRAN JIMENEZ DE LA PEÑA","COORD CENTRO DE SALUD",null,null,"2020-03-16","https://www.contratos.gov.co/consultas/detalleProceso.do?numConstancia=20-4-10629742"]
[429,72314953,"LEONEL DANIEL SILVA TAPIAS ","1310","1310-2020","REVISOR  FISCAL "," 02 de marzo de 2020  ","30 de abril de 2020",16511964,16511964,"ROSA MADERA","GERENTE",1548,2450,"2020-03-16",{"$f":"VLOOKUP(B430:B542,'[1]CONTRATACION MARZO '!$B$2:$AB$431,27,0)","v":0}]
[430,8675558,"JESUS ALFREDO MALDONADO MEJIA ","1311","1311-2020","ORIENTADOR"," 02 de marzo de 2020  "," 31 de marzo de 2020",1270000,1270000,"LUIS GRANADOS GOMEZ","COORD CENTRO DE SALUD",1549,2452,"2020-03-16",{"$f":"VLOOKUP(B431:B543,'[1]CONTRATACION MARZO '!$B$2:$AB$431,27,0)","v":0}]

{"sheet":"PIC  MARZO 2020","index":1,"n_rows":3,"n_cols":36,"rows_kept":3,"cut":false,"hidden":false,"merged":[]}
[null,"CEDULA","NOMBRE Y APELLIDO","# OPS","#OPS","FECHA INICIO","FECHA TERMINACION ","OBJETO DEL CONTRATO","VALOR MENSUAL","VALOR TOTAL ","VALOR LETRAS total","SUPERVISOR ","CARGO","RUBRO PRESUPUESTAL ","CDP","RP","POLIZA/RESPONSABILIDAD CIVIL PROFESIONAL ","CENTRO DE SALUD","RUBRO","ACREDITACION ","servicio","perfil","CONDICIONES DEL CONTRATO ","forma de pago","VALOR LETRAS MES","VIGENCIA ","CONDICIONES","AREA ","FECHA SECOP LINK SECOP ","LINK SECOOP","FUNCIONES ESPECIFICAS","GARANTIAS ","FORMATO DE PAGO 1 ","PAGO FINAL ","FECHA SECOP ","LINK SECOP "]
[1,44152281,"KAREN JOHANA JIMENEZ RAMOS","068","0068-2020-PIC","02 marzo de 2020","31 MARZO DE 2020","APOYO A LA GESTION DIMENSIÓN_DE_SALUD_AMBIENTAL: Zoonosis",1900000,1900000,{"$f":"PesosMN(J2)","v":"  UN MILLON NOVECIENTOS MIL PESOS "},"NILSA ARIZA MARQUEZ","COORDINADOR P Y P","PIC",1538,2422,null,null,null,null,null,null,null,null,null,null,null,null,null,null,null,null,null,null,"2020-03-28","https://www.contratos.gov.co/consultas/detalleProceso.do?numConstancia=20-4-10630084"]
[2,22617307,"ETILVIA TERESA DONADO CABALLERO ","069","0069-2020-PIC","02 marzo de 2020","31 MARZO DE 2020","PSICOLOGO ",2500000,2500000,{"$f":"PesosMN(J3)","v":"  DOS MILLONES QUINIENTOS MIL PESOS "},"BETTY PERTUZ","SUBGERENTE CIENTIFICO","PIC",1539,2423,null,null,null,null,null,null,null,null,null,null,null,null,null,null,null,null,null,null,"2020-03-28","https://www.contratos.gov.co/consultas/detalleProceso.do?numConstancia=20-4-10630789"]

{"sheet":"CONTRATOS COVIC 19","index":2,"n_rows":7,"n_cols":16,"rows_kept":7,"cut":false,"hidden":false,"merged":[]}
[" ","CEDULA","NOMBRES APELLIDOS CONTRATISTA","# OPS","# OPS  CON AÑO ","OBJETO DEL CONTRATO","FECHA INICIO","FECHA TERMINACION ","VALOR MENSUAL","VALOR TOTAL ","SUPERVISOR ","CARGO","CDP","RP","FECHA SECOP LINK SECOP ","LINK SECOOP"]
[1,55302261,"VANESSA PAOLA DURANPEÑARANDA","1312","1312-2020-CV19","FISIOTERAPEUTA"," 02 de marzo de 2020  ","30 de abril 2020",2500000,{"$f":"I2*2","v":5000000},"CESAR ARRIETA","COORD CENTRO DE SALUD",1533,2414,"2020-03-29","https://www.contratos.gov.co/consultas/detalleProceso.do?numConstancia=20-4-10631361"]
[{"$f":"+A2+1","v":2},1193512615,"JORGE ELEICER DE LA CRUZ GONZALEZ","1313","1313-2020- CV19","FISIOTERAPEUTA"," 02 de marzo de 2020  ","30 de abril 2020",2500000,5000000,"CESAR ARRIETA","COORD CENTRO DE SALUD",1534,2415,"2020-03-29","https://www.contratos.gov.co/consultas/detalleProceso.do?numConstancia=20-4-10631373"]
[{"$f":"+A3+1","v":3},53107458,"JANNE  PADILLA ITURRIAGO","1314","1314-2020-CV19","AUXILIAR DE ENFERMERIA"," 02 de marzo de 2020  ","30 de abril 2020",1500000,3000000,"CESAR ARRIETA","COORD CENTRO DE SALUD",1535,2416,"2020-03-29","https://www.contratos.gov.co/consultas/detalleProceso.do?numConstancia=20-4-10631376"]
[4,1042457847,"EYLEEN LUCIA ZAMBRANO","1315","1315-2020-CV19","AUXILIAR DE ENFERMERIA"," 02 de marzo de 2020  ","30 de abril 2020",1500000,3000000,"CESAR ARRIETA","COORD CENTRO DE SALUD",1536,2417,"2020-03-29","https://www.contratos.gov.co/consultas/detalleProceso.do?numConstancia=20-4-10631380"]
[5,1045729651,"KAROLAY PAOLA GARCIA OSPINO","1316","1316-2020-CV19","MEDICO"," 02 de marzo de 2020  ","30 de abril 2020",4240000,8480000,"CESAR ARRIETA","COORD CENTRO DE SALUD",1553,2460,"2020-03-29","https://www.contratos.gov.co/consultas/detalleProceso.do?numConstancia=20-4-10631389"]
[6,72193875,"CRISTIAN DE JESUS BARRAZA VILLALBA","0939","0939-2020-CV19","CONDUCTOR DE AMBULANCIA"," 02 de marzo de 2020  ","30 de abril de 2020",3600000,7200000,"CESAR ARRIETA","COORD CENTRO DE SALUD",1166,2047,"2020-03-29","https://www.contratos.gov.co/consultas/detalleProceso.do?numConstancia=20-4-10587468"]